﻿PAPER_DOCUMENT_NUMBER,PAYMENT_AMOUNT,PAYMENT_DATE,PAYMENT_STATUS,VOID_DATE,PAYEE_NAME,PAYEE_ADDRESS1,SOURCE,INVOICE_NUM,AMOUNT_PAID,PAYMENT_METHOD_CODE,LINE_NUMBER,LINE_SOURCE,INVOICE_DATE,INVOICE_LINE_NUMBER,DISTRIBUTION_LINE_NUMBER,DISTRIBUTION_AMT,CODE_COMB_ID,ACCT_DESC,CATEGORY
9008749,"$ 3,526,810.93",12/31/2019,ISSUED,,"Cook DuPage Transportation Co","1200 W Fulton St","Manual Invoice Entry",NOV'2019,"$ 3,526,810.93",WIRE,3,"MANUAL LINE ENTRY",12/17/2019,3,1,"$ 3,986,696.81",51-58602-0000-508101-500-000000000-000000,"Purchased Transportation","Purchased Transportation"
9008749,"$ 3,526,810.93",12/31/2019,ISSUED,,"Cook DuPage Transportation Co","1200 W Fulton St","Manual Invoice Entry",NOV'2019,"$ 3,526,810.93",WIRE,2,"MANUAL LINE ENTRY",12/17/2019,2,1,"$ -3,526,810.93",51-58602-0000-508101-500-000000000-000000,"Purchased Transportation","Purchased Transportation"
9008749,"$ 3,526,810.93",12/31/2019,ISSUED,,"Cook DuPage Transportation Co","1200 W Fulton St","Manual Invoice Entry",NOV'2019,"$ 3,526,810.93",WIRE,1,"HEADER MATCH",12/17/2019,1,1,"$ 3,526,810.93",51-58602-0000-508101-500-000000000-000000,"Purchased Transportation","Purchased Transportation"
9008749,"$ 3,526,810.93",12/31/2019,ISSUED,,"Cook DuPage Transportation Co","1200 W Fulton St","Manual Invoice Entry",NOV'2019,"$ 3,526,810.93",WIRE,3,"MANUAL LINE ENTRY",12/17/2019,3,12,"$ -330,779.38",51-58602-0000-508101-500-000000000-000000,"Purchased Transportation","Purchased Transportation"
9008749,"$ 3,526,810.93",12/31/2019,ISSUED,,"Cook DuPage Transportation Co","1200 W Fulton St","Manual Invoice Entry",NOV'2019,"$ 3,526,810.93",WIRE,3,"MANUAL LINE ENTRY",12/17/2019,3,8,"$ -139,140.25",51-58602-0000-401101-100-000000000-000000,"Passenger Fares","Purchased Transportation"
9008749,"$ 3,526,810.93",12/31/2019,ISSUED,,"Cook DuPage Transportation Co","1200 W Fulton St","Manual Invoice Entry",NOV'2019,"$ 3,526,810.93",WIRE,3,"MANUAL LINE ENTRY",12/17/2019,3,7,"$ -89,224.25",51-58602-0000-401101-100-000000000-000000,"Passenger Fares","Purchased Transportation"
9008749,"$ 3,526,810.93",12/31/2019,ISSUED,,"Cook DuPage Transportation Co","1200 W Fulton St","Manual Invoice Entry",NOV'2019,"$ 3,526,810.93",WIRE,3,"MANUAL LINE ENTRY",12/17/2019,3,4,"$ 128.19",51-58604-0000-508102-500-000000000-000000,"Call Center Expansion Costs","Purchased Transportation"
9008749,"$ 3,526,810.93",12/31/2019,ISSUED,,"Cook DuPage Transportation Co","1200 W Fulton St","Manual Invoice Entry",NOV'2019,"$ 3,526,810.93",WIRE,3,"MANUAL LINE ENTRY",12/17/2019,3,16,"$ -13,706.70",51-59101-5311-509913-501-000000000-000000,"General Expense",Miscellaneous
9008749,"$ 3,526,810.93",12/31/2019,ISSUED,,"Cook DuPage Transportation Co","1200 W Fulton St","Manual Invoice Entry",NOV'2019,"$ 3,526,810.93",WIRE,3,"MANUAL LINE ENTRY",12/17/2019,3,13,"$ -2,137.35",51-58501-0000-508202-500-000000000-000000,"RTA Certification Expense","Purchased Transportation"
9008749,"$ 3,526,810.93",12/31/2019,ISSUED,,"Cook DuPage Transportation Co","1200 W Fulton St","Manual Invoice Entry",NOV'2019,"$ 3,526,810.93",WIRE,3,"MANUAL LINE ENTRY",12/17/2019,3,6,"$ 89,224.25",51-59101-0000-205104-000-000000000-000000,"Unredeemed Paratransit Fares","Purchased Transportation"
9008749,"$ 3,526,810.93",12/31/2019,ISSUED,,"Cook DuPage Transportation Co","1200 W Fulton St","Manual Invoice Entry",NOV'2019,"$ 3,526,810.93",WIRE,3,"MANUAL LINE ENTRY",12/17/2019,3,15,"$ -10.64",51-58604-0000-508102-500-000000000-000000,"Call Center Expansion Costs","Purchased Transportation"
9008749,"$ 3,526,810.93",12/31/2019,ISSUED,,"Cook DuPage Transportation Co","1200 W Fulton St","Manual Invoice Entry",NOV'2019,"$ 3,526,810.93",WIRE,3,"MANUAL LINE ENTRY",12/17/2019,3,14,"$ .00",51-57901-0000-508202-500-000000000-000000,"RTA Certification Expense","Purchased Transportation"
9008749,"$ 3,526,810.93",12/31/2019,ISSUED,,"Cook DuPage Transportation Co","1200 W Fulton St","Manual Invoice Entry",NOV'2019,"$ 3,526,810.93",WIRE,3,"MANUAL LINE ENTRY",12/17/2019,3,3,"$ .00",51-57901-0000-508202-500-000000000-000000,"RTA Certification Expense","Purchased Transportation"
9008749,"$ 3,526,810.93",12/31/2019,ISSUED,,"Cook DuPage Transportation Co","1200 W Fulton St","Manual Invoice Entry",NOV'2019,"$ 3,526,810.93",WIRE,3,"MANUAL LINE ENTRY",12/17/2019,3,2,"$ 25,760.25",51-58501-0000-508202-500-000000000-000000,"RTA Certification Expense","Purchased Transportation"
9008748,"$ 94,187.00",12/30/2019,ISSUED,,"Nexus Alpha Low Power Systems LTD","Natwest Putney","Manual Invoice Entry",610,"$ 94,187.00",WIRE,3,"HEADER MATCH",10/14/2019,3,1,"$ 40,700.00",11-10101-0000-111211-000-216045035-000000,"Equipment, Furniture & Fixtures",Equipment
9008748,"$ 94,187.00",12/30/2019,ISSUED,,"Nexus Alpha Low Power Systems LTD","Natwest Putney","Manual Invoice Entry",610,"$ 94,187.00",WIRE,2,"HEADER MATCH",10/14/2019,2,1,"$ 17,617.60",11-10101-0000-111211-000-212204735-000000,"Equipment, Furniture & Fixtures",Equipment
9008748,"$ 94,187.00",12/30/2019,ISSUED,,"Nexus Alpha Low Power Systems LTD","Natwest Putney","Manual Invoice Entry",610,"$ 94,187.00",WIRE,1,"HEADER MATCH",10/14/2019,1,2,"$ 4,258.00",11-10101-0000-111211-000-212204735-000000,"Equipment, Furniture & Fixtures",Equipment
9008748,"$ 94,187.00",12/30/2019,ISSUED,,"Nexus Alpha Low Power Systems LTD","Natwest Putney","Manual Invoice Entry",610,"$ 94,187.00",WIRE,3,"HEADER MATCH",10/14/2019,3,2,"$ 10,175.00",11-10101-0000-111211-000-216045035-000000,"Equipment, Furniture & Fixtures",Equipment
9008748,"$ 94,187.00",12/30/2019,ISSUED,,"Nexus Alpha Low Power Systems LTD","Natwest Putney","Manual Invoice Entry",610,"$ 94,187.00",WIRE,2,"HEADER MATCH",10/14/2019,2,2,"$ 4,404.40",11-10101-0000-111211-000-212204735-000000,"Equipment, Furniture & Fixtures",Equipment
9008748,"$ 94,187.00",12/30/2019,ISSUED,,"Nexus Alpha Low Power Systems LTD","Natwest Putney","Manual Invoice Entry",610,"$ 94,187.00",WIRE,1,"HEADER MATCH",10/14/2019,1,1,"$ 17,032.00",11-10101-0000-111211-000-212204735-000000,"Equipment, Furniture & Fixtures",Equipment
9008747,"$ 44,767.84",12/30/2019,ISSUED,,"Great West Life & Annuity Ins",Empower,"Manual Invoice Entry",HQ122719,"$ 44,767.84",WIRE,3,"MANUAL LINE ENTRY",12/26/2019,3,1,"$ 38,673.80",11-10101-0000-202106-000-000000000-000000,"401K Withheld","401k/Pension EE/ER Contribution"
9008747,"$ 44,767.84",12/30/2019,ISSUED,,"Great West Life & Annuity Ins",Empower,"Manual Invoice Entry",HQ122719,"$ 44,767.84",WIRE,1,"MANUAL LINE ENTRY",12/26/2019,1,1,"$ 2,466.23",11-22101-0000-202106-000-000000000-000000,"401K Withheld","401k/Pension EE/ER Contribution"
9008747,"$ 44,767.84",12/30/2019,ISSUED,,"Great West Life & Annuity Ins",Empower,"Manual Invoice Entry",HQ122719,"$ 44,767.84",WIRE,2,"MANUAL LINE ENTRY",12/26/2019,2,1,"$ 3,627.81",11-22106-0000-202106-000-000000000-000000,"401K Withheld","401k/Pension EE/ER Contribution"
9008746,"$ 2,215,190.26",12/30/2019,ISSUED,,"Cook DuPage Transportation Co","1200 W Fulton St","Manual Invoice Entry",OCT'2019-SC,"$ 770,376.13",WIRE,3,"MANUAL LINE ENTRY",12/18/2019,3,18,"$ -4,044.60",11-10101-5311-509913-501-000000000-000000,"General Expense",Miscellaneous
9008746,"$ 2,215,190.26",12/30/2019,ISSUED,,"Cook DuPage Transportation Co","1200 W Fulton St","Manual Invoice Entry",OCT'2019-SC,"$ 770,376.13",WIRE,3,"MANUAL LINE ENTRY",12/18/2019,3,3,"$ 9,487.77",11-53112-0000-508101-500-000000000-000000,"Purchased Transportation","Purchased Transportation"
9008746,"$ 2,215,190.26",12/30/2019,ISSUED,,"Cook DuPage Transportation Co","1200 W Fulton St","Manual Invoice Entry",OCT'2019-SC,"$ 770,376.13",WIRE,3,"MANUAL LINE ENTRY",12/18/2019,3,16,"$ -2,423.92",11-53153-0000-508101-500-000000000-000000,"Purchased Transportation","Purchased Transportation"
9008746,"$ 2,215,190.26",12/30/2019,ISSUED,,"Cook DuPage Transportation Co","1200 W Fulton St","Manual Invoice Entry",OCT'2019-SC,"$ 770,376.13",WIRE,3,"MANUAL LINE ENTRY",12/18/2019,3,15,"$ -862.99",11-53112-0000-508101-500-000000000-000000,"Purchased Transportation","Purchased Transportation"
9008746,"$ 2,215,190.26",12/30/2019,ISSUED,,"Cook DuPage Transportation Co","1200 W Fulton St","Manual Invoice Entry",OCT'2019-SC,"$ 770,376.13",WIRE,3,"MANUAL LINE ENTRY",12/18/2019,3,5,"$ 96.65",51-57201-0000-508102-500-000000000-000000,"Call Center Expansion Costs","Purchased Transportation"
9008746,"$ 2,215,190.26",12/30/2019,ISSUED,,"Cook DuPage Transportation Co","1200 W Fulton St","Manual Invoice Entry",OCT'2019-SC,"$ 770,376.13",WIRE,3,"MANUAL LINE ENTRY",12/18/2019,3,17,"$ -8.79",51-57201-0000-508102-500-000000000-000000,"Call Center Expansion Costs","Purchased Transportation"
9008746,"$ 2,215,190.26",12/30/2019,ISSUED,,"Cook DuPage Transportation Co","1200 W Fulton St","Manual Invoice Entry",OCT'2019-SC,"$ 770,376.13",WIRE,3,"MANUAL LINE ENTRY",12/18/2019,3,14,"$ .00",51-57901-0000-508202-500-000000000-000000,"RTA Certification Expense","Purchased Transportation"
9008746,"$ 2,215,190.26",12/30/2019,ISSUED,,"Cook DuPage Transportation Co","1200 W Fulton St","Manual Invoice Entry",OCT'2019-SC,"$ 770,376.13",WIRE,3,"MANUAL LINE ENTRY",12/18/2019,3,12,"$ .00",11-54101-0000-508102-500-000000000-000000,"Call Center Expansion Costs","Purchased Transportation"
9008746,"$ 2,215,190.26",12/30/2019,ISSUED,,"Cook DuPage Transportation Co","1200 W Fulton St","Manual Invoice Entry",OCT'2019-SC,"$ 770,376.13",WIRE,3,"MANUAL LINE ENTRY",12/18/2019,3,10,"$ .00",11-53112-0000-401101-100-000000000-000000,"Passenger Fares","Purchased Transportation"
9008746,"$ 2,215,190.26",12/30/2019,ISSUED,,"Cook DuPage Transportation Co","1200 W Fulton St","Manual Invoice Entry",OCT'2019-SC,"$ 770,376.13",WIRE,3,"MANUAL LINE ENTRY",12/18/2019,3,2,"$ .00",51-57901-0000-508202-500-000000000-000000,"RTA Certification Expense","Purchased Transportation"
9008746,"$ 2,215,190.26",12/30/2019,ISSUED,,"Cook DuPage Transportation Co","1200 W Fulton St","Manual Invoice Entry",OCT'2019-SC,"$ 770,376.13",WIRE,3,"MANUAL LINE ENTRY",12/18/2019,3,9,"$ .00",51-57901-0000-401101-100-000000000-000000,"Passenger Fares","Purchased Transportation"
9008746,"$ 2,215,190.26",12/30/2019,ISSUED,,"Cook DuPage Transportation Co","1200 W Fulton St","Manual Invoice Entry",OCT'2019-SC,"$ 770,376.13",WIRE,3,"MANUAL LINE ENTRY",12/18/2019,3,1,"$ 846,499.83",51-57201-0000-508101-500-000000000-000000,"Purchased Transportation","Purchased Transportation"
9008746,"$ 2,215,190.26",12/30/2019,ISSUED,,"Cook DuPage Transportation Co","1200 W Fulton St","Manual Invoice Entry",OCT'2019-SC,"$ 770,376.13",WIRE,1,"HEADER MATCH",12/18/2019,1,1,"$ 770,376.13",51-57201-0000-508101-500-000000000-000000,"Purchased Transportation","Purchased Transportation"
9008746,"$ 2,215,190.26",12/30/2019,ISSUED,,"Cook DuPage Transportation Co","1200 W Fulton St","Manual Invoice Entry",OCT'2019-SC,"$ 770,376.13",WIRE,2,"MANUAL LINE ENTRY",12/18/2019,2,1,"$ -770,376.13",51-57201-0000-508101-500-000000000-000000,"Purchased Transportation","Purchased Transportation"
9008746,"$ 2,215,190.26",12/30/2019,ISSUED,,"Cook DuPage Transportation Co","1200 W Fulton St","Manual Invoice Entry",OCT'2019-SC,"$ 770,376.13",WIRE,3,"MANUAL LINE ENTRY",12/18/2019,3,13,"$ -58,016.52",51-57201-0000-508101-500-000000000-000000,"Purchased Transportation","Purchased Transportation"
9008746,"$ 2,215,190.26",12/30/2019,ISSUED,,"Cook DuPage Transportation Co","1200 W Fulton St","Manual Invoice Entry",OCT'2019-SC,"$ 770,376.13",WIRE,3,"MANUAL LINE ENTRY",12/18/2019,3,4,"$ 26,648.70",11-53153-0000-508101-500-000000000-000000,"Purchased Transportation","Purchased Transportation"
9008746,"$ 2,215,190.26",12/30/2019,ISSUED,,"Cook DuPage Transportation Co","1200 W Fulton St","Manual Invoice Entry",OCT'2019-SC,"$ 770,376.13",WIRE,3,"MANUAL LINE ENTRY",12/18/2019,3,7,"$ -24,816.00",51-57201-0000-401101-100-000000000-000000,"Passenger Fares","Purchased Transportation"
9008746,"$ 2,215,190.26",12/30/2019,ISSUED,,"Cook DuPage Transportation Co","1200 W Fulton St","Manual Invoice Entry",OCT'2019-SC,"$ 770,376.13",WIRE,3,"MANUAL LINE ENTRY",12/18/2019,3,6,"$ 24,816.00",51-59101-0000-205104-000-000000000-000000,"Unredeemed Paratransit Fares","Purchased Transportation"
9008746,"$ 2,215,190.26",12/30/2019,ISSUED,,"Cook DuPage Transportation Co","1200 W Fulton St","Manual Invoice Entry",OCT'2019-SC,"$ 770,376.13",WIRE,3,"MANUAL LINE ENTRY",12/18/2019,3,8,"$ -43,954.00",51-57201-0000-401101-100-000000000-000000,"Passenger Fares","Purchased Transportation"
9008746,"$ 2,215,190.26",12/30/2019,ISSUED,,"Cook DuPage Transportation Co","1200 W Fulton St","Manual Invoice Entry",SEP'2019-SC,"$ 719,069.12",WIRE,3,"MANUAL LINE ENTRY",12/16/2019,3,1,"$ 782,214.74",51-57201-0000-508101-500-000000000-000000,"Purchased Transportation","Purchased Transportation"
9008746,"$ 2,215,190.26",12/30/2019,ISSUED,,"Cook DuPage Transportation Co","1200 W Fulton St","Manual Invoice Entry",SEP'2019-SC,"$ 719,069.12",WIRE,1,"HEADER MATCH",12/16/2019,1,1,"$ 719,069.12",51-57201-0000-508101-500-000000000-000000,"Purchased Transportation","Purchased Transportation"
9008746,"$ 2,215,190.26",12/30/2019,ISSUED,,"Cook DuPage Transportation Co","1200 W Fulton St","Manual Invoice Entry",SEP'2019-SC,"$ 719,069.12",WIRE,2,"MANUAL LINE ENTRY",12/16/2019,2,1,"$ -719,069.12",51-57201-0000-508101-500-000000000-000000,"Purchased Transportation","Purchased Transportation"
9008746,"$ 2,215,190.26",12/30/2019,ISSUED,,"Cook DuPage Transportation Co","1200 W Fulton St","Manual Invoice Entry",SEP'2019-SC,"$ 719,069.12",WIRE,3,"MANUAL LINE ENTRY",12/16/2019,3,13,"$ -52,979.99",51-57201-0000-508101-500-000000000-000000,"Purchased Transportation","Purchased Transportation"
9008746,"$ 2,215,190.26",12/30/2019,ISSUED,,"Cook DuPage Transportation Co","1200 W Fulton St","Manual Invoice Entry",SEP'2019-SC,"$ 719,069.12",WIRE,3,"MANUAL LINE ENTRY",12/16/2019,3,8,"$ -36,770.50",51-57201-0000-401101-100-000000000-000000,"Passenger Fares","Purchased Transportation"
9008746,"$ 2,215,190.26",12/30/2019,ISSUED,,"Cook DuPage Transportation Co","1200 W Fulton St","Manual Invoice Entry",SEP'2019-SC,"$ 719,069.12",WIRE,3,"MANUAL LINE ENTRY",12/16/2019,3,4,"$ 27,297.45",11-53153-0000-508101-500-000000000-000000,"Purchased Transportation","Purchased Transportation"
9008746,"$ 2,215,190.26",12/30/2019,ISSUED,,"Cook DuPage Transportation Co","1200 W Fulton St","Manual Invoice Entry",SEP'2019-SC,"$ 719,069.12",WIRE,3,"MANUAL LINE ENTRY",12/16/2019,3,7,"$ -24,696.75",51-57201-0000-401101-100-000000000-000000,"Passenger Fares","Purchased Transportation"
9008746,"$ 2,215,190.26",12/30/2019,ISSUED,,"Cook DuPage Transportation Co","1200 W Fulton St","Manual Invoice Entry",SEP'2019-SC,"$ 719,069.12",WIRE,3,"MANUAL LINE ENTRY",12/16/2019,3,6,"$ 24,696.75",51-59101-0000-205104-000-000000000-000000,"Unredeemed Paratransit Fares","Purchased Transportation"
9008746,"$ 2,215,190.26",12/30/2019,ISSUED,,"Cook DuPage Transportation Co","1200 W Fulton St","Manual Invoice Entry",SEP'2019-SC,"$ 719,069.12",WIRE,3,"MANUAL LINE ENTRY",12/16/2019,3,3,"$ 9,660.90",11-53112-0000-508101-500-000000000-000000,"Purchased Transportation","Purchased Transportation"
9008746,"$ 2,215,190.26",12/30/2019,ISSUED,,"Cook DuPage Transportation Co","1200 W Fulton St","Manual Invoice Entry",SEP'2019-SC,"$ 719,069.12",WIRE,3,"MANUAL LINE ENTRY",12/16/2019,3,18,"$ -4,044.60",11-10101-5311-509913-501-000000000-000000,"General Expense",Miscellaneous
9008746,"$ 2,215,190.26",12/30/2019,ISSUED,,"Cook DuPage Transportation Co","1200 W Fulton St","Manual Invoice Entry",SEP'2019-SC,"$ 719,069.12",WIRE,3,"MANUAL LINE ENTRY",12/16/2019,3,11,"$ -3,068.00",11-53153-0000-401101-100-000000000-000000,"Passenger Fares","Purchased Transportation"
9008746,"$ 2,215,190.26",12/30/2019,ISSUED,,"Cook DuPage Transportation Co","1200 W Fulton St","Manual Invoice Entry",SEP'2019-SC,"$ 719,069.12",WIRE,3,"MANUAL LINE ENTRY",12/16/2019,3,16,"$ -2,521.51",11-53153-0000-508101-500-000000000-000000,"Purchased Transportation","Purchased Transportation"
9008746,"$ 2,215,190.26",12/30/2019,ISSUED,,"Cook DuPage Transportation Co","1200 W Fulton St","Manual Invoice Entry",SEP'2019-SC,"$ 719,069.12",WIRE,3,"MANUAL LINE ENTRY",12/16/2019,3,5,"$ 190.63",51-57201-0000-508102-500-000000000-000000,"Call Center Expansion Costs","Purchased Transportation"
9008746,"$ 2,215,190.26",12/30/2019,ISSUED,,"Cook DuPage Transportation Co","1200 W Fulton St","Manual Invoice Entry",SEP'2019-SC,"$ 719,069.12",WIRE,3,"MANUAL LINE ENTRY",12/16/2019,3,17,"$ -17.61",51-57201-0000-508102-500-000000000-000000,"Call Center Expansion Costs","Purchased Transportation"
9008746,"$ 2,215,190.26",12/30/2019,ISSUED,,"Cook DuPage Transportation Co","1200 W Fulton St","Manual Invoice Entry",SEP'2019-SC,"$ 719,069.12",WIRE,3,"MANUAL LINE ENTRY",12/16/2019,3,14,"$ .00",51-57901-0000-508202-500-000000000-000000,"RTA Certification Expense","Purchased Transportation"
9008746,"$ 2,215,190.26",12/30/2019,ISSUED,,"Cook DuPage Transportation Co","1200 W Fulton St","Manual Invoice Entry",SEP'2019-SC,"$ 719,069.12",WIRE,3,"MANUAL LINE ENTRY",12/16/2019,3,15,"$ -892.39",11-53112-0000-508101-500-000000000-000000,"Purchased Transportation","Purchased Transportation"
9008746,"$ 2,215,190.26",12/30/2019,ISSUED,,"Cook DuPage Transportation Co","1200 W Fulton St","Manual Invoice Entry",SEP'2019-SC,"$ 719,069.12",WIRE,3,"MANUAL LINE ENTRY",12/16/2019,3,12,"$ .00",11-54101-0000-508102-500-000000000-000000,"Call Center Expansion Costs","Purchased Transportation"
9008746,"$ 2,215,190.26",12/30/2019,ISSUED,,"Cook DuPage Transportation Co","1200 W Fulton St","Manual Invoice Entry",SEP'2019-SC,"$ 719,069.12",WIRE,3,"MANUAL LINE ENTRY",12/16/2019,3,10,"$ .00",11-53112-0000-401101-100-000000000-000000,"Passenger Fares","Purchased Transportation"
9008746,"$ 2,215,190.26",12/30/2019,ISSUED,,"Cook DuPage Transportation Co","1200 W Fulton St","Manual Invoice Entry",SEP'2019-SC,"$ 719,069.12",WIRE,3,"MANUAL LINE ENTRY",12/16/2019,3,9,"$ .00",51-57901-0000-401101-100-000000000-000000,"Passenger Fares","Purchased Transportation"
9008746,"$ 2,215,190.26",12/30/2019,ISSUED,,"Cook DuPage Transportation Co","1200 W Fulton St","Manual Invoice Entry",SEP'2019-SC,"$ 719,069.12",WIRE,3,"MANUAL LINE ENTRY",12/16/2019,3,2,"$ .00",51-57901-0000-508202-500-000000000-000000,"RTA Certification Expense","Purchased Transportation"
9008746,"$ 2,215,190.26",12/30/2019,ISSUED,,"Cook DuPage Transportation Co","1200 W Fulton St","Manual Invoice Entry",AUG'2019-SC,"$ 725,745.01",WIRE,3,"MANUAL LINE ENTRY",12/13/2019,3,1,"$ 792,133.62",51-57201-0000-508101-500-000000000-000000,"Purchased Transportation","Purchased Transportation"
9008746,"$ 2,215,190.26",12/30/2019,ISSUED,,"Cook DuPage Transportation Co","1200 W Fulton St","Manual Invoice Entry",AUG'2019-SC,"$ 725,745.01",WIRE,1,"HEADER MATCH",12/13/2019,1,1,"$ 725,745.01",51-57201-0000-508101-500-000000000-000000,"Purchased Transportation","Purchased Transportation"
9008746,"$ 2,215,190.26",12/30/2019,ISSUED,,"Cook DuPage Transportation Co","1200 W Fulton St","Manual Invoice Entry",AUG'2019-SC,"$ 725,745.01",WIRE,2,"MANUAL LINE ENTRY",12/13/2019,2,1,"$ -725,745.01",51-57201-0000-508101-500-000000000-000000,"Purchased Transportation","Purchased Transportation"
9008746,"$ 2,215,190.26",12/30/2019,ISSUED,,"Cook DuPage Transportation Co","1200 W Fulton St","Manual Invoice Entry",AUG'2019-SC,"$ 725,745.01",WIRE,3,"MANUAL LINE ENTRY",12/13/2019,3,13,"$ -57,935.09",51-57201-0000-508101-500-000000000-000000,"Purchased Transportation","Purchased Transportation"
9008746,"$ 2,215,190.26",12/30/2019,ISSUED,,"Cook DuPage Transportation Co","1200 W Fulton St","Manual Invoice Entry",AUG'2019-SC,"$ 725,745.01",WIRE,3,"MANUAL LINE ENTRY",12/13/2019,3,8,"$ -36,906.25",51-57201-0000-401101-100-000000000-000000,"Passenger Fares","Purchased Transportation"
9008746,"$ 2,215,190.26",12/30/2019,ISSUED,,"Cook DuPage Transportation Co","1200 W Fulton St","Manual Invoice Entry",AUG'2019-SC,"$ 725,745.01",WIRE,3,"MANUAL LINE ENTRY",12/13/2019,3,4,"$ 29,536.31",11-53153-0000-508101-500-000000000-000000,"Purchased Transportation","Purchased Transportation"
9008746,"$ 2,215,190.26",12/30/2019,ISSUED,,"Cook DuPage Transportation Co","1200 W Fulton St","Manual Invoice Entry",AUG'2019-SC,"$ 725,745.01",WIRE,3,"MANUAL LINE ENTRY",12/13/2019,3,6,"$ 25,997.50",51-59101-0000-205104-000-000000000-000000,"Unredeemed Paratransit Fares","Purchased Transportation"
9008746,"$ 2,215,190.26",12/30/2019,ISSUED,,"Cook DuPage Transportation Co","1200 W Fulton St","Manual Invoice Entry",AUG'2019-SC,"$ 725,745.01",WIRE,3,"MANUAL LINE ENTRY",12/13/2019,3,3,"$ 9,883.49",11-53112-0000-508101-500-000000000-000000,"Purchased Transportation","Purchased Transportation"
9008746,"$ 2,215,190.26",12/30/2019,ISSUED,,"Cook DuPage Transportation Co","1200 W Fulton St","Manual Invoice Entry",AUG'2019-SC,"$ 725,745.01",WIRE,3,"MANUAL LINE ENTRY",12/13/2019,3,18,"$ -4,034.70",11-10101-5311-509913-501-000000000-000000,"General Expense",Miscellaneous
9008746,"$ 2,215,190.26",12/30/2019,ISSUED,,"Cook DuPage Transportation Co","1200 W Fulton St","Manual Invoice Entry",AUG'2019-SC,"$ 725,745.01",WIRE,3,"MANUAL LINE ENTRY",12/13/2019,3,7,"$ -25,997.50",51-57201-0000-401101-100-000000000-000000,"Passenger Fares","Purchased Transportation"
9008746,"$ 2,215,190.26",12/30/2019,ISSUED,,"Cook DuPage Transportation Co","1200 W Fulton St","Manual Invoice Entry",AUG'2019-SC,"$ 725,745.01",WIRE,3,"MANUAL LINE ENTRY",12/13/2019,3,11,"$ -3,156.00",11-53153-0000-401101-100-000000000-000000,"Passenger Fares","Purchased Transportation"
9008746,"$ 2,215,190.26",12/30/2019,ISSUED,,"Cook DuPage Transportation Co","1200 W Fulton St","Manual Invoice Entry",AUG'2019-SC,"$ 725,745.01",WIRE,3,"MANUAL LINE ENTRY",12/13/2019,3,16,"$ -2,932.77",11-53153-0000-508101-500-000000000-000000,"Purchased Transportation","Purchased Transportation"
9008746,"$ 2,215,190.26",12/30/2019,ISSUED,,"Cook DuPage Transportation Co","1200 W Fulton St","Manual Invoice Entry",AUG'2019-SC,"$ 725,745.01",WIRE,3,"MANUAL LINE ENTRY",12/13/2019,3,15,"$ -981.37",11-53112-0000-508101-500-000000000-000000,"Purchased Transportation","Purchased Transportation"
9008746,"$ 2,215,190.26",12/30/2019,ISSUED,,"Cook DuPage Transportation Co","1200 W Fulton St","Manual Invoice Entry",AUG'2019-SC,"$ 725,745.01",WIRE,3,"MANUAL LINE ENTRY",12/13/2019,3,5,"$ 152.96",51-57201-0000-508102-500-000000000-000000,"Call Center Expansion Costs","Purchased Transportation"
9008746,"$ 2,215,190.26",12/30/2019,ISSUED,,"Cook DuPage Transportation Co","1200 W Fulton St","Manual Invoice Entry",AUG'2019-SC,"$ 725,745.01",WIRE,3,"MANUAL LINE ENTRY",12/13/2019,3,17,"$ -15.19",51-57201-0000-508102-500-000000000-000000,"Call Center Expansion Costs","Purchased Transportation"
9008746,"$ 2,215,190.26",12/30/2019,ISSUED,,"Cook DuPage Transportation Co","1200 W Fulton St","Manual Invoice Entry",AUG'2019-SC,"$ 725,745.01",WIRE,3,"MANUAL LINE ENTRY",12/13/2019,3,14,"$ .00",51-57901-0000-508202-500-000000000-000000,"RTA Certification Expense","Purchased Transportation"
9008746,"$ 2,215,190.26",12/30/2019,ISSUED,,"Cook DuPage Transportation Co","1200 W Fulton St","Manual Invoice Entry",AUG'2019-SC,"$ 725,745.01",WIRE,3,"MANUAL LINE ENTRY",12/13/2019,3,10,"$ .00",11-53112-0000-401101-100-000000000-000000,"Passenger Fares","Purchased Transportation"
9008746,"$ 2,215,190.26",12/30/2019,ISSUED,,"Cook DuPage Transportation Co","1200 W Fulton St","Manual Invoice Entry",AUG'2019-SC,"$ 725,745.01",WIRE,3,"MANUAL LINE ENTRY",12/13/2019,3,9,"$ .00",51-57901-0000-401101-100-000000000-000000,"Passenger Fares","Purchased Transportation"
9008746,"$ 2,215,190.26",12/30/2019,ISSUED,,"Cook DuPage Transportation Co","1200 W Fulton St","Manual Invoice Entry",AUG'2019-SC,"$ 725,745.01",WIRE,3,"MANUAL LINE ENTRY",12/13/2019,3,2,"$ .00",51-57901-0000-508202-500-000000000-000000,"RTA Certification Expense","Purchased Transportation"
9008746,"$ 2,215,190.26",12/30/2019,ISSUED,,"Cook DuPage Transportation Co","1200 W Fulton St","Manual Invoice Entry",AUG'2019-SC,"$ 725,745.01",WIRE,3,"MANUAL LINE ENTRY",12/13/2019,3,12,"$ .00",11-54101-0000-508102-500-000000000-000000,"Call Center Expansion Costs","Purchased Transportation"
9008746,"$ 2,215,190.26",12/30/2019,ISSUED,,"Cook DuPage Transportation Co","1200 W Fulton St","Manual Invoice Entry",OCT'2019-SC,"$ 770,376.13",WIRE,3,"MANUAL LINE ENTRY",12/18/2019,3,11,"$ -3,046.00",11-53153-0000-401101-100-000000000-000000,"Passenger Fares","Purchased Transportation"
9008745,"$ 233.00",12/26/2019,ISSUED,,"Edenred Commuter Benefit Solutions LLC","320 Nevada St  Ste 401","Manual Invoice Entry",REFUNDEAM1119,"$ 99.00",WIRE,1,"MANUAL LINE ENTRY",12/26/2019,1,1,"$ 99.00",11-71101-0000-401211-100-000000000-000000,"Vanpool Fares VIP","Vanpool - Reimbursement"
9008745,"$ 233.00",12/26/2019,ISSUED,,"Edenred Commuter Benefit Solutions LLC","320 Nevada St  Ste 401","Manual Invoice Entry",REFUNDVH1119,"$ 134.00",WIRE,1,"MANUAL LINE ENTRY",12/26/2019,1,1,"$ 134.00",11-71101-0000-401211-100-000000000-000000,"Vanpool Fares VIP","Vanpool - Reimbursement"
9008744,"$ 8,158.96",12/27/2019,ISSUED,,"Village Bank and Trust","234 W Northwest Hwy","Manual Invoice Entry",BE122719,"$ 8,158.96",WIRE,1,"MANUAL LINE ENTRY",12/26/2019,1,1,"$ 8,158.96",11-10101-0000-202109-000-000000000-000000,"Flexible Spending Withheld","Payroll Deductions"
9008743,"$ 4,236.95",12/27/2019,ISSUED,,"Village of Schaumburg","Fifth Third Bank","Manual Invoice Entry",VS121919,"$ 4,236.95",WIRE,1,"MANUAL LINE ENTRY",12/24/2019,1,1,"$ 4,236.95",11-10101-0000-205113-000-000000000-000000,"Deferred Monthly Tickets","Misc Reimbursements"
9008742,"$ 32.14",12/27/2019,ISSUED,,"Principal Financial Group","Butterfield Centre","Manual Invoice Entry",SO122719,"$ 32.14",WIRE,1,"MANUAL LINE ENTRY",12/26/2019,1,1,"$ 32.14",11-22107-0000-202107-000-000000000-000000,"Pension Withheld","401k/Pension EE/ER Contribution"
9008741,"$ 16,276.34",12/27/2019,ISSUED,,"Principal Financial Group","Butterfield Centre","Manual Invoice Entry",FV122719,"$ 16,276.34",WIRE,1,"MANUAL LINE ENTRY",12/26/2019,1,1,"$ 16,276.34",11-22101-0000-202107-000-000000000-000000,"Pension Withheld","401k/Pension EE/ER Contribution"
9008740,"$ 22,847.69",12/27/2019,ISSUED,,"Principal Financial Group","Butterfield Centre","Manual Invoice Entry",RV122719,"$ 22,847.69",WIRE,1,"MANUAL LINE ENTRY",12/26/2019,1,1,"$ 22,847.69",11-22106-0000-202107-000-000000000-000000,"Pension Withheld","401k/Pension EE/ER Contribution"
9008739,"$ 65.70",12/27/2019,ISSUED,,"Wells Fargo Bank NA","733 Marquette Ave 5th Flr","Manual Invoice Entry",NO122719,"$ 65.70",WIRE,1,"MANUAL LINE ENTRY",12/26/2019,1,1,"$ 65.70",11-22103-0000-202107-000-000000000-000000,"Pension Withheld","401k/Pension EE/ER Contribution"
9008738,"$ 285.00",12/27/2019,ISSUED,,"Credit Union 1","450 E 22nd St","Manual Invoice Entry",EC122719,"$ 285.00",WIRE,1,"MANUAL LINE ENTRY",12/26/2019,1,1,"$ 285.00",11-22106-0000-202102-000-000000000-000000,"Credit Union Withheld","Payroll Deductions"
9008737,"$ 1,675.50",12/27/2019,ISSUED,,"Aurora Policeman's Credit Union","1200 E Indian Trail","Manual Invoice Entry",AP122719,"$ 1,675.50",WIRE,1,"MANUAL LINE ENTRY",12/26/2019,1,1,"$ 1,675.50",11-22101-0000-202102-000-000000000-000000,"Credit Union Withheld","Payroll Deductions"
9008736,"$ 96,778.22",12/23/2019,ISSUED,,"Great West Life & Annuity Ins",Empower,"Manual Invoice Entry",HQ122019,"$ 96,778.22",WIRE,8,"MANUAL LINE ENTRY",12/19/2019,8,1,"$ 69,331.99",11-10101-0000-202106-000-000000000-000000,"401K Withheld","401k/Pension EE/ER Contribution"
9008736,"$ 96,778.22",12/23/2019,ISSUED,,"Great West Life & Annuity Ins",Empower,"Manual Invoice Entry",HQ122019,"$ 96,778.22",WIRE,6,"MANUAL LINE ENTRY",12/19/2019,6,1,"$ 7,670.91",11-22104-0000-202106-000-000000000-000000,"401K Withheld","401k/Pension EE/ER Contribution"
9008736,"$ 96,778.22",12/23/2019,ISSUED,,"Great West Life & Annuity Ins",Empower,"Manual Invoice Entry",HQ122019,"$ 96,778.22",WIRE,5,"MANUAL LINE ENTRY",12/19/2019,5,1,"$ 4,413.19",11-22109-0000-202106-000-000000000-000000,"401K Withheld","401k/Pension EE/ER Contribution"
9008736,"$ 96,778.22",12/23/2019,ISSUED,,"Great West Life & Annuity Ins",Empower,"Manual Invoice Entry",HQ122019,"$ 96,778.22",WIRE,3,"MANUAL LINE ENTRY",12/19/2019,3,1,"$ 3,735.07",11-22108-0000-202106-000-000000000-000000,"401K Withheld","401k/Pension EE/ER Contribution"
9008736,"$ 96,778.22",12/23/2019,ISSUED,,"Great West Life & Annuity Ins",Empower,"Manual Invoice Entry",HQ122019,"$ 96,778.22",WIRE,2,"MANUAL LINE ENTRY",12/19/2019,2,1,"$ 3,685.13",11-22107-0000-202106-000-000000000-000000,"401K Withheld","401k/Pension EE/ER Contribution"
9008736,"$ 96,778.22",12/23/2019,ISSUED,,"Great West Life & Annuity Ins",Empower,"Manual Invoice Entry",HQ122019,"$ 96,778.22",WIRE,4,"MANUAL LINE ENTRY",12/19/2019,4,1,"$ 2,645.55",11-22102-0000-202106-000-000000000-000000,"401K Withheld","401k/Pension EE/ER Contribution"
9008736,"$ 96,778.22",12/23/2019,ISSUED,,"Great West Life & Annuity Ins",Empower,"Manual Invoice Entry",HQ122019,"$ 96,778.22",WIRE,1,"MANUAL LINE ENTRY",12/19/2019,1,1,"$ 1,338.24",11-22103-0000-202106-000-000000000-000000,"401K Withheld","401k/Pension EE/ER Contribution"
9008736,"$ 96,778.22",12/23/2019,ISSUED,,"Great West Life & Annuity Ins",Empower,"Manual Invoice Entry",HQ122019,"$ 96,778.22",WIRE,7,"MANUAL LINE ENTRY",12/19/2019,7,1,"$ 3,958.14",11-22105-0000-202106-000-000000000-000000,"401K Withheld","401k/Pension EE/ER Contribution"
9008735,"$ 43,949.57",12/20/2019,ISSUED,,"Underwriters Safety & Claims","PO Box 23790","Manual Invoice Entry",WC121919,"$ 43,949.57",WIRE,1,"MANUAL LINE ENTRY",12/19/2019,1,1,"$ 43,949.57",11-10101-0000-101204-000-000000000-000000,"Workers Compensation Claims Account",Claims
9008734,"$ 6,823.76",12/20/2019,ISSUED,,"Village Bank and Trust","234 W Northwest Hwy","Manual Invoice Entry",BE121919,"$ 6,823.76",WIRE,1,"MANUAL LINE ENTRY",12/19/2019,1,1,"$ 6,823.76",11-10101-0000-202109-000-000000000-000000,"Flexible Spending Withheld","Payroll Deductions"
9008733,"$ 72,552.95",12/20/2019,ISSUED,,"Principal Financial Group","Butterfield Centre","Manual Invoice Entry",SO122019,"$ 72,552.95",WIRE,1,"MANUAL LINE ENTRY",12/19/2019,1,1,"$ 72,552.95",11-22107-0000-202107-000-000000000-000000,"Pension Withheld","401k/Pension EE/ER Contribution"
9008732,"$ 29,401.34",12/20/2019,ISSUED,,"Principal Financial Group","Butterfield Centre","Manual Invoice Entry",SW122019,"$ 29,401.34",WIRE,1,"MANUAL LINE ENTRY",12/19/2019,1,1,"$ 29,401.34",11-22108-0000-202107-000-000000000-000000,"Pension Withheld","401k/Pension EE/ER Contribution"
9008731,"$ 80,036.66",12/20/2019,ISSUED,,"Principal Financial Group","Butterfield Centre","Manual Invoice Entry",NW122019,"$ 80,036.66",WIRE,1,"MANUAL LINE ENTRY",12/19/2019,1,1,"$ 80,036.66",11-22104-0000-202107-000-000000000-000000,"Pension Withheld","401k/Pension EE/ER Contribution"
9008730,"$ 18,959.32",12/20/2019,ISSUED,,"Principal Financial Group","Butterfield Centre","Manual Invoice Entry",HE122019,"$ 18,959.32",WIRE,1,"MANUAL LINE ENTRY",12/19/2019,1,1,"$ 18,959.32",11-22102-0000-202107-000-000000000-000000,"Pension Withheld","401k/Pension EE/ER Contribution"
9008729,"$ 15,084.35",12/20/2019,ISSUED,,"Principal Financial Group","Butterfield Centre","Manual Invoice Entry",NS122019,"$ 15,084.35",WIRE,1,"MANUAL LINE ENTRY",12/19/2019,1,1,"$ 15,084.35",11-22105-0000-202107-000-000000000-000000,"Pension Withheld","401k/Pension EE/ER Contribution"
9008728,"$ 101,453.85",12/20/2019,ISSUED,,"Wells Fargo Bank NA","733 Marquette Ave 5th Flr","Manual Invoice Entry",WE122019,"$ 85,986.54",WIRE,1,"MANUAL LINE ENTRY",12/19/2019,1,1,"$ 85,986.54",11-22109-0000-202107-000-000000000-000000,"Pension Withheld","401k/Pension EE/ER Contribution"
9008728,"$ 101,453.85",12/20/2019,ISSUED,,"Wells Fargo Bank NA","733 Marquette Ave 5th Flr","Manual Invoice Entry",NO122019,"$ 15,467.31",WIRE,1,"MANUAL LINE ENTRY",12/19/2019,1,1,"$ 15,467.31",11-22103-0000-202107-000-000000000-000000,"Pension Withheld","401k/Pension EE/ER Contribution"
9008727,"$ 475.00",12/20/2019,ISSUED,,"United Credit Union","4444 S Pulaski","Manual Invoice Entry",UC122019,"$ 475.00",WIRE,1,"MANUAL LINE ENTRY",12/19/2019,1,1,"$ 425.00",11-22108-0000-202102-000-000000000-000000,"Credit Union Withheld","Payroll Deductions"
9008727,"$ 475.00",12/20/2019,ISSUED,,"United Credit Union","4444 S Pulaski","Manual Invoice Entry",UC122019,"$ 475.00",WIRE,2,"MANUAL LINE ENTRY",12/19/2019,2,1,"$ 50.00",11-10101-0000-202102-000-000000000-000000,"Credit Union Withheld","Payroll Deductions"
9008726,"$ 50,107.33",12/20/2019,ISSUED,,"Northside L Federal C U - West Town","1419 W Roosevelt Rd","Manual Invoice Entry",NL122019,"$ 50,107.33",WIRE,3,"MANUAL LINE ENTRY",12/19/2019,3,1,"$ 35.00",11-22105-0000-202102-000-000000000-000000,"Credit Union Withheld","Payroll Deductions"
9008726,"$ 50,107.33",12/20/2019,ISSUED,,"Northside L Federal C U - West Town","1419 W Roosevelt Rd","Manual Invoice Entry",NL122019,"$ 50,107.33",WIRE,1,"MANUAL LINE ENTRY",12/19/2019,1,1,"$ 999.00",11-10101-0000-202102-000-000000000-000000,"Credit Union Withheld","Payroll Deductions"
9008726,"$ 50,107.33",12/20/2019,ISSUED,,"Northside L Federal C U - West Town","1419 W Roosevelt Rd","Manual Invoice Entry",NL122019,"$ 50,107.33",WIRE,6,"MANUAL LINE ENTRY",12/19/2019,6,1,"$ 33,055.00",11-22109-0000-202102-000-000000000-000000,"Credit Union Withheld","Payroll Deductions"
9008726,"$ 50,107.33",12/20/2019,ISSUED,,"Northside L Federal C U - West Town","1419 W Roosevelt Rd","Manual Invoice Entry",NL122019,"$ 50,107.33",WIRE,4,"MANUAL LINE ENTRY",12/19/2019,4,1,"$ 2,839.00",11-22104-0000-202102-000-000000000-000000,"Credit Union Withheld","Payroll Deductions"
9008726,"$ 50,107.33",12/20/2019,ISSUED,,"Northside L Federal C U - West Town","1419 W Roosevelt Rd","Manual Invoice Entry",NL122019,"$ 50,107.33",WIRE,2,"MANUAL LINE ENTRY",12/19/2019,2,1,"$ 10,579.33",11-22107-0000-202102-000-000000000-000000,"Credit Union Withheld","Payroll Deductions"
9008726,"$ 50,107.33",12/20/2019,ISSUED,,"Northside L Federal C U - West Town","1419 W Roosevelt Rd","Manual Invoice Entry",NL122019,"$ 50,107.33",WIRE,5,"MANUAL LINE ENTRY",12/19/2019,5,1,"$ 2,600.00",11-22108-0000-202102-000-000000000-000000,"Credit Union Withheld","Payroll Deductions"
9008725,"$ 50.00",12/20/2019,ISSUED,,"Credit Union 1","450 E 22nd St","Manual Invoice Entry",E122019,"$ 50.00",WIRE,1,"MANUAL LINE ENTRY",12/19/2019,1,1,"$ 50.00",11-22108-0000-202102-000-000000000-000000,"Credit Union Withheld","Payroll Deductions"
9008724,"$ 2,016.00",12/20/2019,ISSUED,,"Amalgamated Transit Union","Division 900","Manual Invoice Entry",AT122019,"$ 2,016.00",WIRE,1,"MANUAL LINE ENTRY",12/19/2019,1,1,"$ 2,016.00",11-22103-0000-202111-000-000000000-000000,"Union Dues Withheld","Payroll Deductions"
9008723,"$ 1,836.25",12/20/2019,ISSUED,,"Abri Credit Union","1350 W Renwick Rd","Manual Invoice Entry",PT0122019,"$ 1,836.25",WIRE,2,"MANUAL LINE ENTRY",12/19/2019,2,1,"$ 1,102.50",11-22102-0000-202102-000-000000000-000000,"Credit Union Withheld","Payroll Deductions"
9008723,"$ 1,836.25",12/20/2019,ISSUED,,"Abri Credit Union","1350 W Renwick Rd","Manual Invoice Entry",PT0122019,"$ 1,836.25",WIRE,1,"MANUAL LINE ENTRY",12/19/2019,1,1,"$ 733.75",11-10101-0000-202102-000-000000000-000000,"Credit Union Withheld","Payroll Deductions"
9008722,"$ 49,992.76",12/19/2019,ISSUED,,"The Standard","300 North Martingale Rd","Manual Invoice Entry",144253122019,"$ 49,992.76",WIRE,1,"MANUAL LINE ENTRY",12/17/2019,1,1,"$ 49,992.76",11-10101-0000-205501-000-000000000-000000,"Health Insurance Reserve - Current","Health Insurance"
9008721,"$ 2,348.00",12/19/2019,ISSUED,,"Fidelity Security Life Insurance Eye","FSL EyeMed Premiums  9633314","Manual Invoice Entry",9633314122019,"$ 2,348.00",WIRE,1,"MANUAL LINE ENTRY",12/17/2019,1,1,"$ 2,348.00",11-10101-0000-205501-000-000000000-000000,"Health Insurance Reserve - Current","Health Insurance"
9008720,"$ 136,651.45",12/19/2019,ISSUED,,"OptumRx Inc","c/o JP Morgan Chase","Manual Invoice Entry",514576122019,"$ 136,651.45",WIRE,1,"HEADER MATCH",12/17/2019,1,1,"$ 136,651.45",11-10101-0000-205501-000-000000000-000000,"Health Insurance Reserve - Current","Health Insurance"
9008719,"$ 2,178,595.42",12/19/2019,ISSUED,,"Blue Cross Blue Shield of Illinois","PO Box 1186","Manual Invoice Entry","264413 122019","$ 2,178,595.42",WIRE,1,"HEADER MATCH",12/13/2019,1,1,"$ 2,178,595.42",11-10101-0000-205501-000-000000000-000000,"Health Insurance Reserve - Current","Health Insurance"
9008718,"$ 7,628.16",12/18/2019,ISSUED,,Metlife,"Dept CH 10579","Manual Invoice Entry",301585122019,"$ 7,628.16",WIRE,1,"MANUAL LINE ENTRY",12/17/2019,1,1,"$ 7,628.16",11-10101-0000-205501-000-000000000-000000,"Health Insurance Reserve - Current","Health Insurance"
9008717,"$ 101,607.00",12/18/2019,ISSUED,,"JP Morgan Chase","Pace Metlife 0475020138","Manual Invoice Entry",301585122019,"$ 101,607.00",WIRE,1,"MANUAL LINE ENTRY",12/17/2019,1,1,"$ 101,607.00",11-10101-0000-205501-000-000000000-000000,"Health Insurance Reserve - Current","Health Insurance"
9008716,"$ 11,032.07",12/17/2019,ISSUED,,"Village Bank and Trust","234 W Northwest Hwy","Manual Invoice Entry",BE2020PF,"$ 11,032.07",WIRE,1,"MANUAL LINE ENTRY",12/16/2019,1,1,"$ 11,032.07",11-10101-0000-202109-000-000000000-000000,"Flexible Spending Withheld","Payroll Deductions"
9008715,"$ 1,200,000.00",12/16/2019,ISSUED,,"The Huntington National Bank","Equipment Finance Division","Manual Invoice Entry",121519PRCPLPYMT,"$ 1,200,000.00",WIRE,1,"MANUAL LINE ENTRY",12/03/2019,1,1,"$ 1,200,000.00",11-10101-0000-221201-000-000000000-000000,"Bonds Payable - Long Term","Bond Payment"
9008714,"$ 108,000.00",12/16/2019,ISSUED,,"The Huntington National Bank","Equipment Finance Division","Manual Invoice Entry",121519INTPYMT,"$ 108,000.00",WIRE,1,"MANUAL LINE ENTRY",12/03/2019,1,1,"$ 108,000.00",11-10101-0000-205601-000-000000000-000000,"Interest Payable","Bond Payment"
9008713,"$ 10,000.00",12/16/2019,ISSUED,,"Neopost USA Inc","PO Box 1183","Manual Invoice Entry",N121619HQ,"$ 10,000.00",WIRE,1,"MANUAL LINE ENTRY",12/16/2019,1,1,"$ 10,000.00",11-10101-7052-503901-500-000000000-000000,Postage,Services
9008712,"$ 152.50",12/16/2019,ISSUED,,"Edenred Commuter Benefit Solutions LLC","Edenred USA","Manual Invoice Entry",000532435,"$ 152.50",WIRE,1,"MANUAL LINE ENTRY",12/13/2019,1,1,"$ 152.50",11-10101-0000-202114-000-000000000-000000,"Commuter Benefits Withheld","Payroll Deductions"
9008711,"$ 5,883.28",12/16/2019,ISSUED,,"Great West Life & Annuity Ins",Empower,"Manual Invoice Entry",HQ121319,"$ 5,883.28",WIRE,1,"MANUAL LINE ENTRY",12/12/2019,1,1,"$ 2,338.60",11-22101-0000-202106-000-000000000-000000,"401K Withheld","401k/Pension EE/ER Contribution"
9008711,"$ 5,883.28",12/16/2019,ISSUED,,"Great West Life & Annuity Ins",Empower,"Manual Invoice Entry",HQ121319,"$ 5,883.28",WIRE,2,"MANUAL LINE ENTRY",12/12/2019,2,1,"$ 3,544.68",11-22106-0000-202106-000-000000000-000000,"401K Withheld","401k/Pension EE/ER Contribution"
9008710,"$ 2,729.66",12/13/2019,ISSUED,,"Village of Schaumburg","Fifth Third Bank","Manual Invoice Entry",VS120519,"$ 2,729.66",WIRE,1,"MANUAL LINE ENTRY",12/08/2019,1,1,"$ 2,729.66",11-10101-0000-205113-000-000000000-000000,"Deferred Monthly Tickets","Misc Reimbursements"
9008709,"$ 5,149.58",12/13/2019,ISSUED,,"Village Bank and Trust","234 W Northwest Hwy","Manual Invoice Entry",BE121219,"$ 5,149.58",WIRE,1,"MANUAL LINE ENTRY",12/12/2019,1,1,"$ 5,149.58",11-10101-0000-202109-000-000000000-000000,"Flexible Spending Withheld","Payroll Deductions"
9008708,"$ 16,237.11",12/13/2019,ISSUED,,"Principal Financial Group","Butterfield Centre","Manual Invoice Entry",FV121319,"$ 16,237.11",WIRE,1,"MANUAL LINE ENTRY",12/12/2019,1,1,"$ 16,237.11",11-22101-0000-202107-000-000000000-000000,"Pension Withheld","401k/Pension EE/ER Contribution"
9008707,"$ 25,920.30",12/13/2019,ISSUED,,"Principal Financial Group","Butterfield Centre","Manual Invoice Entry",RV121319,"$ 25,920.30",WIRE,1,"MANUAL LINE ENTRY",12/12/2019,1,1,"$ 25,920.30",11-22106-0000-202107-000-000000000-000000,"Pension Withheld","401k/Pension EE/ER Contribution"
9008706,"$ 285.00",12/13/2019,ISSUED,,"Credit Union 1","450 E 22nd St","Manual Invoice Entry",EC121319,"$ 285.00",WIRE,1,"MANUAL LINE ENTRY",12/12/2019,1,1,"$ 285.00",11-22106-0000-202102-000-000000000-000000,"Credit Union Withheld","Payroll Deductions"
9008705,"$ 1,675.50",12/13/2019,ISSUED,,"Aurora Policeman's Credit Union","1200 E Indian Trail","Manual Invoice Entry",AP121319,"$ 1,675.50",WIRE,1,"MANUAL LINE ENTRY",12/12/2019,1,1,"$ 1,675.50",11-22101-0000-202102-000-000000000-000000,"Credit Union Withheld","Payroll Deductions"
9008704,"$ 33,791.29",12/11/2019,ISSUED,,"Underwriters Safety & Claims","PO Box 23790","Manual Invoice Entry",WC121019,"$ 33,791.29",WIRE,1,"MANUAL LINE ENTRY",12/10/2019,1,1,"$ 33,791.29",11-10101-0000-101204-000-000000000-000000,"Workers Compensation Claims Account",Claims
9008703,"$ 101,233.32",12/09/2019,ISSUED,,"Great West Life & Annuity Ins",Empower,"Manual Invoice Entry",HQ120619,"$ 101,233.32",WIRE,8,"MANUAL LINE ENTRY",12/05/2019,8,1,"$ 72,693.13",11-10101-0000-202106-000-000000000-000000,"401K Withheld","401k/Pension EE/ER Contribution"
9008703,"$ 101,233.32",12/09/2019,ISSUED,,"Great West Life & Annuity Ins",Empower,"Manual Invoice Entry",HQ120619,"$ 101,233.32",WIRE,6,"MANUAL LINE ENTRY",12/05/2019,6,1,"$ 7,486.77",11-22104-0000-202106-000-000000000-000000,"401K Withheld","401k/Pension EE/ER Contribution"
9008703,"$ 101,233.32",12/09/2019,ISSUED,,"Great West Life & Annuity Ins",Empower,"Manual Invoice Entry",HQ120619,"$ 101,233.32",WIRE,7,"MANUAL LINE ENTRY",12/05/2019,7,1,"$ 4,390.81",11-22105-0000-202106-000-000000000-000000,"401K Withheld","401k/Pension EE/ER Contribution"
9008703,"$ 101,233.32",12/09/2019,ISSUED,,"Great West Life & Annuity Ins",Empower,"Manual Invoice Entry",HQ120619,"$ 101,233.32",WIRE,1,"MANUAL LINE ENTRY",12/05/2019,1,1,"$ 2,338.24",11-22103-0000-202106-000-000000000-000000,"401K Withheld","401k/Pension EE/ER Contribution"
9008703,"$ 101,233.32",12/09/2019,ISSUED,,"Great West Life & Annuity Ins",Empower,"Manual Invoice Entry",HQ120619,"$ 101,233.32",WIRE,2,"MANUAL LINE ENTRY",12/05/2019,2,1,"$ 3,681.63",11-22107-0000-202106-000-000000000-000000,"401K Withheld","401k/Pension EE/ER Contribution"
9008703,"$ 101,233.32",12/09/2019,ISSUED,,"Great West Life & Annuity Ins",Empower,"Manual Invoice Entry",HQ120619,"$ 101,233.32",WIRE,9,"MANUAL LINE ENTRY",12/05/2019,9,1,"$ 3,625.48",11-22108-0000-202106-000-000000000-000000,"401K Withheld","401k/Pension EE/ER Contribution"
9008703,"$ 101,233.32",12/09/2019,ISSUED,,"Great West Life & Annuity Ins",Empower,"Manual Invoice Entry",HQ120619,"$ 101,233.32",WIRE,4,"MANUAL LINE ENTRY",12/05/2019,4,1,"$ 2,645.55",11-22102-0000-202106-000-000000000-000000,"401K Withheld","401k/Pension EE/ER Contribution"
9008703,"$ 101,233.32",12/09/2019,ISSUED,,"Great West Life & Annuity Ins",Empower,"Manual Invoice Entry",HQ120619,"$ 101,233.32",WIRE,5,"MANUAL LINE ENTRY",12/05/2019,5,1,"$ 4,371.71",11-22109-0000-202106-000-000000000-000000,"401K Withheld","401k/Pension EE/ER Contribution"
9008702,"$ 3,824,201.25",12/06/2019,ISSUED,,"Cook DuPage Transportation Co","1200 W Fulton St","Manual Invoice Entry",OCT'2019,"$ 3,824,201.25",WIRE,3,"MANUAL LINE ENTRY",10/31/2019,3,1,"$ 4,312,587.04",51-58602-0000-508101-500-000000000-000000,"Purchased Transportation","Purchased Transportation"
9008702,"$ 3,824,201.25",12/06/2019,ISSUED,,"Cook DuPage Transportation Co","1200 W Fulton St","Manual Invoice Entry",OCT'2019,"$ 3,824,201.25",WIRE,1,"HEADER MATCH",10/31/2019,1,1,"$ 3,824,201.25",51-58602-0000-508101-500-000000000-000000,"Purchased Transportation","Purchased Transportation"
9008702,"$ 3,824,201.25",12/06/2019,ISSUED,,"Cook DuPage Transportation Co","1200 W Fulton St","Manual Invoice Entry",OCT'2019,"$ 3,824,201.25",WIRE,2,"MANUAL LINE ENTRY",10/31/2019,2,1,"$ -3,824,201.25",51-58602-0000-508101-500-000000000-000000,"Purchased Transportation","Purchased Transportation"
9008702,"$ 3,824,201.25",12/06/2019,ISSUED,,"Cook DuPage Transportation Co","1200 W Fulton St","Manual Invoice Entry",OCT'2019,"$ 3,824,201.25",WIRE,3,"MANUAL LINE ENTRY",10/31/2019,3,8,"$ -148,958.50",51-58602-0000-401101-100-000000000-000000,"Passenger Fares","Purchased Transportation"
9008702,"$ 3,824,201.25",12/06/2019,ISSUED,,"Cook DuPage Transportation Co","1200 W Fulton St","Manual Invoice Entry",OCT'2019,"$ 3,824,201.25",WIRE,3,"MANUAL LINE ENTRY",10/31/2019,3,7,"$ -103,550.25",51-58602-0000-401101-100-000000000-000000,"Passenger Fares","Purchased Transportation"
9008702,"$ 3,824,201.25",12/06/2019,ISSUED,,"Cook DuPage Transportation Co","1200 W Fulton St","Manual Invoice Entry",OCT'2019,"$ 3,824,201.25",WIRE,3,"MANUAL LINE ENTRY",10/31/2019,3,3,"$ .00",51-57901-0000-508202-500-000000000-000000,"RTA Certification Expense","Purchased Transportation"
9008702,"$ 3,824,201.25",12/06/2019,ISSUED,,"Cook DuPage Transportation Co","1200 W Fulton St","Manual Invoice Entry",OCT'2019,"$ 3,824,201.25",WIRE,3,"MANUAL LINE ENTRY",10/31/2019,3,12,"$ -354,400.39",51-58602-0000-508101-500-000000000-000000,"Purchased Transportation","Purchased Transportation"
9008702,"$ 3,824,201.25",12/06/2019,ISSUED,,"Cook DuPage Transportation Co","1200 W Fulton St","Manual Invoice Entry",OCT'2019,"$ 3,824,201.25",WIRE,3,"MANUAL LINE ENTRY",10/31/2019,3,2,"$ 31,247.67",51-58501-0000-508202-500-000000000-000000,"RTA Certification Expense","Purchased Transportation"
9008702,"$ 3,824,201.25",12/06/2019,ISSUED,,"Cook DuPage Transportation Co","1200 W Fulton St","Manual Invoice Entry",OCT'2019,"$ 3,824,201.25",WIRE,3,"MANUAL LINE ENTRY",10/31/2019,3,15,"$ -13,706.70",51-59101-5311-509913-501-000000000-000000,"General Expense",Miscellaneous
9008702,"$ 3,824,201.25",12/06/2019,ISSUED,,"Cook DuPage Transportation Co","1200 W Fulton St","Manual Invoice Entry",OCT'2019,"$ 3,824,201.25",WIRE,3,"MANUAL LINE ENTRY",10/31/2019,3,13,"$ -2,567.87",51-58501-0000-508202-500-000000000-000000,"RTA Certification Expense","Purchased Transportation"
9008702,"$ 3,824,201.25",12/06/2019,ISSUED,,"Cook DuPage Transportation Co","1200 W Fulton St","Manual Invoice Entry",OCT'2019,"$ 3,824,201.25",WIRE,3,"MANUAL LINE ENTRY",10/31/2019,3,14,"$ .00",51-57901-0000-508202-500-000000000-000000,"RTA Certification Expense","Purchased Transportation"
9008702,"$ 3,824,201.25",12/06/2019,ISSUED,,"Cook DuPage Transportation Co","1200 W Fulton St","Manual Invoice Entry",OCT'2019,"$ 3,824,201.25",WIRE,3,"MANUAL LINE ENTRY",10/31/2019,3,6,"$ 103,550.25",51-59101-0000-205104-000-000000000-000000,"Unredeemed Paratransit Fares","Purchased Transportation"
9008701,"$ 113,138.66",12/06/2019,ISSUED,,"SCR Medical Transportation Inc","8801-25 S Greenwood","Manual Invoice Entry",T102019/SC,"$ 113,138.66",WIRE,3,"MANUAL LINE ENTRY",10/31/2019,3,1,"$ 138,006.97",51-57201-0000-508101-500-000000000-000000,"Purchased Transportation","Purchased Transportation"
9008701,"$ 113,138.66",12/06/2019,ISSUED,,"SCR Medical Transportation Inc","8801-25 S Greenwood","Manual Invoice Entry",T102019/SC,"$ 113,138.66",WIRE,1,"HEADER MATCH",10/31/2019,1,1,"$ 113,138.66",51-57201-0000-508101-500-000000000-000000,"Purchased Transportation","Purchased Transportation"
9008701,"$ 113,138.66",12/06/2019,ISSUED,,"SCR Medical Transportation Inc","8801-25 S Greenwood","Manual Invoice Entry",T102019/SC,"$ 113,138.66",WIRE,2,"MANUAL LINE ENTRY",10/31/2019,2,1,"$ -113,138.66",51-57201-0000-508101-500-000000000-000000,"Purchased Transportation","Purchased Transportation"
9008701,"$ 113,138.66",12/06/2019,ISSUED,,"SCR Medical Transportation Inc","8801-25 S Greenwood","Manual Invoice Entry",T102019/SC,"$ 113,138.66",WIRE,3,"MANUAL LINE ENTRY",10/31/2019,3,8,"$ -19,458.78",51-57201-0000-508101-500-000000000-000000,"Purchased Transportation","Purchased Transportation"
9008701,"$ 113,138.66",12/06/2019,ISSUED,,"SCR Medical Transportation Inc","8801-25 S Greenwood","Manual Invoice Entry",T102019/SC,"$ 113,138.66",WIRE,3,"MANUAL LINE ENTRY",10/31/2019,3,5,"$ -10.50",51-57201-0000-508102-500-000000000-000000,"Call Center Expansion Costs","Purchased Transportation"
9008701,"$ 113,138.66",12/06/2019,ISSUED,,"SCR Medical Transportation Inc","8801-25 S Greenwood","Manual Invoice Entry",T102019/SC,"$ 113,138.66",WIRE,3,"MANUAL LINE ENTRY",10/31/2019,3,6,"$ -3,601.00",51-57201-0000-401101-100-000000000-000000,"Passenger Fares","Purchased Transportation"
9008701,"$ 113,138.66",12/06/2019,ISSUED,,"SCR Medical Transportation Inc","8801-25 S Greenwood","Manual Invoice Entry",T102019/SC,"$ 113,138.66",WIRE,3,"MANUAL LINE ENTRY",10/31/2019,3,3,"$ 107.12",51-57201-0000-508102-500-000000000-000000,"Call Center Expansion Costs","Purchased Transportation"
9008701,"$ 113,138.66",12/06/2019,ISSUED,,"SCR Medical Transportation Inc","8801-25 S Greenwood","Manual Invoice Entry",T102019/SC,"$ 113,138.66",WIRE,3,"MANUAL LINE ENTRY",10/31/2019,3,2,"$ 25.35",11-53112-0000-508101-500-000000000-000000,"Purchased Transportation","Purchased Transportation"
9008701,"$ 113,138.66",12/06/2019,ISSUED,,"SCR Medical Transportation Inc","8801-25 S Greenwood","Manual Invoice Entry",T102019/SC,"$ 113,138.66",WIRE,3,"MANUAL LINE ENTRY",10/31/2019,3,7,"$ 3,601.00",51-59101-0000-205104-000-000000000-000000,"Unredeemed Paratransit Fares","Purchased Transportation"
9008701,"$ 113,138.66",12/06/2019,ISSUED,,"SCR Medical Transportation Inc","8801-25 S Greenwood","Manual Invoice Entry",T102019/SC,"$ 113,138.66",WIRE,3,"MANUAL LINE ENTRY",10/31/2019,3,4,"$ -5,531.50",51-57201-0000-401101-100-000000000-000000,"Passenger Fares","Purchased Transportation"
9008700,"$ 490,462.02",12/06/2019,ISSUED,,"SCR Medical Transportation Inc","8801-25 S Greenwood","Manual Invoice Entry",OCT'2019/CALL,"$ 490,462.02",WIRE,6,"HEADER MATCH",10/31/2019,6,1,"$ 366,637.72",51-58604-0000-508102-500-000000000-000000,"Call Center Expansion Costs","Purchased Transportation"
9008700,"$ 490,462.02",12/06/2019,ISSUED,,"SCR Medical Transportation Inc","8801-25 S Greenwood","Manual Invoice Entry",OCT'2019/CALL,"$ 490,462.02",WIRE,5,"HEADER MATCH",10/31/2019,5,1,"$ 58,921.00",51-57201-0000-508102-500-000000000-000000,"Call Center Expansion Costs","Purchased Transportation"
9008700,"$ 490,462.02",12/06/2019,ISSUED,,"SCR Medical Transportation Inc","8801-25 S Greenwood","Manual Invoice Entry",OCT'2019/CALL,"$ 490,462.02",WIRE,3,"HEADER MATCH",10/31/2019,3,1,"$ 1,070.17",11-54201-0000-508102-500-000000000-000000,"Call Center Expansion Costs","Purchased Transportation"
9008700,"$ 490,462.02",12/06/2019,ISSUED,,"SCR Medical Transportation Inc","8801-25 S Greenwood","Manual Invoice Entry",OCT'2019/CALL,"$ 490,462.02",WIRE,1,"HEADER MATCH",10/31/2019,1,1,"$ 18,213.87",11-54501-0000-508102-500-000000000-000000,"Call Center Expansion Costs","Purchased Transportation"
9008700,"$ 490,462.02",12/06/2019,ISSUED,,"SCR Medical Transportation Inc","8801-25 S Greenwood","Manual Invoice Entry",OCT'2019/CALL,"$ 490,462.02",WIRE,4,"HEADER MATCH",10/31/2019,4,1,"$ 9,278.93",11-54202-0000-508102-500-000000000-000000,"Call Center Expansion Costs","Purchased Transportation"
9008700,"$ 490,462.02",12/06/2019,ISSUED,,"SCR Medical Transportation Inc","8801-25 S Greenwood","Manual Invoice Entry",OCT'2019/CALL,"$ 490,462.02",WIRE,2,"HEADER MATCH",10/31/2019,2,1,"$ 36,340.33",11-54101-0000-508102-500-000000000-000000,"Call Center Expansion Costs","Purchased Transportation"
9008699,"$ 133,421.84",12/06/2019,ISSUED,,"SCR Medical Transportation Inc","8801-25 S Greenwood","Manual Invoice Entry",T102019/ADA,"$ 133,421.84",WIRE,3,"MANUAL LINE ENTRY",10/31/2019,3,1,"$ 175,328.62",51-58606-0000-508101-500-000000000-000000,"Purchased Transportation","Purchased Transportation"
9008699,"$ 133,421.84",12/06/2019,ISSUED,,"SCR Medical Transportation Inc","8801-25 S Greenwood","Manual Invoice Entry",T102019/ADA,"$ 133,421.84",WIRE,1,"HEADER MATCH",10/31/2019,1,1,"$ 133,421.84",51-58606-0000-508101-500-000000000-000000,"Purchased Transportation","Purchased Transportation"
9008699,"$ 133,421.84",12/06/2019,ISSUED,,"SCR Medical Transportation Inc","8801-25 S Greenwood","Manual Invoice Entry",T102019/ADA,"$ 133,421.84",WIRE,2,"MANUAL LINE ENTRY",10/31/2019,2,1,"$ -133,421.84",51-58606-0000-508101-500-000000000-000000,"Purchased Transportation","Purchased Transportation"
9008699,"$ 133,421.84",12/06/2019,ISSUED,,"SCR Medical Transportation Inc","8801-25 S Greenwood","Manual Invoice Entry",T102019/ADA,"$ 133,421.84",WIRE,3,"MANUAL LINE ENTRY",10/31/2019,3,3,"$ -7,325.50",51-58606-0000-401101-100-000000000-000000,"Passenger Fares","Purchased Transportation"
9008699,"$ 133,421.84",12/06/2019,ISSUED,,"SCR Medical Transportation Inc","8801-25 S Greenwood","Manual Invoice Entry",T102019/ADA,"$ 133,421.84",WIRE,3,"MANUAL LINE ENTRY",10/31/2019,3,4,"$ -6.50",51-58606-0000-508102-500-000000000-000000,"Call Center Expansion Costs","Purchased Transportation"
9008699,"$ 133,421.84",12/06/2019,ISSUED,,"SCR Medical Transportation Inc","8801-25 S Greenwood","Manual Invoice Entry",T102019/ADA,"$ 133,421.84",WIRE,3,"MANUAL LINE ENTRY",10/31/2019,3,5,"$ -4,488.25",51-58606-0000-401101-100-000000000-000000,"Passenger Fares","Purchased Transportation"
9008699,"$ 133,421.84",12/06/2019,ISSUED,,"SCR Medical Transportation Inc","8801-25 S Greenwood","Manual Invoice Entry",T102019/ADA,"$ 133,421.84",WIRE,3,"MANUAL LINE ENTRY",10/31/2019,3,7,"$ -34,627.76",51-58606-0000-508101-500-000000000-000000,"Purchased Transportation","Purchased Transportation"
9008699,"$ 133,421.84",12/06/2019,ISSUED,,"SCR Medical Transportation Inc","8801-25 S Greenwood","Manual Invoice Entry",T102019/ADA,"$ 133,421.84",WIRE,3,"MANUAL LINE ENTRY",10/31/2019,3,2,"$ 52.98",51-58606-0000-508102-500-000000000-000000,"Call Center Expansion Costs","Purchased Transportation"
9008699,"$ 133,421.84",12/06/2019,ISSUED,,"SCR Medical Transportation Inc","8801-25 S Greenwood","Manual Invoice Entry",T102019/ADA,"$ 133,421.84",WIRE,3,"MANUAL LINE ENTRY",10/31/2019,3,6,"$ 4,488.25",51-59101-0000-205104-000-000000000-000000,"Unredeemed Paratransit Fares","Purchased Transportation"
9008698,"$ 81,648.89",12/06/2019,ISSUED,,"Principal Financial Group","Butterfield Centre","Manual Invoice Entry",NW120619,"$ 81,648.89",WIRE,1,"MANUAL LINE ENTRY",12/05/2019,1,1,"$ 81,648.89",11-22104-0000-202107-000-000000000-000000,"Pension Withheld","401k/Pension EE/ER Contribution"
9008697,"$ 3,057.28",12/06/2019,ISSUED,,"Village Bank and Trust","234 W Northwest Hwy","Manual Invoice Entry",BE120519,"$ 3,057.28",WIRE,1,"MANUAL LINE ENTRY",12/05/2019,1,1,"$ 3,057.28",11-10101-0000-202109-000-000000000-000000,"Flexible Spending Withheld","Payroll Deductions"
9008696,"$ 29,776.86",12/06/2019,ISSUED,,"Principal Financial Group","Butterfield Centre","Manual Invoice Entry",SW120619,"$ 29,776.86",WIRE,1,"MANUAL LINE ENTRY",12/05/2019,1,1,"$ 29,776.86",11-22108-0000-202107-000-000000000-000000,"Pension Withheld","401k/Pension EE/ER Contribution"
9008695,"$ 70,806.43",12/06/2019,ISSUED,,"Principal Financial Group","Butterfield Centre","Manual Invoice Entry",SO120619,"$ 70,806.43",WIRE,1,"MANUAL LINE ENTRY",12/05/2019,1,1,"$ 70,806.43",11-22107-0000-202107-000-000000000-000000,"Pension Withheld","401k/Pension EE/ER Contribution"
9008694,"$ 17,433.52",12/06/2019,ISSUED,,"Principal Financial Group","Butterfield Centre","Manual Invoice Entry",HE120619,"$ 17,433.52",WIRE,1,"MANUAL LINE ENTRY",12/05/2019,1,1,"$ 17,433.52",11-22102-0000-202107-000-000000000-000000,"Pension Withheld","401k/Pension EE/ER Contribution"
9008693,"$ 14,706.09",12/06/2019,ISSUED,,"Principal Financial Group","Butterfield Centre","Manual Invoice Entry",NS120619,"$ 14,706.09",WIRE,1,"MANUAL LINE ENTRY",12/05/2019,1,1,"$ 14,706.09",11-22105-0000-202107-000-000000000-000000,"Pension Withheld","401k/Pension EE/ER Contribution"
9008692,"$ 97,632.71",12/06/2019,ISSUED,,"Wells Fargo Bank NA","733 Marquette Ave 5th Flr","Manual Invoice Entry",NO120619,"$ 14,587.82",WIRE,1,"MANUAL LINE ENTRY",12/05/2019,1,1,"$ 14,587.82",11-22103-0000-202107-000-000000000-000000,"Pension Withheld","401k/Pension EE/ER Contribution"
9008692,"$ 97,632.71",12/06/2019,ISSUED,,"Wells Fargo Bank NA","733 Marquette Ave 5th Flr","Manual Invoice Entry",WE120619,"$ 83,044.89",WIRE,1,"MANUAL LINE ENTRY",12/05/2019,1,1,"$ 83,044.89",11-22109-0000-202107-000-000000000-000000,"Pension Withheld","401k/Pension EE/ER Contribution"
9008691,"$ 475.00",12/06/2019,ISSUED,,"United Credit Union","4444 S Pulaski","Manual Invoice Entry",UC120619,"$ 475.00",WIRE,1,"MANUAL LINE ENTRY",12/05/2019,1,1,"$ 425.00",11-22108-0000-202102-000-000000000-000000,"Credit Union Withheld","Payroll Deductions"
9008691,"$ 475.00",12/06/2019,ISSUED,,"United Credit Union","4444 S Pulaski","Manual Invoice Entry",UC120619,"$ 475.00",WIRE,2,"MANUAL LINE ENTRY",12/05/2019,2,1,"$ 50.00",11-10101-0000-202102-000-000000000-000000,"Credit Union Withheld","Payroll Deductions"
9008690,"$ 49,438.53",12/06/2019,ISSUED,,"Northside L Federal C U - West Town","1419 W Roosevelt Rd","Manual Invoice Entry",NL120619,"$ 49,438.53",WIRE,6,"MANUAL LINE ENTRY",12/05/2019,6,1,"$ 32,352.54",11-22109-0000-202102-000-000000000-000000,"Credit Union Withheld","Payroll Deductions"
9008690,"$ 49,438.53",12/06/2019,ISSUED,,"Northside L Federal C U - West Town","1419 W Roosevelt Rd","Manual Invoice Entry",NL120619,"$ 49,438.53",WIRE,2,"MANUAL LINE ENTRY",12/05/2019,2,1,"$ 10,808.99",11-22107-0000-202102-000-000000000-000000,"Credit Union Withheld","Payroll Deductions"
9008690,"$ 49,438.53",12/06/2019,ISSUED,,"Northside L Federal C U - West Town","1419 W Roosevelt Rd","Manual Invoice Entry",NL120619,"$ 49,438.53",WIRE,3,"MANUAL LINE ENTRY",12/05/2019,3,1,"$ 35.00",11-22105-0000-202102-000-000000000-000000,"Credit Union Withheld","Payroll Deductions"
9008690,"$ 49,438.53",12/06/2019,ISSUED,,"Northside L Federal C U - West Town","1419 W Roosevelt Rd","Manual Invoice Entry",NL120619,"$ 49,438.53",WIRE,4,"MANUAL LINE ENTRY",12/05/2019,4,1,"$ 2,493.00",11-22104-0000-202102-000-000000000-000000,"Credit Union Withheld","Payroll Deductions"
9008690,"$ 49,438.53",12/06/2019,ISSUED,,"Northside L Federal C U - West Town","1419 W Roosevelt Rd","Manual Invoice Entry",NL120619,"$ 49,438.53",WIRE,1,"MANUAL LINE ENTRY",12/05/2019,1,1,"$ 1,049.00",11-10101-0000-202102-000-000000000-000000,"Credit Union Withheld","Payroll Deductions"
9008690,"$ 49,438.53",12/06/2019,ISSUED,,"Northside L Federal C U - West Town","1419 W Roosevelt Rd","Manual Invoice Entry",NL120619,"$ 49,438.53",WIRE,5,"MANUAL LINE ENTRY",12/05/2019,5,1,"$ 2,700.00",11-22108-0000-202102-000-000000000-000000,"Credit Union Withheld","Payroll Deductions"
9008689,"$ 50.00",12/06/2019,ISSUED,,"Credit Union 1","450 E 22nd St","Manual Invoice Entry",E120619,"$ 50.00",WIRE,1,"MANUAL LINE ENTRY",12/05/2019,1,1,"$ 50.00",11-22108-0000-202102-000-000000000-000000,"Credit Union Withheld","Payroll Deductions"
9008688,"$ 2,044.00",12/06/2019,ISSUED,,"Amalgamated Transit Union","Division 900","Manual Invoice Entry",AT120619,"$ 2,044.00",WIRE,1,"MANUAL LINE ENTRY",12/05/2019,1,1,"$ 2,044.00",11-22103-0000-202111-000-000000000-000000,"Union Dues Withheld","Payroll Deductions"
9008687,"$ 1,836.25",12/06/2019,ISSUED,,"Abri Credit Union","1350 W Renwick Rd","Manual Invoice Entry",PT0120619,"$ 1,836.25",WIRE,1,"MANUAL LINE ENTRY",12/05/2019,1,1,"$ 733.75",11-10101-0000-202102-000-000000000-000000,"Credit Union Withheld","Payroll Deductions"
9008687,"$ 1,836.25",12/06/2019,ISSUED,,"Abri Credit Union","1350 W Renwick Rd","Manual Invoice Entry",PT0120619,"$ 1,836.25",WIRE,2,"MANUAL LINE ENTRY",12/05/2019,2,1,"$ 1,102.50",11-22102-0000-202102-000-000000000-000000,"Credit Union Withheld","Payroll Deductions"
9008686,"$ 50.00",12/04/2019,ISSUED,,"Neopost USA Inc","PO Box 1183","Manual Invoice Entry",N120219HQ,"$ 50.00",WIRE,1,"MANUAL LINE ENTRY",12/04/2019,1,1,"$ 50.00",11-10101-7052-503901-500-000000000-000000,Postage,Services
9008685,"$ 1,651.10",12/04/2019,ISSUED,,"Underwriters Safety & Claims","PO Box 23790","Manual Invoice Entry",WC120319,"$ 1,651.10",WIRE,1,"MANUAL LINE ENTRY",12/03/2019,1,1,"$ 1,651.10",11-10101-0000-101204-000-000000000-000000,"Workers Compensation Claims Account",Claims
9008684,"$ 28,789.83",12/03/2019,ISSUED,,"Cubic Transportation Systems","Union Bank","Manual Invoice Entry",90039937,"$ 3,380.40",WIRE,1,"MANUAL LINE ENTRY",11/21/2019,1,1,"$ 3,380.40",11-10101-7352-503305-501-000000000-000000,"Ventra Mobile App Service Fee",Services
9008684,"$ 28,789.83",12/03/2019,ISSUED,,"Cubic Transportation Systems","Union Bank","Manual Invoice Entry",90039938,"$ 3,380.40",WIRE,1,"MANUAL LINE ENTRY",11/21/2019,1,1,"$ 3,380.40",11-10101-7352-503305-501-000000000-000000,"Ventra Mobile App Service Fee",Services
9008684,"$ 28,789.83",12/03/2019,ISSUED,,"Cubic Transportation Systems","Union Bank","Manual Invoice Entry",90040055,"$ 3,542.40",WIRE,1,"MANUAL LINE ENTRY",11/25/2019,1,1,"$ 3,542.40",11-10101-7352-503305-501-000000000-000000,"Ventra Mobile App Service Fee",Services
9008684,"$ 28,789.83",12/03/2019,ISSUED,,"Cubic Transportation Systems","Union Bank","Manual Invoice Entry",90040634,"$ 18,486.63",WIRE,1,"MANUAL LINE ENTRY",12/02/2019,1,1,"$ 18,486.63",11-10101-7352-503304-501-000000000-000000,"Ventra Vending Machine Maintenance",Services
9008683,"$ 39,177.39",12/03/2019,ISSUED,,"PNC Bank National Association","PO Box 828702",PROCARD,963220191118,"$ 39,177.39",WIRE,84,IMPORTED,11/30/2019,84,1,"$ 84.95",11-10101-7404-503551-500-000000000-000000,"Data Processing Equipment Maintenance",Services
9008683,"$ 39,177.39",12/03/2019,ISSUED,,"PNC Bank National Association","PO Box 828702",PROCARD,963220191118,"$ 39,177.39",WIRE,85,IMPORTED,11/30/2019,85,1,"$ 286.22",11-10101-5104-504989-300-000000000-000000,"Other Materials & Supplies","Materials and Supplies"
9008683,"$ 39,177.39",12/03/2019,ISSUED,,"PNC Bank National Association","PO Box 828702",PROCARD,963220191118,"$ 39,177.39",WIRE,86,IMPORTED,11/30/2019,86,1,"$ 161.29",11-22101-0000-504989-400-000000000-000000,"Other Materials & Supplies","Materials and Supplies"
9008683,"$ 39,177.39",12/03/2019,ISSUED,,"PNC Bank National Association","PO Box 828702",PROCARD,963220191118,"$ 39,177.39",WIRE,87,IMPORTED,11/30/2019,87,1,"$ 1,024.58",11-10101-5104-509914-501-000000000-000000,"Other Miscellaneous",Miscellaneous
9008683,"$ 39,177.39",12/03/2019,ISSUED,,"PNC Bank National Association","PO Box 828702",PROCARD,963220191118,"$ 39,177.39",WIRE,88,IMPORTED,11/30/2019,88,1,"$ 563.35",11-22106-0000-504989-400-000000000-000000,"Other Materials & Supplies","Materials and Supplies"
9008683,"$ 39,177.39",12/03/2019,ISSUED,,"PNC Bank National Association","PO Box 828702",PROCARD,963220191118,"$ 39,177.39",WIRE,89,IMPORTED,11/30/2019,89,1,"$ 161.45",11-22106-0000-504989-300-000000000-000000,"Other Materials & Supplies","Materials and Supplies"
9008683,"$ 39,177.39",12/03/2019,ISSUED,,"PNC Bank National Association","PO Box 828702",PROCARD,963220191118,"$ 39,177.39",WIRE,90,IMPORTED,11/30/2019,90,1,"$ 501.73",11-10101-2201-503322-500-000000000-000000,"HR Recruitment Expense",Services
9008683,"$ 39,177.39",12/03/2019,ISSUED,,"PNC Bank National Association","PO Box 828702",PROCARD,963220191118,"$ 39,177.39",WIRE,91,IMPORTED,11/30/2019,91,1,"$ 142.45",11-22108-0000-504989-400-000000000-000000,"Other Materials & Supplies","Materials and Supplies"
9008683,"$ 39,177.39",12/03/2019,ISSUED,,"PNC Bank National Association","PO Box 828702",PROCARD,963220191118,"$ 39,177.39",WIRE,95,IMPORTED,11/30/2019,95,1,"$ 33.06",11-22105-0000-504989-400-000000000-000000,"Other Materials & Supplies","Materials and Supplies"
9008683,"$ 39,177.39",12/03/2019,ISSUED,,"PNC Bank National Association","PO Box 828702",PROCARD,963220191118,"$ 39,177.39",WIRE,92,IMPORTED,11/30/2019,92,1,"$ 1,854.00",11-10101-2151-503321-500-000000000-000000,"Training & Development",Services
9008683,"$ 39,177.39",12/03/2019,ISSUED,,"PNC Bank National Association","PO Box 828702",PROCARD,963220191118,"$ 39,177.39",WIRE,93,IMPORTED,11/30/2019,93,1,"$ 287.76",11-22107-0000-504989-500-000000000-000000,"Other Materials & Supplies","Materials and Supplies"
9008683,"$ 39,177.39",12/03/2019,ISSUED,,"PNC Bank National Association","PO Box 828702",PROCARD,963220191118,"$ 39,177.39",WIRE,94,IMPORTED,11/30/2019,94,1,"$ 76.27",11-22107-0000-504989-500-000000000-000000,"Other Materials & Supplies","Materials and Supplies"
9008683,"$ 39,177.39",12/03/2019,ISSUED,,"PNC Bank National Association","PO Box 828702",PROCARD,963220191118,"$ 39,177.39",WIRE,96,IMPORTED,11/30/2019,96,1,"$ 14.81",11-10101-4401-503901-500-000000000-000000,Postage,Services
9008683,"$ 39,177.39",12/03/2019,ISSUED,,"PNC Bank National Association","PO Box 828702",PROCARD,963220191118,"$ 39,177.39",WIRE,97,IMPORTED,11/30/2019,97,1,"$ 83.22",11-22101-0000-504989-400-000000000-000000,"Other Materials & Supplies","Materials and Supplies"
9008683,"$ 39,177.39",12/03/2019,ISSUED,,"PNC Bank National Association","PO Box 828702",PROCARD,963220191118,"$ 39,177.39",WIRE,98,IMPORTED,11/30/2019,98,1,"$ 233.75",11-10101-7052-504989-500-000000000-000000,"Other Materials & Supplies","Materials and Supplies"
9008683,"$ 39,177.39",12/03/2019,ISSUED,,"PNC Bank National Association","PO Box 828702",PROCARD,963220191118,"$ 39,177.39",WIRE,99,IMPORTED,11/30/2019,99,1,"$ -29.90",11-10101-7404-504956-500-000000000-000000,"Data Processing Supplies","Materials and Supplies"
9008683,"$ 39,177.39",12/03/2019,ISSUED,,"PNC Bank National Association","PO Box 828702",PROCARD,963220191118,"$ 39,177.39",WIRE,100,IMPORTED,11/30/2019,100,1,"$ 14.50",11-10101-5051-509202-500-000000000-000000,"Local Travel",Miscellaneous
9008683,"$ 39,177.39",12/03/2019,ISSUED,,"PNC Bank National Association","PO Box 828702",PROCARD,963220191118,"$ 39,177.39",WIRE,101,IMPORTED,11/30/2019,101,1,"$ 135.00",11-22104-0000-504989-500-000000000-000000,"Other Materials & Supplies","Materials and Supplies"
9008683,"$ 39,177.39",12/03/2019,ISSUED,,"PNC Bank National Association","PO Box 828702",PROCARD,963220191118,"$ 39,177.39",WIRE,102,IMPORTED,11/30/2019,102,1,"$ 20.00",51-59101-7401-509202-500-000000000-000000,"Local Travel",Miscellaneous
9008683,"$ 39,177.39",12/03/2019,ISSUED,,"PNC Bank National Association","PO Box 828702",PROCARD,963220191118,"$ 39,177.39",WIRE,103,IMPORTED,11/30/2019,103,1,"$ 20.00",51-59101-5311-509913-501-000000000-000000,"General Expense",Miscellaneous
9008683,"$ 39,177.39",12/03/2019,ISSUED,,"PNC Bank National Association","PO Box 828702",PROCARD,963220191118,"$ 39,177.39",WIRE,104,IMPORTED,11/30/2019,104,1,"$ 75.00",11-22103-0000-504989-500-000000000-000000,"Other Materials & Supplies","Materials and Supplies"
9008683,"$ 39,177.39",12/03/2019,ISSUED,,"PNC Bank National Association","PO Box 828702",PROCARD,963220191118,"$ 39,177.39",WIRE,105,IMPORTED,11/30/2019,105,1,"$ -315.27",11-10101-5001-509203-500-000000000-000000,"Out of Region Travel",Miscellaneous
9008683,"$ 39,177.39",12/03/2019,ISSUED,,"PNC Bank National Association","PO Box 828702",PROCARD,963220191118,"$ 39,177.39",WIRE,106,IMPORTED,11/30/2019,106,1,"$ 2,223.22",11-10101-7052-503534-401-000000000-000000,"Building Maint and Repairs",Services
9008683,"$ 39,177.39",12/03/2019,ISSUED,,"PNC Bank National Association","PO Box 828702",PROCARD,963220191118,"$ 39,177.39",WIRE,107,IMPORTED,11/30/2019,107,1,"$ 81.64",11-10101-7052-503901-500-000000000-000000,Postage,Services
9008683,"$ 39,177.39",12/03/2019,ISSUED,,"PNC Bank National Association","PO Box 828702",PROCARD,963220191118,"$ 39,177.39",WIRE,112,IMPORTED,11/30/2019,112,1,"$ 90.21",11-10101-7052-503901-500-000000000-000000,Postage,Services
9008683,"$ 39,177.39",12/03/2019,ISSUED,,"PNC Bank National Association","PO Box 828702",PROCARD,963220191118,"$ 39,177.39",WIRE,20,IMPORTED,11/30/2019,20,1,"$ 36.34",11-10101-7404-504956-500-000000000-000000,"Data Processing Supplies","Materials and Supplies"
9008683,"$ 39,177.39",12/03/2019,ISSUED,,"PNC Bank National Association","PO Box 828702",PROCARD,963220191118,"$ 39,177.39",WIRE,21,IMPORTED,11/30/2019,21,1,"$ 65.88",11-10101-7404-504956-500-000000000-000000,"Data Processing Supplies","Materials and Supplies"
9008683,"$ 39,177.39",12/03/2019,ISSUED,,"PNC Bank National Association","PO Box 828702",PROCARD,963220191118,"$ 39,177.39",WIRE,22,IMPORTED,11/30/2019,22,1,"$ 39.99",11-10101-7405-503551-500-000000000-000000,"Data Processing Equipment Maintenance",Services
9008683,"$ 39,177.39",12/03/2019,ISSUED,,"PNC Bank National Association","PO Box 828702",PROCARD,963220191118,"$ 39,177.39",WIRE,23,IMPORTED,11/30/2019,23,1,"$ 11.70",11-10101-4401-503901-500-000000000-000000,Postage,Services
9008683,"$ 39,177.39",12/03/2019,ISSUED,,"PNC Bank National Association","PO Box 828702",PROCARD,963220191118,"$ 39,177.39",WIRE,24,IMPORTED,11/30/2019,24,1,"$ 569.84",11-22110-0000-504989-400-000000000-000000,"Other Materials & Supplies","Materials and Supplies"
9008683,"$ 39,177.39",12/03/2019,ISSUED,,"PNC Bank National Association","PO Box 828702",PROCARD,963220191118,"$ 39,177.39",WIRE,28,IMPORTED,11/30/2019,28,1,"$ 26.95",11-22101-0000-504989-400-000000000-000000,"Other Materials & Supplies","Materials and Supplies"
9008683,"$ 39,177.39",12/03/2019,ISSUED,,"PNC Bank National Association","PO Box 828702",PROCARD,963220191118,"$ 39,177.39",WIRE,25,IMPORTED,11/30/2019,25,1,"$ 134.00",11-10101-5001-509203-500-000000000-000000,"Out of Region Travel",Miscellaneous
9008683,"$ 39,177.39",12/03/2019,ISSUED,,"PNC Bank National Association","PO Box 828702",PROCARD,963220191118,"$ 39,177.39",WIRE,26,IMPORTED,11/30/2019,26,1,"$ 18.00",11-22104-0000-504989-400-000000000-000000,"Other Materials & Supplies","Materials and Supplies"
9008683,"$ 39,177.39",12/03/2019,ISSUED,,"PNC Bank National Association","PO Box 828702",PROCARD,963220191118,"$ 39,177.39",WIRE,27,IMPORTED,11/30/2019,27,1,"$ 1,575.00",51-59101-5311-509913-501-000000000-000000,"General Expense",Miscellaneous
9008683,"$ 39,177.39",12/03/2019,ISSUED,,"PNC Bank National Association","PO Box 828702",PROCARD,963220191118,"$ 39,177.39",WIRE,29,IMPORTED,11/30/2019,29,1,"$ 15.80",11-10101-5051-509901-500-000000000-000000,"Business Expense",Miscellaneous
9008683,"$ 39,177.39",12/03/2019,ISSUED,,"PNC Bank National Association","PO Box 828702",PROCARD,963220191118,"$ 39,177.39",WIRE,30,IMPORTED,11/30/2019,30,1,"$ 340.15",11-10101-5201-503924-501-000000000-000000,"Award Programs",Services
9008683,"$ 39,177.39",12/03/2019,ISSUED,,"PNC Bank National Association","PO Box 828702",PROCARD,963220191118,"$ 39,177.39",WIRE,31,IMPORTED,11/30/2019,31,1,"$ 6.00",11-10101-2051-503334-500-000000000-000000,"Legal Services",Services
9008683,"$ 39,177.39",12/03/2019,ISSUED,,"PNC Bank National Association","PO Box 828702",PROCARD,963220191118,"$ 39,177.39",WIRE,32,IMPORTED,11/30/2019,32,1,"$ 6.00",11-10101-2051-503334-500-000000000-000000,"Legal Services",Services
9008683,"$ 39,177.39",12/03/2019,ISSUED,,"PNC Bank National Association","PO Box 828702",PROCARD,963220191118,"$ 39,177.39",WIRE,33,IMPORTED,11/30/2019,33,1,"$ 6.00",11-10101-2051-503334-500-000000000-000000,"Legal Services",Services
9008683,"$ 39,177.39",12/03/2019,ISSUED,,"PNC Bank National Association","PO Box 828702",PROCARD,963220191118,"$ 39,177.39",WIRE,34,IMPORTED,11/30/2019,34,1,"$ 6.00",11-10101-2051-503334-500-000000000-000000,"Legal Services",Services
9008683,"$ 39,177.39",12/03/2019,ISSUED,,"PNC Bank National Association","PO Box 828702",PROCARD,963220191118,"$ 39,177.39",WIRE,35,IMPORTED,11/30/2019,35,1,"$ 50.00",11-10101-3101-509901-500-000000000-000000,"Business Expense",Miscellaneous
9008683,"$ 39,177.39",12/03/2019,ISSUED,,"PNC Bank National Association","PO Box 828702",PROCARD,963220191118,"$ 39,177.39",WIRE,36,IMPORTED,11/30/2019,36,1,"$ 29.90",11-10101-7404-504956-500-000000000-000000,"Data Processing Supplies","Materials and Supplies"
9008683,"$ 39,177.39",12/03/2019,ISSUED,,"PNC Bank National Association","PO Box 828702",PROCARD,963220191118,"$ 39,177.39",WIRE,37,IMPORTED,11/30/2019,37,1,"$ 20.00",51-59101-7401-509202-500-000000000-000000,"Local Travel",Miscellaneous
9008683,"$ 39,177.39",12/03/2019,ISSUED,,"PNC Bank National Association","PO Box 828702",PROCARD,963220191118,"$ 39,177.39",WIRE,38,IMPORTED,11/30/2019,38,1,"$ 312.76",11-10101-5201-503924-501-000000000-000000,"Award Programs",Services
9008683,"$ 39,177.39",12/03/2019,ISSUED,,"PNC Bank National Association","PO Box 828702",PROCARD,963220191118,"$ 39,177.39",WIRE,39,IMPORTED,11/30/2019,39,1,"$ 43.30",11-22101-0000-504989-300-000000000-000000,"Other Materials & Supplies","Materials and Supplies"
9008683,"$ 39,177.39",12/03/2019,ISSUED,,"PNC Bank National Association","PO Box 828702",PROCARD,963220191118,"$ 39,177.39",WIRE,40,IMPORTED,11/30/2019,40,1,"$ 125.36",11-10101-7404-503342-500-000000000-000000,"Data Processing Communications",Services
9008683,"$ 39,177.39",12/03/2019,ISSUED,,"PNC Bank National Association","PO Box 828702",PROCARD,963220191118,"$ 39,177.39",WIRE,41,IMPORTED,11/30/2019,41,1,"$ 53.86",11-22104-0000-504989-400-000000000-000000,"Other Materials & Supplies","Materials and Supplies"
9008683,"$ 39,177.39",12/03/2019,ISSUED,,"PNC Bank National Association","PO Box 828702",PROCARD,963220191118,"$ 39,177.39",WIRE,45,IMPORTED,11/30/2019,45,1,"$ 748.80",11-10101-5001-509203-500-000000000-000000,"Out of Region Travel",Miscellaneous
9008683,"$ 39,177.39",12/03/2019,ISSUED,,"PNC Bank National Association","PO Box 828702",PROCARD,963220191118,"$ 39,177.39",WIRE,42,IMPORTED,11/30/2019,42,1,"$ 232.10",11-22102-0000-504989-400-000000000-000000,"Other Materials & Supplies","Materials and Supplies"
9008683,"$ 39,177.39",12/03/2019,ISSUED,,"PNC Bank National Association","PO Box 828702",PROCARD,963220191118,"$ 39,177.39",WIRE,43,IMPORTED,11/30/2019,43,1,"$ 193.73",11-22102-0000-504989-400-000000000-000000,"Other Materials & Supplies","Materials and Supplies"
9008683,"$ 39,177.39",12/03/2019,ISSUED,,"PNC Bank National Association","PO Box 828702",PROCARD,963220191118,"$ 39,177.39",WIRE,131,IMPORTED,11/30/2019,131,1,"$ 179.76",11-10101-5051-509901-500-000000000-000000,"Business Expense",Miscellaneous
9008683,"$ 39,177.39",12/03/2019,ISSUED,,"PNC Bank National Association","PO Box 828702",PROCARD,963220191118,"$ 39,177.39",WIRE,132,IMPORTED,11/30/2019,132,1,"$ 201.81",11-22104-0000-504989-300-000000000-000000,"Other Materials & Supplies","Materials and Supplies"
9008683,"$ 39,177.39",12/03/2019,ISSUED,,"PNC Bank National Association","PO Box 828702",PROCARD,963220191118,"$ 39,177.39",WIRE,133,IMPORTED,11/30/2019,133,1,"$ 20.17",11-10101-4401-503901-500-000000000-000000,Postage,Services
9008683,"$ 39,177.39",12/03/2019,ISSUED,,"PNC Bank National Association","PO Box 828702",PROCARD,963220191118,"$ 39,177.39",WIRE,134,IMPORTED,11/30/2019,134,1,"$ 30.00",11-10101-2001-509901-500-000000000-000000,"Business Expense",Miscellaneous
9008683,"$ 39,177.39",12/03/2019,ISSUED,,"PNC Bank National Association","PO Box 828702",PROCARD,963220191118,"$ 39,177.39",WIRE,135,IMPORTED,11/30/2019,135,1,"$ 18.26",11-22101-0000-504989-400-000000000-000000,"Other Materials & Supplies","Materials and Supplies"
9008683,"$ 39,177.39",12/03/2019,ISSUED,,"PNC Bank National Association","PO Box 828702",PROCARD,963220191118,"$ 39,177.39",WIRE,136,IMPORTED,11/30/2019,136,1,"$ 149.00",11-10101-2151-503321-500-000000000-000000,"Training & Development",Services
9008683,"$ 39,177.39",12/03/2019,ISSUED,,"PNC Bank National Association","PO Box 828702",PROCARD,963220191118,"$ 39,177.39",WIRE,137,IMPORTED,11/30/2019,137,1,"$ 20.00",51-59101-7401-509202-500-000000000-000000,"Local Travel",Miscellaneous
9008683,"$ 39,177.39",12/03/2019,ISSUED,,"PNC Bank National Association","PO Box 828702",PROCARD,963220191118,"$ 39,177.39",WIRE,138,IMPORTED,11/30/2019,138,1,"$ 3.85",11-22103-0000-504989-400-000000000-000000,"Other Materials & Supplies","Materials and Supplies"
9008683,"$ 39,177.39",12/03/2019,ISSUED,,"PNC Bank National Association","PO Box 828702",PROCARD,963220191118,"$ 39,177.39",WIRE,139,IMPORTED,11/30/2019,139,1,"$ 491.72",11-10101-7404-504956-500-000000000-000000,"Data Processing Supplies","Materials and Supplies"
9008683,"$ 39,177.39",12/03/2019,ISSUED,,"PNC Bank National Association","PO Box 828702",PROCARD,963220191118,"$ 39,177.39",WIRE,140,IMPORTED,11/30/2019,140,1,"$ 249.57",11-10101-7404-504956-500-000000000-000000,"Data Processing Supplies","Materials and Supplies"
9008683,"$ 39,177.39",12/03/2019,ISSUED,,"PNC Bank National Association","PO Box 828702",PROCARD,963220191118,"$ 39,177.39",WIRE,141,IMPORTED,11/30/2019,141,1,"$ 241.45",11-10101-7405-503552-500-000000000-000000,"Data Processing  Software Maintenance",Services
9008683,"$ 39,177.39",12/03/2019,ISSUED,,"PNC Bank National Association","PO Box 828702",PROCARD,963220191118,"$ 39,177.39",WIRE,142,IMPORTED,11/30/2019,142,1,"$ 27.53",11-10101-7404-503552-500-000000000-000000,"Data Processing  Software Maintenance",Services
9008683,"$ 39,177.39",12/03/2019,ISSUED,,"PNC Bank National Association","PO Box 828702",PROCARD,963220191118,"$ 39,177.39",WIRE,143,IMPORTED,11/30/2019,143,1,"$ 224.42",11-10101-3111-504958-500-000000000-000000,"Repro Supplies","Materials and Supplies"
9008683,"$ 39,177.39",12/03/2019,ISSUED,,"PNC Bank National Association","PO Box 828702",PROCARD,963220191118,"$ 39,177.39",WIRE,144,IMPORTED,11/30/2019,144,1,"$ 57.94",11-10101-3111-504958-500-000000000-000000,"Repro Supplies","Materials and Supplies"
9008683,"$ 39,177.39",12/03/2019,ISSUED,,"PNC Bank National Association","PO Box 828702",PROCARD,963220191118,"$ 39,177.39",WIRE,145,IMPORTED,11/30/2019,145,1,"$ 1,540.00",11-10101-5201-503924-501-000000000-000000,"Award Programs",Services
9008683,"$ 39,177.39",12/03/2019,ISSUED,,"PNC Bank National Association","PO Box 828702",PROCARD,963220191118,"$ 39,177.39",WIRE,146,IMPORTED,11/30/2019,146,1,"$ 13.91",11-22101-0000-504989-400-000000000-000000,"Other Materials & Supplies","Materials and Supplies"
9008683,"$ 39,177.39",12/03/2019,ISSUED,,"PNC Bank National Association","PO Box 828702",PROCARD,963220191118,"$ 39,177.39",WIRE,147,IMPORTED,11/30/2019,147,1,"$ 43.50",11-10101-7052-504989-500-000000000-000000,"Other Materials & Supplies","Materials and Supplies"
9008683,"$ 39,177.39",12/03/2019,ISSUED,,"PNC Bank National Association","PO Box 828702",PROCARD,963220191118,"$ 39,177.39",WIRE,148,IMPORTED,11/30/2019,148,1,"$ 68.97",11-10101-7052-504989-500-000000000-000000,"Other Materials & Supplies","Materials and Supplies"
9008683,"$ 39,177.39",12/03/2019,ISSUED,,"PNC Bank National Association","PO Box 828702",PROCARD,963220191118,"$ 39,177.39",WIRE,149,IMPORTED,11/30/2019,149,1,"$ 2,548.93",11-10101-7052-504989-500-000000000-000000,"Other Materials & Supplies","Materials and Supplies"
9008683,"$ 39,177.39",12/03/2019,ISSUED,,"PNC Bank National Association","PO Box 828702",PROCARD,963220191118,"$ 39,177.39",WIRE,150,IMPORTED,11/30/2019,150,1,"$ 704.67",11-10101-7404-504956-500-000000000-000000,"Data Processing Supplies","Materials and Supplies"
9008683,"$ 39,177.39",12/03/2019,ISSUED,,"PNC Bank National Association","PO Box 828702",PROCARD,963220191118,"$ 39,177.39",WIRE,151,IMPORTED,11/30/2019,151,1,"$ 102.50",11-22107-0000-509201-500-000000000-000000,"Travel & Meeting",Miscellaneous
9008683,"$ 39,177.39",12/03/2019,ISSUED,,"PNC Bank National Association","PO Box 828702",PROCARD,963220191118,"$ 39,177.39",WIRE,152,IMPORTED,11/30/2019,152,1,"$ 38.36",11-22105-0000-504989-300-000000000-000000,"Other Materials & Supplies","Materials and Supplies"
9008683,"$ 39,177.39",12/03/2019,ISSUED,,"PNC Bank National Association","PO Box 828702",PROCARD,963220191118,"$ 39,177.39",WIRE,67,IMPORTED,11/30/2019,67,1,"$ 54.27",11-22103-0000-504989-400-000000000-000000,"Other Materials & Supplies","Materials and Supplies"
9008683,"$ 39,177.39",12/03/2019,ISSUED,,"PNC Bank National Association","PO Box 828702",PROCARD,963220191118,"$ 39,177.39",WIRE,68,IMPORTED,11/30/2019,68,1,"$ 1,854.00",11-10101-2151-503321-500-000000000-000000,"Training & Development",Services
9008683,"$ 39,177.39",12/03/2019,ISSUED,,"PNC Bank National Association","PO Box 828702",PROCARD,963220191118,"$ 39,177.39",WIRE,69,IMPORTED,11/30/2019,69,1,"$ 439.78",11-10101-7404-504956-500-000000000-000000,"Data Processing Supplies","Materials and Supplies"
9008683,"$ 39,177.39",12/03/2019,ISSUED,,"PNC Bank National Association","PO Box 828702",PROCARD,963220191118,"$ 39,177.39",WIRE,70,IMPORTED,11/30/2019,70,1,"$ 62.06",11-10101-7404-504956-500-000000000-000000,"Data Processing Supplies","Materials and Supplies"
9008683,"$ 39,177.39",12/03/2019,ISSUED,,"PNC Bank National Association","PO Box 828702",PROCARD,963220191118,"$ 39,177.39",WIRE,71,IMPORTED,11/30/2019,71,1,"$ 47.00",11-10101-5051-509202-500-000000000-000000,"Local Travel",Miscellaneous
9008683,"$ 39,177.39",12/03/2019,ISSUED,,"PNC Bank National Association","PO Box 828702",PROCARD,963220191118,"$ 39,177.39",WIRE,72,IMPORTED,11/30/2019,72,1,"$ 102.50",11-22107-0000-509201-500-000000000-000000,"Travel & Meeting",Miscellaneous
9008683,"$ 39,177.39",12/03/2019,ISSUED,,"PNC Bank National Association","PO Box 828702",PROCARD,963220191118,"$ 39,177.39",WIRE,73,IMPORTED,11/30/2019,73,1,"$ 16.41",11-22105-0000-504989-400-000000000-000000,"Other Materials & Supplies","Materials and Supplies"
9008683,"$ 39,177.39",12/03/2019,ISSUED,,"PNC Bank National Association","PO Box 828702",PROCARD,963220191118,"$ 39,177.39",WIRE,74,IMPORTED,11/30/2019,74,1,"$ 11.07",11-22105-0000-504989-400-000000000-000000,"Other Materials & Supplies","Materials and Supplies"
9008683,"$ 39,177.39",12/03/2019,ISSUED,,"PNC Bank National Association","PO Box 828702",PROCARD,963220191118,"$ 39,177.39",WIRE,75,IMPORTED,11/30/2019,75,1,"$ 12.00",11-10101-2051-503334-500-000000000-000000,"Legal Services",Services
9008683,"$ 39,177.39",12/03/2019,ISSUED,,"PNC Bank National Association","PO Box 828702",PROCARD,963220191118,"$ 39,177.39",WIRE,79,IMPORTED,11/30/2019,79,1,"$ 42.58",11-10101-1001-509901-500-000000000-000000,"Business Expense",Miscellaneous
9008683,"$ 39,177.39",12/03/2019,ISSUED,,"PNC Bank National Association","PO Box 828702",PROCARD,963220191118,"$ 39,177.39",WIRE,76,IMPORTED,11/30/2019,76,1,"$ 13.00",11-10101-2051-503334-500-000000000-000000,"Legal Services",Services
9008683,"$ 39,177.39",12/03/2019,ISSUED,,"PNC Bank National Association","PO Box 828702",PROCARD,963220191118,"$ 39,177.39",WIRE,77,IMPORTED,11/30/2019,77,1,"$ 490.00",11-10101-2151-509101-500-000000000-000000,Dues,Miscellaneous
9008683,"$ 39,177.39",12/03/2019,ISSUED,,"PNC Bank National Association","PO Box 828702",PROCARD,963220191118,"$ 39,177.39",WIRE,78,IMPORTED,11/30/2019,78,1,"$ 252.14",11-10101-7404-503342-500-000000000-000000,"Data Processing Communications",Services
9008683,"$ 39,177.39",12/03/2019,ISSUED,,"PNC Bank National Association","PO Box 828702",PROCARD,963220191118,"$ 39,177.39",WIRE,80,IMPORTED,11/30/2019,80,1,"$ 228.00",11-10101-5103-504922-501-000000000-000000,Supplies/Parts/Tools,"Materials and Supplies"
9008683,"$ 39,177.39",12/03/2019,ISSUED,,"PNC Bank National Association","PO Box 828702",PROCARD,963220191118,"$ 39,177.39",WIRE,81,IMPORTED,11/30/2019,81,1,"$ 97.00",11-10101-5001-509203-500-000000000-000000,"Out of Region Travel",Miscellaneous
9008683,"$ 39,177.39",12/03/2019,ISSUED,,"PNC Bank National Association","PO Box 828702",PROCARD,963220191118,"$ 39,177.39",WIRE,82,IMPORTED,11/30/2019,82,1,"$ 374.96",11-10101-5001-509203-500-000000000-000000,"Out of Region Travel",Miscellaneous
9008683,"$ 39,177.39",12/03/2019,ISSUED,,"PNC Bank National Association","PO Box 828702",PROCARD,963220191118,"$ 39,177.39",WIRE,83,IMPORTED,11/30/2019,83,1,"$ 190.00",11-10101-2151-503321-500-000000000-000000,"Training & Development",Services
9008683,"$ 39,177.39",12/03/2019,ISSUED,,"PNC Bank National Association","PO Box 828702","Manual Invoice Entry","PREPAYMENT 19-11","$ 39,177.39",WIRE,1,"MANUAL LINE ENTRY",11/29/2019,1,1,"$ 39,177.39",11-00000-0000-151102-000-000000000-000000,"Prepaid Expenses",Prepayment
9008683,"$ 39,177.39",12/03/2019,ISSUED,,"PNC Bank National Association","PO Box 828702",PROCARD,963220191118,"$ 39,177.39",WIRE,4,IMPORTED,11/30/2019,4,1,"$ 4.49",51-59101-4101-509802-500-000000000-000000,"ADA Advisory Expenses",Miscellaneous
9008683,"$ 39,177.39",12/03/2019,ISSUED,,"PNC Bank National Association","PO Box 828702",PROCARD,963220191118,"$ 39,177.39",WIRE,1,IMPORTED,11/30/2019,1,1,"$ 236.72",11-10101-7405-503551-500-000000000-000000,"Data Processing Equipment Maintenance",Services
9008683,"$ 39,177.39",12/03/2019,ISSUED,,"PNC Bank National Association","PO Box 828702",PROCARD,963220191118,"$ 39,177.39",WIRE,44,IMPORTED,11/30/2019,44,1,"$ 20.00",51-59101-7401-509202-500-000000000-000000,"Local Travel",Miscellaneous
9008683,"$ 39,177.39",12/03/2019,ISSUED,,"PNC Bank National Association","PO Box 828702",PROCARD,963220191118,"$ 39,177.39",WIRE,46,IMPORTED,11/30/2019,46,1,"$ 748.80",11-10101-5001-509203-500-000000000-000000,"Out of Region Travel",Miscellaneous
9008683,"$ 39,177.39",12/03/2019,ISSUED,,"PNC Bank National Association","PO Box 828702",PROCARD,963220191118,"$ 39,177.39",WIRE,47,IMPORTED,11/30/2019,47,1,"$ 748.80",11-10101-5001-509203-500-000000000-000000,"Out of Region Travel",Miscellaneous
9008683,"$ 39,177.39",12/03/2019,ISSUED,,"PNC Bank National Association","PO Box 828702",PROCARD,963220191118,"$ 39,177.39",WIRE,48,IMPORTED,11/30/2019,48,1,"$ 748.80",11-10101-5001-509203-500-000000000-000000,"Out of Region Travel",Miscellaneous
9008683,"$ 39,177.39",12/03/2019,ISSUED,,"PNC Bank National Association","PO Box 828702",PROCARD,963220191118,"$ 39,177.39",WIRE,49,IMPORTED,11/30/2019,49,1,"$ 288.01",11-10101-5001-509203-500-000000000-000000,"Out of Region Travel",Miscellaneous
9008683,"$ 39,177.39",12/03/2019,ISSUED,,"PNC Bank National Association","PO Box 828702",PROCARD,963220191118,"$ 39,177.39",WIRE,50,IMPORTED,11/30/2019,50,1,"$ 6.00",11-10101-2051-503334-500-000000000-000000,"Legal Services",Services
9008683,"$ 39,177.39",12/03/2019,ISSUED,,"PNC Bank National Association","PO Box 828702",PROCARD,963220191118,"$ 39,177.39",WIRE,51,IMPORTED,11/30/2019,51,1,"$ 6.00",11-10101-2051-503334-500-000000000-000000,"Legal Services",Services
9008683,"$ 39,177.39",12/03/2019,ISSUED,,"PNC Bank National Association","PO Box 828702",PROCARD,963220191118,"$ 39,177.39",WIRE,52,IMPORTED,11/30/2019,52,1,"$ 6.00",11-10101-2051-503334-500-000000000-000000,"Legal Services",Services
9008683,"$ 39,177.39",12/03/2019,ISSUED,,"PNC Bank National Association","PO Box 828702",PROCARD,963220191118,"$ 39,177.39",WIRE,53,IMPORTED,11/30/2019,53,1,"$ 6.00",11-10101-2051-503334-500-000000000-000000,"Legal Services",Services
9008683,"$ 39,177.39",12/03/2019,ISSUED,,"PNC Bank National Association","PO Box 828702",PROCARD,963220191118,"$ 39,177.39",WIRE,54,IMPORTED,11/30/2019,54,1,"$ 525.45",11-10101-5001-509203-500-000000000-000000,"Out of Region Travel",Miscellaneous
9008683,"$ 39,177.39",12/03/2019,ISSUED,,"PNC Bank National Association","PO Box 828702",PROCARD,963220191118,"$ 39,177.39",WIRE,55,IMPORTED,11/30/2019,55,1,"$ 525.45",11-10101-5001-509203-500-000000000-000000,"Out of Region Travel",Miscellaneous
9008683,"$ 39,177.39",12/03/2019,ISSUED,,"PNC Bank National Association","PO Box 828702",PROCARD,963220191118,"$ 39,177.39",WIRE,56,IMPORTED,11/30/2019,56,1,"$ 108.03",11-10101-5001-509203-500-000000000-000000,"Out of Region Travel",Miscellaneous
9008683,"$ 39,177.39",12/03/2019,ISSUED,,"PNC Bank National Association","PO Box 828702",PROCARD,963220191118,"$ 39,177.39",WIRE,57,IMPORTED,11/30/2019,57,1,"$ 280.00",11-10101-2151-503321-500-000000000-000000,"Training & Development",Services
9008683,"$ 39,177.39",12/03/2019,ISSUED,,"PNC Bank National Association","PO Box 828702",PROCARD,963220191118,"$ 39,177.39",WIRE,58,IMPORTED,11/30/2019,58,1,"$ 204.42",11-22104-0000-504989-400-000000000-000000,"Other Materials & Supplies","Materials and Supplies"
9008683,"$ 39,177.39",12/03/2019,ISSUED,,"PNC Bank National Association","PO Box 828702",PROCARD,963220191118,"$ 39,177.39",WIRE,59,IMPORTED,11/30/2019,59,1,"$ 13.85",11-22107-0000-504989-500-000000000-000000,"Other Materials & Supplies","Materials and Supplies"
9008683,"$ 39,177.39",12/03/2019,ISSUED,,"PNC Bank National Association","PO Box 828702",PROCARD,963220191118,"$ 39,177.39",WIRE,63,IMPORTED,11/30/2019,63,1,"$ 2,238.20",11-10101-3111-504958-500-000000000-000000,"Repro Supplies","Materials and Supplies"
9008683,"$ 39,177.39",12/03/2019,ISSUED,,"PNC Bank National Association","PO Box 828702",PROCARD,963220191118,"$ 39,177.39",WIRE,60,IMPORTED,11/30/2019,60,1,"$ 19.85",11-10101-4401-503901-500-000000000-000000,Postage,Services
9008683,"$ 39,177.39",12/03/2019,ISSUED,,"PNC Bank National Association","PO Box 828702",PROCARD,963220191118,"$ 39,177.39",WIRE,61,IMPORTED,11/30/2019,61,1,"$ 530.12",11-22104-0000-503991-400-000000000-000000,"Other Services",Services
9008683,"$ 39,177.39",12/03/2019,ISSUED,,"PNC Bank National Association","PO Box 828702",PROCARD,963220191118,"$ 39,177.39",WIRE,62,IMPORTED,11/30/2019,62,1,"$ 6.02",11-22101-0000-504989-300-000000000-000000,"Other Materials & Supplies","Materials and Supplies"
9008683,"$ 39,177.39",12/03/2019,ISSUED,,"PNC Bank National Association","PO Box 828702",PROCARD,963220191118,"$ 39,177.39",WIRE,64,IMPORTED,11/30/2019,64,1,"$ 8.01",11-22101-0000-504989-400-000000000-000000,"Other Materials & Supplies","Materials and Supplies"
9008683,"$ 39,177.39",12/03/2019,ISSUED,,"PNC Bank National Association","PO Box 828702",PROCARD,963220191118,"$ 39,177.39",WIRE,65,IMPORTED,11/30/2019,65,1,"$ 248.97",11-22106-0000-504989-300-000000000-000000,"Other Materials & Supplies","Materials and Supplies"
9008683,"$ 39,177.39",12/03/2019,ISSUED,,"PNC Bank National Association","PO Box 828702",PROCARD,963220191118,"$ 39,177.39",WIRE,66,IMPORTED,11/30/2019,66,1,"$ 76.69",11-22107-0000-504989-400-000000000-000000,"Other Materials & Supplies","Materials and Supplies"
9008683,"$ 39,177.39",12/03/2019,ISSUED,,"PNC Bank National Association","PO Box 828702",PROCARD,963220191118,"$ 39,177.39",WIRE,108,IMPORTED,11/30/2019,108,1,"$ 81.33",11-10101-7052-503901-500-000000000-000000,Postage,Services
9008683,"$ 39,177.39",12/03/2019,ISSUED,,"PNC Bank National Association","PO Box 828702",PROCARD,963220191118,"$ 39,177.39",WIRE,109,IMPORTED,11/30/2019,109,1,"$ 99.13",11-10101-7052-503901-500-000000000-000000,Postage,Services
9008683,"$ 39,177.39",12/03/2019,ISSUED,,"PNC Bank National Association","PO Box 828702",PROCARD,963220191118,"$ 39,177.39",WIRE,110,IMPORTED,11/30/2019,110,1,"$ 42.08",11-10101-7052-503901-500-000000000-000000,Postage,Services
9008683,"$ 39,177.39",12/03/2019,ISSUED,,"PNC Bank National Association","PO Box 828702",PROCARD,963220191118,"$ 39,177.39",WIRE,111,IMPORTED,11/30/2019,111,1,"$ 82.76",11-10101-7052-503901-500-000000000-000000,Postage,Services
9008683,"$ 39,177.39",12/03/2019,ISSUED,,"PNC Bank National Association","PO Box 828702",PROCARD,963220191118,"$ 39,177.39",WIRE,113,IMPORTED,11/30/2019,113,1,"$ 25.00",11-22107-0000-504989-500-000000000-000000,"Other Materials & Supplies","Materials and Supplies"
9008683,"$ 39,177.39",12/03/2019,ISSUED,,"PNC Bank National Association","PO Box 828702",PROCARD,963220191118,"$ 39,177.39",WIRE,114,IMPORTED,11/30/2019,114,1,"$ 102.50",11-22107-0000-509201-500-000000000-000000,"Travel & Meeting",Miscellaneous
9008683,"$ 39,177.39",12/03/2019,ISSUED,,"PNC Bank National Association","PO Box 828702",PROCARD,963220191118,"$ 39,177.39",WIRE,115,IMPORTED,11/30/2019,115,1,"$ 6.00",11-10101-2051-503334-500-000000000-000000,"Legal Services",Services
9008683,"$ 39,177.39",12/03/2019,ISSUED,,"PNC Bank National Association","PO Box 828702",PROCARD,963220191118,"$ 39,177.39",WIRE,116,IMPORTED,11/30/2019,116,1,"$ 438.00",11-10101-7404-504956-500-000000000-000000,"Data Processing Supplies","Materials and Supplies"
9008683,"$ 39,177.39",12/03/2019,ISSUED,,"PNC Bank National Association","PO Box 828702",PROCARD,963220191118,"$ 39,177.39",WIRE,117,IMPORTED,11/30/2019,117,1,"$ 25.63",11-10101-7404-504956-500-000000000-000000,"Data Processing Supplies","Materials and Supplies"
9008683,"$ 39,177.39",12/03/2019,ISSUED,,"PNC Bank National Association","PO Box 828702",PROCARD,963220191118,"$ 39,177.39",WIRE,118,IMPORTED,11/30/2019,118,1,"$ 19.00",11-10101-5051-509202-500-000000000-000000,"Local Travel",Miscellaneous
9008683,"$ 39,177.39",12/03/2019,ISSUED,,"PNC Bank National Association","PO Box 828702",PROCARD,963220191118,"$ 39,177.39",WIRE,119,IMPORTED,11/30/2019,119,1,"$ 100.00",11-22107-0000-509201-500-000000000-000000,"Travel & Meeting",Miscellaneous
9008683,"$ 39,177.39",12/03/2019,ISSUED,,"PNC Bank National Association","PO Box 828702",PROCARD,963220191118,"$ 39,177.39",WIRE,120,IMPORTED,11/30/2019,120,1,"$ 1,248.74",11-22102-0000-504989-400-000000000-000000,"Other Materials & Supplies","Materials and Supplies"
9008683,"$ 39,177.39",12/03/2019,ISSUED,,"PNC Bank National Association","PO Box 828702",PROCARD,963220191118,"$ 39,177.39",WIRE,121,IMPORTED,11/30/2019,121,1,"$ 564.60",11-10101-3111-512121-500-000000000-000000,"Equipment Rental & Maintenance","Leases and Rentals"
9008683,"$ 39,177.39",12/03/2019,ISSUED,,"PNC Bank National Association","PO Box 828702",PROCARD,963220191118,"$ 39,177.39",WIRE,122,IMPORTED,11/30/2019,122,1,"$ 386.70",11-22101-0000-504989-300-000000000-000000,"Other Materials & Supplies","Materials and Supplies"
9008683,"$ 39,177.39",12/03/2019,ISSUED,,"PNC Bank National Association","PO Box 828702",PROCARD,963220191118,"$ 39,177.39",WIRE,123,IMPORTED,11/30/2019,123,1,"$ 131.22",11-22106-0000-504989-300-000000000-000000,"Other Materials & Supplies","Materials and Supplies"
9008683,"$ 39,177.39",12/03/2019,ISSUED,,"PNC Bank National Association","PO Box 828702",PROCARD,963220191118,"$ 39,177.39",WIRE,124,IMPORTED,11/30/2019,124,1,"$ 6.00",11-10101-2051-503334-500-000000000-000000,"Legal Services",Services
9008683,"$ 39,177.39",12/03/2019,ISSUED,,"PNC Bank National Association","PO Box 828702",PROCARD,963220191118,"$ 39,177.39",WIRE,125,IMPORTED,11/30/2019,125,1,"$ 105.53",11-22109-0000-504911-300-000000000-000000,"Other Bus Parts","Materials and Supplies"
9008683,"$ 39,177.39",12/03/2019,ISSUED,,"PNC Bank National Association","PO Box 828702",PROCARD,963220191118,"$ 39,177.39",WIRE,126,IMPORTED,11/30/2019,126,1,"$ 150.00",11-10101-2151-503321-500-000000000-000000,"Training & Development",Services
9008683,"$ 39,177.39",12/03/2019,ISSUED,,"PNC Bank National Association","PO Box 828702",PROCARD,963220191118,"$ 39,177.39",WIRE,127,IMPORTED,11/30/2019,127,1,"$ 119.87",11-22104-0000-504989-400-000000000-000000,"Other Materials & Supplies","Materials and Supplies"
9008683,"$ 39,177.39",12/03/2019,ISSUED,,"PNC Bank National Association","PO Box 828702",PROCARD,963220191118,"$ 39,177.39",WIRE,128,IMPORTED,11/30/2019,128,1,"$ 16.10",11-22101-0000-504989-400-000000000-000000,"Other Materials & Supplies","Materials and Supplies"
9008683,"$ 39,177.39",12/03/2019,ISSUED,,"PNC Bank National Association","PO Box 828702",PROCARD,963220191118,"$ 39,177.39",WIRE,129,IMPORTED,11/30/2019,129,1,"$ 124.29",11-10101-7404-504956-500-000000000-000000,"Data Processing Supplies","Materials and Supplies"
9008683,"$ 39,177.39",12/03/2019,ISSUED,,"PNC Bank National Association","PO Box 828702",PROCARD,963220191118,"$ 39,177.39",WIRE,130,IMPORTED,11/30/2019,130,1,"$ 484.30",11-10101-7404-504956-500-000000000-000000,"Data Processing Supplies","Materials and Supplies"
9008683,"$ 39,177.39",12/03/2019,ISSUED,,"PNC Bank National Association","PO Box 828702",PROCARD,963220191118,"$ 39,177.39",WIRE,2,IMPORTED,11/30/2019,2,1,"$ 224.71",51-59101-4101-509802-500-000000000-000000,"ADA Advisory Expenses",Miscellaneous
9008683,"$ 39,177.39",12/03/2019,ISSUED,,"PNC Bank National Association","PO Box 828702",PROCARD,963220191118,"$ 39,177.39",WIRE,3,IMPORTED,11/30/2019,3,1,"$ 42.16",51-59101-4101-509802-500-000000000-000000,"ADA Advisory Expenses",Miscellaneous
9008683,"$ 39,177.39",12/03/2019,ISSUED,,"PNC Bank National Association","PO Box 828702",PROCARD,963220191118,"$ 39,177.39",WIRE,5,IMPORTED,11/30/2019,5,1,"$ 101.30",11-10101-5104-509914-501-000000000-000000,"Other Miscellaneous",Miscellaneous
9008683,"$ 39,177.39",12/03/2019,ISSUED,,"PNC Bank National Association","PO Box 828702",PROCARD,963220191118,"$ 39,177.39",WIRE,6,IMPORTED,11/30/2019,6,1,"$ 362.00",11-10101-2151-503321-500-000000000-000000,"Training & Development",Services
9008683,"$ 39,177.39",12/03/2019,ISSUED,,"PNC Bank National Association","PO Box 828702",PROCARD,963220191118,"$ 39,177.39",WIRE,7,IMPORTED,11/30/2019,7,1,"$ 235.00",11-10101-2151-509101-500-000000000-000000,Dues,Miscellaneous
9008683,"$ 39,177.39",12/03/2019,ISSUED,,"PNC Bank National Association","PO Box 828702",PROCARD,963220191118,"$ 39,177.39",WIRE,11,IMPORTED,11/30/2019,11,1,"$ 47.85",11-22107-0000-504989-500-000000000-000000,"Other Materials & Supplies","Materials and Supplies"
9008683,"$ 39,177.39",12/03/2019,ISSUED,,"PNC Bank National Association","PO Box 828702",PROCARD,963220191118,"$ 39,177.39",WIRE,8,IMPORTED,11/30/2019,8,1,"$ 514.00",11-10101-2151-509101-500-000000000-000000,Dues,Miscellaneous
9008683,"$ 39,177.39",12/03/2019,ISSUED,,"PNC Bank National Association","PO Box 828702",PROCARD,963220191118,"$ 39,177.39",WIRE,9,IMPORTED,11/30/2019,9,1,"$ 66.76",11-10101-7404-504956-500-000000000-000000,"Data Processing Supplies","Materials and Supplies"
9008683,"$ 39,177.39",12/03/2019,ISSUED,,"PNC Bank National Association","PO Box 828702",PROCARD,963220191118,"$ 39,177.39",WIRE,10,IMPORTED,11/30/2019,10,1,"$ 42.83",11-10101-5052-503511-401-000000000-000000,"Passenger Facility Maintenance",Services
9008683,"$ 39,177.39",12/03/2019,ISSUED,,"PNC Bank National Association","PO Box 828702",PROCARD,963220191118,"$ 39,177.39",WIRE,12,IMPORTED,11/30/2019,12,1,"$ 102.50",11-22107-0000-509201-500-000000000-000000,"Travel & Meeting",Miscellaneous
9008683,"$ 39,177.39",12/03/2019,ISSUED,,"PNC Bank National Association","PO Box 828702",PROCARD,963220191118,"$ 39,177.39",WIRE,13,IMPORTED,11/30/2019,13,1,"$ 660.49",11-10101-7405-503551-500-000000000-000000,"Data Processing Equipment Maintenance",Services
9008683,"$ 39,177.39",12/03/2019,ISSUED,,"PNC Bank National Association","PO Box 828702",PROCARD,963220191118,"$ 39,177.39",WIRE,14,IMPORTED,11/30/2019,14,1,"$ 117.02",11-10101-5201-503924-501-000000000-000000,"Award Programs",Services
9008683,"$ 39,177.39",12/03/2019,ISSUED,,"PNC Bank National Association","PO Box 828702",PROCARD,963220191118,"$ 39,177.39",WIRE,15,IMPORTED,11/30/2019,15,1,"$ 7.01",11-22101-0000-504989-400-000000000-000000,"Other Materials & Supplies","Materials and Supplies"
9008683,"$ 39,177.39",12/03/2019,ISSUED,,"PNC Bank National Association","PO Box 828702",PROCARD,963220191118,"$ 39,177.39",WIRE,16,IMPORTED,11/30/2019,16,1,"$ 431.99",11-10101-5104-509914-501-000000000-000000,"Other Miscellaneous",Miscellaneous
9008683,"$ 39,177.39",12/03/2019,ISSUED,,"PNC Bank National Association","PO Box 828702",PROCARD,963220191118,"$ 39,177.39",WIRE,17,IMPORTED,11/30/2019,17,1,"$ 77.32",11-22106-0000-504989-400-000000000-000000,"Other Materials & Supplies","Materials and Supplies"
9008683,"$ 39,177.39",12/03/2019,ISSUED,,"PNC Bank National Association","PO Box 828702",PROCARD,963220191118,"$ 39,177.39",WIRE,18,IMPORTED,11/30/2019,18,1,"$ 67.45",11-10101-7404-504956-500-000000000-000000,"Data Processing Supplies","Materials and Supplies"
9008683,"$ 39,177.39",12/03/2019,ISSUED,,"PNC Bank National Association","PO Box 828702",PROCARD,963220191118,"$ 39,177.39",WIRE,19,IMPORTED,11/30/2019,19,1,"$ 359.70",11-10101-7404-503551-500-000000000-000000,"Data Processing Equipment Maintenance",Services
9008682,"$ 3,749,636.61",12/03/2019,ISSUED,,"SCR Medical Transportation Inc","8801-25 S Greenwood","Manual Invoice Entry",OCT'2019,"$ 3,749,636.61",WIRE,3,"MANUAL LINE ENTRY",10/31/2019,3,14,"$ -35.26",51-57901-0000-508202-500-000000000-000000,"RTA Certification Expense","Purchased Transportation"
9008682,"$ 3,749,636.61",12/03/2019,ISSUED,,"SCR Medical Transportation Inc","8801-25 S Greenwood","Manual Invoice Entry",OCT'2019,"$ 3,749,636.61",WIRE,3,"MANUAL LINE ENTRY",10/31/2019,3,3,"$ 288.86",51-57901-0000-508202-500-000000000-000000,"RTA Certification Expense","Purchased Transportation"
9008682,"$ 3,749,636.61",12/03/2019,ISSUED,,"SCR Medical Transportation Inc","8801-25 S Greenwood","Manual Invoice Entry",OCT'2019,"$ 3,749,636.61",WIRE,3,"MANUAL LINE ENTRY",10/31/2019,3,13,"$ -3,464.06",51-58501-0000-508202-500-000000000-000000,"RTA Certification Expense","Purchased Transportation"
9008682,"$ 3,749,636.61",12/03/2019,ISSUED,,"SCR Medical Transportation Inc","8801-25 S Greenwood","Manual Invoice Entry",OCT'2019,"$ 3,749,636.61",WIRE,3,"MANUAL LINE ENTRY",10/31/2019,3,2,"$ 28,381.08",51-58501-0000-508202-500-000000000-000000,"RTA Certification Expense","Purchased Transportation"
9008682,"$ 3,749,636.61",12/03/2019,ISSUED,,"SCR Medical Transportation Inc","8801-25 S Greenwood","Manual Invoice Entry",OCT'2019,"$ 3,749,636.61",WIRE,3,"MANUAL LINE ENTRY",10/31/2019,3,7,"$ 103,167.50",51-59101-0000-205104-000-000000000-000000,"Unredeemed Paratransit Fares","Purchased Transportation"
9008682,"$ 3,749,636.61",12/03/2019,ISSUED,,"SCR Medical Transportation Inc","8801-25 S Greenwood","Manual Invoice Entry",OCT'2019,"$ 3,749,636.61",WIRE,3,"MANUAL LINE ENTRY",10/31/2019,3,1,"$ 4,410,637.25",51-58601-0000-508101-500-000000000-000000,"Purchased Transportation","Purchased Transportation"
9008682,"$ 3,749,636.61",12/03/2019,ISSUED,,"SCR Medical Transportation Inc","8801-25 S Greenwood","Manual Invoice Entry",OCT'2019,"$ 3,749,636.61",WIRE,3,"MANUAL LINE ENTRY",10/31/2019,3,9,"$ -147,830.00",51-58601-0000-401101-100-000000000-000000,"Passenger Fares","Purchased Transportation"
9008682,"$ 3,749,636.61",12/03/2019,ISSUED,,"SCR Medical Transportation Inc","8801-25 S Greenwood","Manual Invoice Entry",OCT'2019,"$ 3,749,636.61",WIRE,3,"MANUAL LINE ENTRY",10/31/2019,3,12,"$ -538,341.26",51-58601-0000-508101-500-000000000-000000,"Purchased Transportation","Purchased Transportation"
9008682,"$ 3,749,636.61",12/03/2019,ISSUED,,"SCR Medical Transportation Inc","8801-25 S Greenwood","Manual Invoice Entry",OCT'2019,"$ 3,749,636.61",WIRE,2,"MANUAL LINE ENTRY",10/31/2019,2,1,"$ -3,749,636.61",51-58601-0000-508101-500-000000000-000000,"Purchased Transportation","Purchased Transportation"
9008682,"$ 3,749,636.61",12/03/2019,ISSUED,,"SCR Medical Transportation Inc","8801-25 S Greenwood","Manual Invoice Entry",OCT'2019,"$ 3,749,636.61",WIRE,1,"HEADER MATCH",10/31/2019,1,1,"$ 3,749,636.61",51-58601-0000-508101-500-000000000-000000,"Purchased Transportation","Purchased Transportation"
9008682,"$ 3,749,636.61",12/03/2019,ISSUED,,"SCR Medical Transportation Inc","8801-25 S Greenwood","Manual Invoice Entry",OCT'2019,"$ 3,749,636.61",WIRE,3,"MANUAL LINE ENTRY",10/31/2019,3,8,"$ -103,167.50",51-58601-0000-401101-100-000000000-000000,"Passenger Fares","Purchased Transportation"
9008681,"$ 5,797.53",12/02/2019,ISSUED,,"Great West Life & Annuity Ins",Empower,"Manual Invoice Entry",HQ112919,"$ 5,797.53",WIRE,2,"MANUAL LINE ENTRY",11/26/2019,2,1,"$ 3,475.78",11-22106-0000-202106-000-000000000-000000,"401K Withheld","401k/Pension EE/ER Contribution"
9008681,"$ 5,797.53",12/02/2019,ISSUED,,"Great West Life & Annuity Ins",Empower,"Manual Invoice Entry",HQ112919,"$ 5,797.53",WIRE,1,"MANUAL LINE ENTRY",11/26/2019,1,1,"$ 2,321.75",11-22101-0000-202106-000-000000000-000000,"401K Withheld","401k/Pension EE/ER Contribution"
9008680,"$ .50",11/29/2019,ISSUED,,"Aurora Policeman's Credit Union","1200 E Indian Trail","Manual Invoice Entry",AP112919A,"$ .50",WIRE,1,"MANUAL LINE ENTRY",11/27/2019,1,1,"$ .50",11-22101-0000-202102-000-000000000-000000,"Credit Union Withheld","Payroll Deductions"
9008679,"$ 3,119.11",11/29/2019,ISSUED,,"Village of Schaumburg","Fifth Third Bank","Manual Invoice Entry",VS112119,"$ 3,119.11",WIRE,1,"MANUAL LINE ENTRY",11/26/2019,1,1,"$ 3,119.11",11-10101-0000-205113-000-000000000-000000,"Deferred Monthly Tickets","Misc Reimbursements"
9008678,"$ 2,924.73",11/29/2019,ISSUED,,"Village Bank and Trust","234 W Northwest Hwy","Manual Invoice Entry",BE112819,"$ 2,924.73",WIRE,2,"MANUAL LINE ENTRY",11/27/2019,2,1,"$ 2,924.73",11-10101-0000-202109-000-000000000-000000,"Flexible Spending Withheld","Payroll Deductions"
9008677,"$ 16,438.68",11/29/2019,ISSUED,,"Principal Financial Group","Butterfield Centre","Manual Invoice Entry",FV112919,"$ 16,438.68",WIRE,1,"MANUAL LINE ENTRY",11/26/2019,1,1,"$ 16,438.68",11-22101-0000-202107-000-000000000-000000,"Pension Withheld","401k/Pension EE/ER Contribution"
9008676,"$ 23,546.59",11/29/2019,ISSUED,,"Principal Financial Group","Butterfield Centre","Manual Invoice Entry",RV112919,"$ 23,546.59",WIRE,1,"MANUAL LINE ENTRY",11/26/2019,1,1,"$ 23,546.59",11-22106-0000-202107-000-000000000-000000,"Pension Withheld","401k/Pension EE/ER Contribution"
9008675,"$ 285.00",11/29/2019,ISSUED,,"Credit Union 1","450 E 22nd St","Manual Invoice Entry",EC112919,"$ 285.00",WIRE,1,"MANUAL LINE ENTRY",11/27/2019,1,1,"$ 285.00",11-22106-0000-202102-000-000000000-000000,"Credit Union Withheld","Payroll Deductions"
9008674,"$ 1,675.00",11/29/2019,ISSUED,,"Aurora Policeman's Credit Union","1200 E Indian Trail","Manual Invoice Entry",AP112919,"$ 1,675.00",WIRE,1,"MANUAL LINE ENTRY",11/27/2019,1,1,"$ 1,675.00",11-22101-0000-202102-000-000000000-000000,"Credit Union Withheld","Payroll Deductions"
9008673,"$ 25,813.12",11/27/2019,ISSUED,,"Underwriters Safety & Claims","PO Box 23790","Manual Invoice Entry",WC112619,"$ 25,813.12",WIRE,1,"MANUAL LINE ENTRY",11/26/2019,1,1,"$ 25,813.12",11-10101-0000-101204-000-000000000-000000,"Workers Compensation Claims Account",Claims
9008672,"$ 101,917.56",11/25/2019,ISSUED,,"Great West Life & Annuity Ins",Empower,"Manual Invoice Entry",HQ112219,"$ 101,917.56",WIRE,3,"MANUAL LINE ENTRY",11/21/2019,3,1,"$ 3,625.48",11-22108-0000-202106-000-000000000-000000,"401K Withheld","401k/Pension EE/ER Contribution"
9008672,"$ 101,917.56",11/25/2019,ISSUED,,"Great West Life & Annuity Ins",Empower,"Manual Invoice Entry",HQ112219,"$ 101,917.56",WIRE,4,"MANUAL LINE ENTRY",11/21/2019,4,1,"$ 2,472.38",11-22102-0000-202106-000-000000000-000000,"401K Withheld","401k/Pension EE/ER Contribution"
9008672,"$ 101,917.56",11/25/2019,ISSUED,,"Great West Life & Annuity Ins",Empower,"Manual Invoice Entry",HQ112219,"$ 101,917.56",WIRE,1,"MANUAL LINE ENTRY",11/21/2019,1,1,"$ 2,319.82",11-22103-0000-202106-000-000000000-000000,"401K Withheld","401k/Pension EE/ER Contribution"
9008672,"$ 101,917.56",11/25/2019,ISSUED,,"Great West Life & Annuity Ins",Empower,"Manual Invoice Entry",HQ112219,"$ 101,917.56",WIRE,8,"MANUAL LINE ENTRY",11/21/2019,8,1,"$ 73,515.77",11-10101-0000-202106-000-000000000-000000,"401K Withheld","401k/Pension EE/ER Contribution"
9008672,"$ 101,917.56",11/25/2019,ISSUED,,"Great West Life & Annuity Ins",Empower,"Manual Invoice Entry",HQ112219,"$ 101,917.56",WIRE,6,"MANUAL LINE ENTRY",11/21/2019,6,1,"$ 7,484.16",11-22104-0000-202106-000-000000000-000000,"401K Withheld","401k/Pension EE/ER Contribution"
9008672,"$ 101,917.56",11/25/2019,ISSUED,,"Great West Life & Annuity Ins",Empower,"Manual Invoice Entry",HQ112219,"$ 101,917.56",WIRE,7,"MANUAL LINE ENTRY",11/21/2019,7,1,"$ 4,388.46",11-22105-0000-202106-000-000000000-000000,"401K Withheld","401k/Pension EE/ER Contribution"
9008672,"$ 101,917.56",11/25/2019,ISSUED,,"Great West Life & Annuity Ins",Empower,"Manual Invoice Entry",HQ112219,"$ 101,917.56",WIRE,5,"MANUAL LINE ENTRY",11/21/2019,5,1,"$ 4,372.46",11-22109-0000-202106-000-000000000-000000,"401K Withheld","401k/Pension EE/ER Contribution"
9008672,"$ 101,917.56",11/25/2019,ISSUED,,"Great West Life & Annuity Ins",Empower,"Manual Invoice Entry",HQ112219,"$ 101,917.56",WIRE,2,"MANUAL LINE ENTRY",11/21/2019,2,1,"$ 3,739.03",11-22107-0000-202106-000-000000000-000000,"401K Withheld","401k/Pension EE/ER Contribution"
9008671,"$ 4,233.22",11/22/2019,ISSUED,,"Village Bank and Trust","234 W Northwest Hwy","Manual Invoice Entry",BE112119,"$ 4,233.22",WIRE,1,"MANUAL LINE ENTRY",11/21/2019,1,1,"$ 4,233.22",11-10101-0000-202109-000-000000000-000000,"Flexible Spending Withheld","Payroll Deductions"
9008670,"$ 79,251.53",11/22/2019,ISSUED,,"Principal Financial Group","Butterfield Centre","Manual Invoice Entry",NW112219,"$ 79,251.53",WIRE,1,"MANUAL LINE ENTRY",11/21/2019,1,1,"$ 79,251.53",11-22104-0000-202107-000-000000000-000000,"Pension Withheld","401k/Pension EE/ER Contribution"
9008669,"$ 29,754.06",11/22/2019,ISSUED,,"Principal Financial Group","Butterfield Centre","Manual Invoice Entry",SW112219,"$ 29,754.06",WIRE,1,"MANUAL LINE ENTRY",11/21/2019,1,1,"$ 29,754.06",11-22108-0000-202107-000-000000000-000000,"Pension Withheld","401k/Pension EE/ER Contribution"
9008668,"$ 72,583.80",11/22/2019,ISSUED,,"Principal Financial Group","Butterfield Centre","Manual Invoice Entry",SO112219,"$ 72,583.80",WIRE,1,"MANUAL LINE ENTRY",11/21/2019,1,1,"$ 72,583.80",11-22107-0000-202107-000-000000000-000000,"Pension Withheld","401k/Pension EE/ER Contribution"
9008667,"$ 18,164.93",11/22/2019,ISSUED,,"Principal Financial Group","Butterfield Centre","Manual Invoice Entry",HE112219,"$ 18,164.93",WIRE,1,"MANUAL LINE ENTRY",11/21/2019,1,1,"$ 18,164.93",11-22102-0000-202107-000-000000000-000000,"Pension Withheld","401k/Pension EE/ER Contribution"
9008666,"$ 14,808.67",11/22/2019,ISSUED,,"Principal Financial Group","Butterfield Centre","Manual Invoice Entry",NS112219,"$ 14,808.67",WIRE,1,"MANUAL LINE ENTRY",11/21/2019,1,1,"$ 14,808.67",11-22105-0000-202107-000-000000000-000000,"Pension Withheld","401k/Pension EE/ER Contribution"
9008665,"$ 96,411.50",11/22/2019,ISSUED,,"Wells Fargo Bank NA","733 Marquette Ave 5th Flr","Manual Invoice Entry",WE112219,"$ 81,665.35",WIRE,2,"MANUAL LINE ENTRY",11/21/2019,2,1,"$ 81,665.35",11-22109-0000-202107-000-000000000-000000,"Pension Withheld","401k/Pension EE/ER Contribution"
9008665,"$ 96,411.50",11/22/2019,ISSUED,,"Wells Fargo Bank NA","733 Marquette Ave 5th Flr","Manual Invoice Entry",NO112219,"$ 14,746.15",WIRE,1,"MANUAL LINE ENTRY",11/21/2019,1,1,"$ 14,746.15",11-22103-0000-202107-000-000000000-000000,"Pension Withheld","401k/Pension EE/ER Contribution"
9008664,"$ 475.00",11/22/2019,ISSUED,,"United Credit Union","4444 S Pulaski","Manual Invoice Entry",UC112219,"$ 475.00",WIRE,1,"MANUAL LINE ENTRY",11/21/2019,1,1,"$ 425.00",11-22108-0000-202102-000-000000000-000000,"Credit Union Withheld","Payroll Deductions"
9008664,"$ 475.00",11/22/2019,ISSUED,,"United Credit Union","4444 S Pulaski","Manual Invoice Entry",UC112219,"$ 475.00",WIRE,2,"MANUAL LINE ENTRY",11/21/2019,2,1,"$ 50.00",11-10101-0000-202102-000-000000000-000000,"Credit Union Withheld","Payroll Deductions"
9008663,"$ 49,015.55",11/22/2019,ISSUED,,"Northside L Federal C U - West Town","1419 W Roosevelt Rd","Manual Invoice Entry",NL112219,"$ 49,015.55",WIRE,3,"MANUAL LINE ENTRY",11/21/2019,3,1,"$ 35.00",11-22105-0000-202102-000-000000000-000000,"Credit Union Withheld","Payroll Deductions"
9008663,"$ 49,015.55",11/22/2019,ISSUED,,"Northside L Federal C U - West Town","1419 W Roosevelt Rd","Manual Invoice Entry",NL112219,"$ 49,015.55",WIRE,1,"MANUAL LINE ENTRY",11/21/2019,1,1,"$ 1,049.00",11-10101-0000-202102-000-000000000-000000,"Credit Union Withheld","Payroll Deductions"
9008663,"$ 49,015.55",11/22/2019,ISSUED,,"Northside L Federal C U - West Town","1419 W Roosevelt Rd","Manual Invoice Entry",NL112219,"$ 49,015.55",WIRE,4,"MANUAL LINE ENTRY",11/21/2019,4,1,"$ 2,493.00",11-22104-0000-202102-000-000000000-000000,"Credit Union Withheld","Payroll Deductions"
9008663,"$ 49,015.55",11/22/2019,ISSUED,,"Northside L Federal C U - West Town","1419 W Roosevelt Rd","Manual Invoice Entry",NL112219,"$ 49,015.55",WIRE,5,"MANUAL LINE ENTRY",11/21/2019,5,1,"$ 2,650.00",11-22108-0000-202102-000-000000000-000000,"Credit Union Withheld","Payroll Deductions"
9008663,"$ 49,015.55",11/22/2019,ISSUED,,"Northside L Federal C U - West Town","1419 W Roosevelt Rd","Manual Invoice Entry",NL112219,"$ 49,015.55",WIRE,2,"MANUAL LINE ENTRY",11/21/2019,2,1,"$ 10,818.94",11-22107-0000-202102-000-000000000-000000,"Credit Union Withheld","Payroll Deductions"
9008663,"$ 49,015.55",11/22/2019,ISSUED,,"Northside L Federal C U - West Town","1419 W Roosevelt Rd","Manual Invoice Entry",NL112219,"$ 49,015.55",WIRE,6,"MANUAL LINE ENTRY",11/21/2019,6,1,"$ 31,969.61",11-22109-0000-202102-000-000000000-000000,"Credit Union Withheld","Payroll Deductions"
9008662,"$ 50.00",11/22/2019,ISSUED,,"Credit Union 1","450 E 22nd St","Manual Invoice Entry",E112219,"$ 50.00",WIRE,1,"MANUAL LINE ENTRY",11/21/2019,1,1,"$ 50.00",11-22108-0000-202102-000-000000000-000000,"Credit Union Withheld","Payroll Deductions"
9008661,"$ 2,100.00",11/22/2019,ISSUED,,"Amalgamated Transit Union","Division 900","Manual Invoice Entry",AT112219,"$ 2,100.00",WIRE,1,"MANUAL LINE ENTRY",11/21/2019,1,1,"$ 2,100.00",11-22103-0000-202111-000-000000000-000000,"Union Dues Withheld","Payroll Deductions"
9008660,"$ 1,836.25",11/22/2019,ISSUED,,"Abri Credit Union","1350 W Renwick Rd","Manual Invoice Entry",PT0112219,"$ 1,836.25",WIRE,2,"MANUAL LINE ENTRY",11/21/2019,2,1,"$ 1,102.50",11-22102-0000-202102-000-000000000-000000,"Credit Union Withheld","Payroll Deductions"
9008660,"$ 1,836.25",11/22/2019,ISSUED,,"Abri Credit Union","1350 W Renwick Rd","Manual Invoice Entry",PT0112219,"$ 1,836.25",WIRE,1,"MANUAL LINE ENTRY",11/21/2019,1,1,"$ 733.75",11-10101-0000-202102-000-000000000-000000,"Credit Union Withheld","Payroll Deductions"
9008659,"$ 24,846.68",11/20/2019,ISSUED,,"Underwriters Safety & Claims","PO Box 23790","Manual Invoice Entry",WC111919,"$ 24,846.68",WIRE,1,"MANUAL LINE ENTRY",11/19/2019,1,1,"$ 24,846.68",11-10101-0000-101204-000-000000000-000000,"Workers Compensation Claims Account",Claims
9008658,"$ 50,054.36",11/20/2019,ISSUED,,"The Standard","300 North Martingale Rd","Manual Invoice Entry",144253112019,"$ 50,054.36",WIRE,1,"MANUAL LINE ENTRY",11/18/2019,1,1,"$ 50,054.36",11-10101-0000-205501-000-000000000-000000,"Health Insurance Reserve - Current","Health Insurance"
9008657,"$ 2,308.32",11/20/2019,ISSUED,,"Fidelity Security Life Insurance Eye","FSL EyeMed Premiums  9633314","Manual Invoice Entry",9633314112019,"$ 2,308.32",WIRE,1,"MANUAL LINE ENTRY",11/18/2019,1,1,"$ 2,308.32",11-10101-0000-205501-000-000000000-000000,"Health Insurance Reserve - Current","Health Insurance"
9008656,"$ 139,763.34",11/20/2019,ISSUED,,"OptumRx Inc","c/o JP Morgan Chase","Manual Invoice Entry",514576112019,"$ 139,763.34",WIRE,1,"HEADER MATCH",11/18/2019,1,1,"$ 139,763.34",11-10101-0000-205501-000-000000000-000000,"Health Insurance Reserve - Current","Health Insurance"
9008655,"$ 2,186,103.10",11/20/2019,ISSUED,,"Blue Cross Blue Shield of Illinois","PO Box 1186","Manual Invoice Entry",264413112019,"$ 2,186,103.10",WIRE,1,"HEADER MATCH",11/18/2019,1,1,"$ 2,186,103.10",11-10101-0000-205501-000-000000000-000000,"Health Insurance Reserve - Current","Health Insurance"
9008654,"$ 7,660.64",11/19/2019,ISSUED,,Metlife,"Dept CH 10579","Manual Invoice Entry",301585112019,"$ 7,660.64",WIRE,1,"MANUAL LINE ENTRY",11/18/2019,1,1,"$ 7,660.64",11-10101-0000-205501-000-000000000-000000,"Health Insurance Reserve - Current","Health Insurance"
9008653,"$ 116,867.00",11/19/2019,ISSUED,,"JP Morgan Chase","Pace Metlife 0475020138","Manual Invoice Entry",301585112019,"$ 116,867.00",WIRE,1,"MANUAL LINE ENTRY",11/18/2019,1,1,"$ 116,867.00",11-10101-0000-205501-000-000000000-000000,"Health Insurance Reserve - Current","Health Insurance"
9008652,"$ 5,661.16",11/18/2019,ISSUED,,"Great West Life & Annuity Ins",Empower,"Manual Invoice Entry",HQ111519,"$ 5,661.16",WIRE,1,"MANUAL LINE ENTRY",11/14/2019,1,1,"$ 2,321.75",11-22101-0000-202106-000-000000000-000000,"401K Withheld","401k/Pension EE/ER Contribution"
9008652,"$ 5,661.16",11/18/2019,ISSUED,,"Great West Life & Annuity Ins",Empower,"Manual Invoice Entry",HQ111519,"$ 5,661.16",WIRE,2,"MANUAL LINE ENTRY",11/14/2019,2,1,"$ 3,339.41",11-22106-0000-202106-000-000000000-000000,"401K Withheld","401k/Pension EE/ER Contribution"
9008651,"$ 388.75",11/18/2019,ISSUED,,"Edenred Commuter Benefit Solutions LLC","Edenred USA","Manual Invoice Entry",000526604,"$ 388.75",WIRE,1,"MANUAL LINE ENTRY",11/12/2019,1,1,"$ 388.75",11-10101-0000-202114-000-000000000-000000,"Commuter Benefits Withheld","Payroll Deductions"
9008650,"$ 5,335.09",11/15/2019,ISSUED,,"Village Bank and Trust","234 W Northwest Hwy","Manual Invoice Entry",BE111419,"$ 5,335.09",WIRE,1,"MANUAL LINE ENTRY",11/14/2019,1,1,"$ 5,335.09",11-10101-0000-202109-000-000000000-000000,"Flexible Spending Withheld","Payroll Deductions"
9008649,"$ 22,551.59",11/15/2019,ISSUED,,"Principal Financial Group","Butterfield Centre","Manual Invoice Entry",SW111519,"$ 22,551.59",WIRE,1,"MANUAL LINE ENTRY",11/14/2019,1,1,"$ 22,551.59",11-22108-0000-202107-000-000000000-000000,"Pension Withheld","401k/Pension EE/ER Contribution"
9008648,"$ 16,109.58",11/15/2019,ISSUED,,"Principal Financial Group","Butterfield Centre","Manual Invoice Entry",FV111519,"$ 16,109.58",WIRE,1,"MANUAL LINE ENTRY",11/14/2019,1,1,"$ 16,109.58",11-22101-0000-202107-000-000000000-000000,"Pension Withheld","401k/Pension EE/ER Contribution"
9008647,"$ 24,364.61",11/15/2019,ISSUED,,"Principal Financial Group","Butterfield Centre","Manual Invoice Entry",RV111519,"$ 24,364.61",WIRE,1,"MANUAL LINE ENTRY",11/14/2019,1,1,"$ 24,364.61",11-22106-0000-202107-000-000000000-000000,"Pension Withheld","401k/Pension EE/ER Contribution"
9008646,"$ 285.00",11/15/2019,ISSUED,,"Credit Union 1","450 E 22nd St","Manual Invoice Entry",EC111519,"$ 285.00",WIRE,1,"MANUAL LINE ENTRY",11/14/2019,1,1,"$ 285.00",11-22106-0000-202102-000-000000000-000000,"Credit Union Withheld","Payroll Deductions"
9008645,"$ 1,675.50",11/15/2019,ISSUED,,"Aurora Policeman's Credit Union","1200 E Indian Trail","Manual Invoice Entry",AP111519,"$ 1,675.50",WIRE,1,"MANUAL LINE ENTRY",11/14/2019,1,1,"$ 1,675.50",11-22101-0000-202102-000-000000000-000000,"Credit Union Withheld","Payroll Deductions"
9008644,"$ 2,919.04",11/14/2019,ISSUED,,"Village of Schaumburg","Fifth Third Bank","Manual Invoice Entry",VS110719,"$ 2,919.04",WIRE,1,"MANUAL LINE ENTRY",11/12/2019,1,1,"$ 2,919.04",11-10101-0000-205113-000-000000000-000000,"Deferred Monthly Tickets","Misc Reimbursements"
9008643,"$ 18,499.99",11/13/2019,ISSUED,,"Underwriters Safety & Claims","PO Box 23790","Manual Invoice Entry",WC111219,"$ 18,499.99",WIRE,1,"MANUAL LINE ENTRY",11/12/2019,1,1,"$ 18,499.99",11-10101-0000-101204-000-000000000-000000,"Workers Compensation Claims Account",Claims
9008642,"$ 100,361.96",11/12/2019,ISSUED,,"Great West Life & Annuity Ins",Empower,"Manual Invoice Entry",HQ110819,"$ 100,361.96",WIRE,8,"MANUAL LINE ENTRY",11/07/2019,8,1,"$ 71,571.32",11-10101-0000-202106-000-000000000-000000,"401K Withheld","401k/Pension EE/ER Contribution"
9008642,"$ 100,361.96",11/12/2019,ISSUED,,"Great West Life & Annuity Ins",Empower,"Manual Invoice Entry",HQ110819,"$ 100,361.96",WIRE,6,"MANUAL LINE ENTRY",11/07/2019,6,1,"$ 7,536.41",11-22104-0000-202106-000-000000000-000000,"401K Withheld","401k/Pension EE/ER Contribution"
9008642,"$ 100,361.96",11/12/2019,ISSUED,,"Great West Life & Annuity Ins",Empower,"Manual Invoice Entry",HQ110819,"$ 100,361.96",WIRE,7,"MANUAL LINE ENTRY",11/07/2019,7,1,"$ 4,724.28",11-22105-0000-202106-000-000000000-000000,"401K Withheld","401k/Pension EE/ER Contribution"
9008642,"$ 100,361.96",11/12/2019,ISSUED,,"Great West Life & Annuity Ins",Empower,"Manual Invoice Entry",HQ110819,"$ 100,361.96",WIRE,1,"MANUAL LINE ENTRY",11/07/2019,1,1,"$ 2,266.54",11-22103-0000-202106-000-000000000-000000,"401K Withheld","401k/Pension EE/ER Contribution"
9008642,"$ 100,361.96",11/12/2019,ISSUED,,"Great West Life & Annuity Ins",Empower,"Manual Invoice Entry",HQ110819,"$ 100,361.96",WIRE,3,"MANUAL LINE ENTRY",11/07/2019,3,1,"$ 3,675.48",11-22108-0000-202106-000-000000000-000000,"401K Withheld","401k/Pension EE/ER Contribution"
9008642,"$ 100,361.96",11/12/2019,ISSUED,,"Great West Life & Annuity Ins",Empower,"Manual Invoice Entry",HQ110819,"$ 100,361.96",WIRE,2,"MANUAL LINE ENTRY",11/07/2019,2,1,"$ 3,594.84",11-22107-0000-202106-000-000000000-000000,"401K Withheld","401k/Pension EE/ER Contribution"
9008642,"$ 100,361.96",11/12/2019,ISSUED,,"Great West Life & Annuity Ins",Empower,"Manual Invoice Entry",HQ110819,"$ 100,361.96",WIRE,4,"MANUAL LINE ENTRY",11/07/2019,4,1,"$ 2,621.38",11-22102-0000-202106-000-000000000-000000,"401K Withheld","401k/Pension EE/ER Contribution"
9008642,"$ 100,361.96",11/12/2019,ISSUED,,"Great West Life & Annuity Ins",Empower,"Manual Invoice Entry",HQ110819,"$ 100,361.96",WIRE,5,"MANUAL LINE ENTRY",11/07/2019,5,1,"$ 4,371.71",11-22109-0000-202106-000-000000000-000000,"401K Withheld","401k/Pension EE/ER Contribution"
9008641,"$ 2,299.16",11/08/2019,ISSUED,,"Village Bank and Trust","234 W Northwest Hwy","Manual Invoice Entry",BE110719,"$ 2,299.16",WIRE,1,"MANUAL LINE ENTRY",11/07/2019,1,1,"$ 2,299.16",11-10101-0000-202109-000-000000000-000000,"Flexible Spending Withheld","Payroll Deductions"
9008640,"$ 79,034.33",11/08/2019,ISSUED,,"Principal Financial Group","Butterfield Centre","Manual Invoice Entry",NW110819,"$ 79,034.33",WIRE,1,"MANUAL LINE ENTRY",11/07/2019,1,1,"$ 79,034.33",11-22104-0000-202107-000-000000000-000000,"Pension Withheld","401k/Pension EE/ER Contribution"
9008639,"$ 29,932.55",11/08/2019,ISSUED,,"Principal Financial Group","Butterfield Centre","Manual Invoice Entry",SW110819,"$ 29,932.55",WIRE,1,"MANUAL LINE ENTRY",11/07/2019,1,1,"$ 29,932.55",11-22108-0000-202107-000-000000000-000000,"Pension Withheld","401k/Pension EE/ER Contribution"
9008638,"$ 70,084.80",11/08/2019,ISSUED,,"Principal Financial Group","Butterfield Centre","Manual Invoice Entry",SO110819,"$ 70,084.80",WIRE,1,"MANUAL LINE ENTRY",11/07/2019,1,1,"$ 70,084.80",11-22107-0000-202107-000-000000000-000000,"Pension Withheld","401k/Pension EE/ER Contribution"
9008637,"$ 17,937.65",11/08/2019,ISSUED,,"Principal Financial Group","Butterfield Centre","Manual Invoice Entry",HE110819,"$ 17,937.65",WIRE,1,"MANUAL LINE ENTRY",11/07/2019,1,1,"$ 17,937.65",11-22102-0000-202107-000-000000000-000000,"Pension Withheld","401k/Pension EE/ER Contribution"
9008636,"$ 14,934.31",11/08/2019,ISSUED,,"Principal Financial Group","Butterfield Centre","Manual Invoice Entry",NS110819,"$ 14,934.31",WIRE,1,"MANUAL LINE ENTRY",11/07/2019,1,1,"$ 14,934.31",11-22105-0000-202107-000-000000000-000000,"Pension Withheld","401k/Pension EE/ER Contribution"
9008635,"$ 96,495.84",11/08/2019,ISSUED,,"Wells Fargo Bank NA","733 Marquette Ave 5th Flr","Manual Invoice Entry",WE110819,"$ 81,756.68",WIRE,1,"MANUAL LINE ENTRY",11/07/2019,1,1,"$ 81,756.68",11-22109-0000-202107-000-000000000-000000,"Pension Withheld","401k/Pension EE/ER Contribution"
9008635,"$ 96,495.84",11/08/2019,ISSUED,,"Wells Fargo Bank NA","733 Marquette Ave 5th Flr","Manual Invoice Entry",NO110819,"$ 14,739.16",WIRE,1,"MANUAL LINE ENTRY",11/07/2019,1,1,"$ 14,739.16",11-22103-0000-202107-000-000000000-000000,"Pension Withheld","401k/Pension EE/ER Contribution"
9008634,"$ 475.00",11/08/2019,ISSUED,,"United Credit Union","4444 S Pulaski","Manual Invoice Entry",UC110819,"$ 475.00",WIRE,2,"MANUAL LINE ENTRY",11/07/2019,2,1,"$ 50.00",11-10101-0000-202102-000-000000000-000000,"Credit Union Withheld","Payroll Deductions"
9008634,"$ 475.00",11/08/2019,ISSUED,,"United Credit Union","4444 S Pulaski","Manual Invoice Entry",UC110819,"$ 475.00",WIRE,1,"MANUAL LINE ENTRY",11/07/2019,1,1,"$ 425.00",11-22108-0000-202102-000-000000000-000000,"Credit Union Withheld","Payroll Deductions"
9008633,"$ 49,605.03",11/08/2019,ISSUED,,"Northside L Federal C U - West Town","1419 W Roosevelt Rd","Manual Invoice Entry",NL110819,"$ 49,605.03",WIRE,6,"MANUAL LINE ENTRY",11/07/2019,6,1,"$ 33,187.00",11-22109-0000-202102-000-000000000-000000,"Credit Union Withheld","Payroll Deductions"
9008633,"$ 49,605.03",11/08/2019,ISSUED,,"Northside L Federal C U - West Town","1419 W Roosevelt Rd","Manual Invoice Entry",NL110819,"$ 49,605.03",WIRE,2,"MANUAL LINE ENTRY",11/07/2019,2,1,"$ 10,316.03",11-22107-0000-202102-000-000000000-000000,"Credit Union Withheld","Payroll Deductions"
9008633,"$ 49,605.03",11/08/2019,ISSUED,,"Northside L Federal C U - West Town","1419 W Roosevelt Rd","Manual Invoice Entry",NL110819,"$ 49,605.03",WIRE,3,"MANUAL LINE ENTRY",11/07/2019,3,1,"$ 35.00",11-22105-0000-202102-000-000000000-000000,"Credit Union Withheld","Payroll Deductions"
9008633,"$ 49,605.03",11/08/2019,ISSUED,,"Northside L Federal C U - West Town","1419 W Roosevelt Rd","Manual Invoice Entry",NL110819,"$ 49,605.03",WIRE,4,"MANUAL LINE ENTRY",11/07/2019,4,1,"$ 2,368.00",11-22104-0000-202102-000-000000000-000000,"Credit Union Withheld","Payroll Deductions"
9008633,"$ 49,605.03",11/08/2019,ISSUED,,"Northside L Federal C U - West Town","1419 W Roosevelt Rd","Manual Invoice Entry",NL110819,"$ 49,605.03",WIRE,1,"MANUAL LINE ENTRY",11/07/2019,1,1,"$ 1,049.00",11-10101-0000-202102-000-000000000-000000,"Credit Union Withheld","Payroll Deductions"
9008633,"$ 49,605.03",11/08/2019,ISSUED,,"Northside L Federal C U - West Town","1419 W Roosevelt Rd","Manual Invoice Entry",NL110819,"$ 49,605.03",WIRE,5,"MANUAL LINE ENTRY",11/07/2019,5,1,"$ 2,650.00",11-22108-0000-202102-000-000000000-000000,"Credit Union Withheld","Payroll Deductions"
9008632,"$ 50.00",11/08/2019,ISSUED,,"Credit Union 1","450 E 22nd St","Manual Invoice Entry",E110819,"$ 50.00",WIRE,1,"MANUAL LINE ENTRY",11/07/2019,1,1,"$ 50.00",11-22108-0000-202102-000-000000000-000000,"Credit Union Withheld","Payroll Deductions"
9008631,"$ 2,222.00",11/08/2019,ISSUED,,"Amalgamated Transit Union","Division 900","Manual Invoice Entry",AT110819,"$ 2,222.00",WIRE,1,"MANUAL LINE ENTRY",11/07/2019,1,1,"$ 2,222.00",11-22103-0000-202111-000-000000000-000000,"Union Dues Withheld","Payroll Deductions"
9008630,"$ 1,836.25",11/08/2019,ISSUED,,"Abri Credit Union","1350 W Renwick Rd","Manual Invoice Entry",PT0110819,"$ 1,836.25",WIRE,1,"MANUAL LINE ENTRY",11/07/2019,1,1,"$ 733.75",11-10101-0000-202102-000-000000000-000000,"Credit Union Withheld","Payroll Deductions"
9008630,"$ 1,836.25",11/08/2019,ISSUED,,"Abri Credit Union","1350 W Renwick Rd","Manual Invoice Entry",PT0110819,"$ 1,836.25",WIRE,2,"MANUAL LINE ENTRY",11/07/2019,2,1,"$ 1,102.50",11-22102-0000-202102-000-000000000-000000,"Credit Union Withheld","Payroll Deductions"
9008629,"$ 19,782.63",11/07/2019,ISSUED,,"Cubic Transportation Systems","Union Bank","Manual Invoice Entry",90038749,"$ 19,782.63",WIRE,1,"MANUAL LINE ENTRY",11/05/2019,1,1,"$ 19,782.63",11-10101-7352-503304-501-000000000-000000,"Ventra Vending Machine Maintenance",Services
9008628,"$ 31,213.56",11/06/2019,ISSUED,,"Underwriters Safety & Claims","PO Box 23790","Manual Invoice Entry",WC110519,"$ 31,213.56",WIRE,1,"MANUAL LINE ENTRY",11/05/2019,1,1,"$ 31,213.56",11-10101-0000-101204-000-000000000-000000,"Workers Compensation Claims Account",Claims
9008627,"$ 5,775.23",11/04/2019,ISSUED,,"Great West Life & Annuity Ins",Empower,"Manual Invoice Entry",HQ110119,"$ 5,775.23",WIRE,1,"MANUAL LINE ENTRY",10/31/2019,1,1,"$ 2,181.97",11-22101-0000-202106-000-000000000-000000,"401K Withheld","401k/Pension EE/ER Contribution"
9008627,"$ 5,775.23",11/04/2019,ISSUED,,"Great West Life & Annuity Ins",Empower,"Manual Invoice Entry",HQ110119,"$ 5,775.23",WIRE,2,"MANUAL LINE ENTRY",10/31/2019,2,1,"$ 3,593.26",11-22106-0000-202106-000-000000000-000000,"401K Withheld","401k/Pension EE/ER Contribution"
9008626,"$ 42,356.87",11/01/2019,ISSUED,,"PNC Bank National Association","PO Box 828702",PROCARD,963220191019,"$ 42,356.87",WIRE,172,IMPORTED,10/31/2019,172,1,"$ 665.00",11-10101-2101-509901-500-000000000-000000,"Business Expense",Miscellaneous
9008626,"$ 42,356.87",11/01/2019,ISSUED,,"PNC Bank National Association","PO Box 828702",PROCARD,963220191019,"$ 42,356.87",WIRE,173,IMPORTED,10/31/2019,173,1,"$ 488.47",11-10101-2001-509901-500-000000000-000000,"Business Expense",Miscellaneous
9008626,"$ 42,356.87",11/01/2019,ISSUED,,"PNC Bank National Association","PO Box 828702",PROCARD,963220191019,"$ 42,356.87",WIRE,174,IMPORTED,10/31/2019,174,1,"$ 203.98",11-22104-0000-504989-500-000000000-000000,"Other Materials & Supplies","Materials and Supplies"
9008626,"$ 42,356.87",11/01/2019,ISSUED,,"PNC Bank National Association","PO Box 828702",PROCARD,963220191019,"$ 42,356.87",WIRE,175,IMPORTED,10/31/2019,175,1,"$ 13.00",11-10101-2051-503334-500-000000000-000000,"Legal Services",Services
9008626,"$ 42,356.87",11/01/2019,ISSUED,,"PNC Bank National Association","PO Box 828702",PROCARD,963220191019,"$ 42,356.87",WIRE,176,IMPORTED,10/31/2019,176,1,"$ 272.40",11-10101-3101-509203-500-000000000-000000,"Out of Region Travel",Miscellaneous
9008626,"$ 42,356.87",11/01/2019,ISSUED,,"PNC Bank National Association","PO Box 828702",PROCARD,963220191019,"$ 42,356.87",WIRE,177,IMPORTED,10/31/2019,177,1,"$ 2,936.39",11-10101-7405-503551-500-000000000-000000,"Data Processing Equipment Maintenance",Services
9008626,"$ 42,356.87",11/01/2019,ISSUED,,"PNC Bank National Association","PO Box 828702",PROCARD,963220191019,"$ 42,356.87",WIRE,178,IMPORTED,10/31/2019,178,1,"$ 166.09",11-22109-0000-504911-300-000000000-000000,"Other Bus Parts","Materials and Supplies"
9008626,"$ 42,356.87",11/01/2019,ISSUED,,"PNC Bank National Association","PO Box 828702",PROCARD,963220191019,"$ 42,356.87",WIRE,179,IMPORTED,10/31/2019,179,1,"$ 19.00",11-10101-5051-509202-500-000000000-000000,"Local Travel",Miscellaneous
9008626,"$ 42,356.87",11/01/2019,ISSUED,,"PNC Bank National Association","PO Box 828702",PROCARD,963220191019,"$ 42,356.87",WIRE,180,IMPORTED,10/31/2019,180,1,"$ 154.79",11-10101-5051-509901-500-000000000-000000,"Business Expense",Miscellaneous
9008626,"$ 42,356.87",11/01/2019,ISSUED,,"PNC Bank National Association","PO Box 828702",PROCARD,963220191019,"$ 42,356.87",WIRE,181,IMPORTED,10/31/2019,181,1,"$ 1,004.44",11-10101-7001-509203-500-000000000-000000,"Out of Region Travel",Miscellaneous
9008626,"$ 42,356.87",11/01/2019,ISSUED,,"PNC Bank National Association","PO Box 828702",PROCARD,963220191019,"$ 42,356.87",WIRE,182,IMPORTED,10/31/2019,182,1,"$ 150.56",11-22105-0000-504989-400-000000000-000000,"Other Materials & Supplies","Materials and Supplies"
9008626,"$ 42,356.87",11/01/2019,ISSUED,,"PNC Bank National Association","PO Box 828702",PROCARD,963220191019,"$ 42,356.87",WIRE,183,IMPORTED,10/31/2019,183,1,"$ 48.91",11-10101-2001-509901-500-000000000-000000,"Business Expense",Miscellaneous
9008626,"$ 42,356.87",11/01/2019,ISSUED,,"PNC Bank National Association","PO Box 828702",PROCARD,963220191019,"$ 42,356.87",WIRE,188,IMPORTED,10/31/2019,188,1,"$ 405.00",11-10101-2151-503321-500-000000000-000000,"Training & Development",Services
9008626,"$ 42,356.87",11/01/2019,ISSUED,,"PNC Bank National Association","PO Box 828702",PROCARD,963220191019,"$ 42,356.87",WIRE,184,IMPORTED,10/31/2019,184,1,"$ 115.00",11-10101-2001-509901-500-000000000-000000,"Business Expense",Miscellaneous
9008626,"$ 42,356.87",11/01/2019,ISSUED,,"PNC Bank National Association","PO Box 828702",PROCARD,963220191019,"$ 42,356.87",WIRE,185,IMPORTED,10/31/2019,185,1,"$ 2,991.59",11-10101-5201-503924-501-000000000-000000,"Award Programs",Services
9008626,"$ 42,356.87",11/01/2019,ISSUED,,"PNC Bank National Association","PO Box 828702",PROCARD,963220191019,"$ 42,356.87",WIRE,186,IMPORTED,10/31/2019,186,1,"$ 75.00",11-22103-0000-504989-500-000000000-000000,"Other Materials & Supplies","Materials and Supplies"
9008626,"$ 42,356.87",11/01/2019,ISSUED,,"PNC Bank National Association","PO Box 828702",PROCARD,963220191019,"$ 42,356.87",WIRE,187,IMPORTED,10/31/2019,187,1,"$ 2,920.69",11-10101-5201-504954-500-000000000-000000,"Safety Materials","Materials and Supplies"
9008626,"$ 42,356.87",11/01/2019,ISSUED,,"PNC Bank National Association","PO Box 828702",PROCARD,963220191019,"$ 42,356.87",WIRE,189,IMPORTED,10/31/2019,189,1,"$ 19.75",11-10101-5051-509901-500-000000000-000000,"Business Expense",Miscellaneous
9008626,"$ 42,356.87",11/01/2019,ISSUED,,"PNC Bank National Association","PO Box 828702",PROCARD,963220191019,"$ 42,356.87",WIRE,190,IMPORTED,10/31/2019,190,1,"$ 17.00",51-59101-7401-509202-500-000000000-000000,"Local Travel",Miscellaneous
9008626,"$ 42,356.87",11/01/2019,ISSUED,,"PNC Bank National Association","PO Box 828702",PROCARD,963220191019,"$ 42,356.87",WIRE,191,IMPORTED,10/31/2019,191,1,"$ 45.82",11-22101-0000-504989-300-000000000-000000,"Other Materials & Supplies","Materials and Supplies"
9008626,"$ 42,356.87",11/01/2019,ISSUED,,"PNC Bank National Association","PO Box 828702",PROCARD,963220191019,"$ 42,356.87",WIRE,192,IMPORTED,10/31/2019,192,1,"$ 63.70",11-22101-0000-504989-400-000000000-000000,"Other Materials & Supplies","Materials and Supplies"
9008626,"$ 42,356.87",11/01/2019,ISSUED,,"PNC Bank National Association","PO Box 828702",PROCARD,963220191019,"$ 42,356.87",WIRE,193,IMPORTED,10/31/2019,193,1,"$ 525.45",11-10101-5001-509203-500-000000000-000000,"Out of Region Travel",Miscellaneous
9008626,"$ 42,356.87",11/01/2019,ISSUED,,"PNC Bank National Association","PO Box 828702",PROCARD,963220191019,"$ 42,356.87",WIRE,194,IMPORTED,10/31/2019,194,1,"$ 50.00",11-10101-2151-503321-500-000000000-000000,"Training & Development",Services
9008626,"$ 42,356.87",11/01/2019,ISSUED,,"PNC Bank National Association","PO Box 828702",PROCARD,963220191019,"$ 42,356.87",WIRE,195,IMPORTED,10/31/2019,195,1,"$ 1,449.00",11-10101-2151-503321-500-000000000-000000,"Training & Development",Services
9008626,"$ 42,356.87",11/01/2019,ISSUED,,"PNC Bank National Association","PO Box 828702",PROCARD,963220191019,"$ 42,356.87",WIRE,196,IMPORTED,10/31/2019,196,1,"$ 200.00",11-10101-2151-509101-500-000000000-000000,Dues,Miscellaneous
9008626,"$ 42,356.87",11/01/2019,ISSUED,,"PNC Bank National Association","PO Box 828702",PROCARD,963220191019,"$ 42,356.87",WIRE,197,IMPORTED,10/31/2019,197,1,"$ 95.00",11-10101-2151-509101-500-000000000-000000,Dues,Miscellaneous
9008626,"$ 42,356.87",11/01/2019,ISSUED,,"PNC Bank National Association","PO Box 828702",PROCARD,963220191019,"$ 42,356.87",WIRE,198,IMPORTED,10/31/2019,198,1,"$ 117.74",11-22104-0000-504989-300-000000000-000000,"Other Materials & Supplies","Materials and Supplies"
9008626,"$ 42,356.87",11/01/2019,ISSUED,,"PNC Bank National Association","PO Box 828702",PROCARD,963220191019,"$ 42,356.87",WIRE,199,IMPORTED,10/31/2019,199,1,"$ 66.28",11-22104-0000-504989-300-000000000-000000,"Other Materials & Supplies","Materials and Supplies"
9008626,"$ 42,356.87",11/01/2019,ISSUED,,"PNC Bank National Association","PO Box 828702",PROCARD,963220191019,"$ 42,356.87",WIRE,203,IMPORTED,10/31/2019,203,1,"$ 448.88",11-22101-0000-504989-400-000000000-000000,"Other Materials & Supplies","Materials and Supplies"
9008626,"$ 42,356.87",11/01/2019,ISSUED,,"PNC Bank National Association","PO Box 828702",PROCARD,963220191019,"$ 42,356.87",WIRE,200,IMPORTED,10/31/2019,200,1,"$ 153.76",11-22104-0000-504989-400-000000000-000000,"Other Materials & Supplies","Materials and Supplies"
9008626,"$ 42,356.87",11/01/2019,ISSUED,,"PNC Bank National Association","PO Box 828702",PROCARD,963220191019,"$ 42,356.87",WIRE,201,IMPORTED,10/31/2019,201,1,"$ 161.87",11-22107-0000-504989-500-000000000-000000,"Other Materials & Supplies","Materials and Supplies"
9008626,"$ 42,356.87",11/01/2019,ISSUED,,"PNC Bank National Association","PO Box 828702",PROCARD,963220191019,"$ 42,356.87",WIRE,202,IMPORTED,10/31/2019,202,1,"$ 44.77",11-10101-4401-503901-500-000000000-000000,Postage,Services
9008626,"$ 42,356.87",11/01/2019,ISSUED,,"PNC Bank National Association","PO Box 828702",PROCARD,963220191019,"$ 42,356.87",WIRE,204,IMPORTED,10/31/2019,204,1,"$ 17.00",11-22101-0000-504989-400-000000000-000000,"Other Materials & Supplies","Materials and Supplies"
9008626,"$ 42,356.87",11/01/2019,ISSUED,,"PNC Bank National Association","PO Box 828702",PROCARD,963220191019,"$ 42,356.87",WIRE,205,IMPORTED,10/31/2019,205,1,"$ 100.00",11-22101-0000-504989-400-000000000-000000,"Other Materials & Supplies","Materials and Supplies"
9008626,"$ 42,356.87",11/01/2019,ISSUED,,"PNC Bank National Association","PO Box 828702",PROCARD,963220191019,"$ 42,356.87",WIRE,206,IMPORTED,10/31/2019,206,1,"$ 35.21",11-22101-0000-504989-300-000000000-000000,"Other Materials & Supplies","Materials and Supplies"
9008626,"$ 42,356.87",11/01/2019,ISSUED,,"PNC Bank National Association","PO Box 828702",PROCARD,963220191019,"$ 42,356.87",WIRE,207,IMPORTED,10/31/2019,207,1,"$ -225.00",11-10101-2151-503321-500-000000000-000000,"Training & Development",Services
9008626,"$ 42,356.87",11/01/2019,ISSUED,,"PNC Bank National Association","PO Box 828702",PROCARD,963220191019,"$ 42,356.87",WIRE,208,IMPORTED,10/31/2019,208,1,"$ 85.99",11-10101-7404-504956-500-000000000-000000,"Data Processing Supplies","Materials and Supplies"
9008626,"$ 42,356.87",11/01/2019,ISSUED,,"PNC Bank National Association","PO Box 828702",PROCARD,963220191019,"$ 42,356.87",WIRE,209,IMPORTED,10/31/2019,209,1,"$ 24.95",11-10101-7404-503342-500-000000000-000000,"Data Processing Communications",Services
9008626,"$ 42,356.87",11/01/2019,ISSUED,,"PNC Bank National Association","PO Box 828702",PROCARD,963220191019,"$ 42,356.87",WIRE,212,IMPORTED,10/31/2019,212,1,"$ 16.94",11-22105-0000-504989-400-000000000-000000,"Other Materials & Supplies","Materials and Supplies"
9008626,"$ 42,356.87",11/01/2019,ISSUED,,"PNC Bank National Association","PO Box 828702",PROCARD,963220191019,"$ 42,356.87",WIRE,213,IMPORTED,10/31/2019,213,1,"$ 17.00",51-59101-7401-509202-500-000000000-000000,"Local Travel",Miscellaneous
9008626,"$ 42,356.87",11/01/2019,ISSUED,,"PNC Bank National Association","PO Box 828702",PROCARD,963220191019,"$ 42,356.87",WIRE,214,IMPORTED,10/31/2019,214,1,"$ 67.00",11-10101-5104-509914-501-000000000-000000,"Other Miscellaneous",Miscellaneous
9008626,"$ 42,356.87",11/01/2019,ISSUED,,"PNC Bank National Association","PO Box 828702",PROCARD,963220191019,"$ 42,356.87",WIRE,215,IMPORTED,10/31/2019,215,1,"$ 139.00",11-22107-0000-205502-000-000000000-000000,"Liability Insurance Reserve",Claims
9008626,"$ 42,356.87",11/01/2019,ISSUED,,"PNC Bank National Association","PO Box 828702",PROCARD,963220191019,"$ 42,356.87",WIRE,219,IMPORTED,10/31/2019,219,1,"$ 179.35",11-10101-7404-504956-500-000000000-000000,"Data Processing Supplies","Materials and Supplies"
9008626,"$ 42,356.87",11/01/2019,ISSUED,,"PNC Bank National Association","PO Box 828702",PROCARD,963220191019,"$ 42,356.87",WIRE,216,IMPORTED,10/31/2019,216,1,"$ 385.00",11-10101-2151-509101-500-000000000-000000,Dues,Miscellaneous
9008626,"$ 42,356.87",11/01/2019,ISSUED,,"PNC Bank National Association","PO Box 828702",PROCARD,963220191019,"$ 42,356.87",WIRE,217,IMPORTED,10/31/2019,217,1,"$ 700.00",11-10101-2151-509101-500-000000000-000000,Dues,Miscellaneous
9008626,"$ 42,356.87",11/01/2019,ISSUED,,"PNC Bank National Association","PO Box 828702",PROCARD,963220191019,"$ 42,356.87",WIRE,218,IMPORTED,10/31/2019,218,1,"$ 199.00",11-10101-2151-503321-500-000000000-000000,"Training & Development",Services
9008626,"$ 42,356.87",11/01/2019,ISSUED,,"PNC Bank National Association","PO Box 828702",PROCARD,963220191019,"$ 42,356.87",WIRE,220,IMPORTED,10/31/2019,220,1,"$ -54.95",11-10101-7404-504956-500-000000000-000000,"Data Processing Supplies","Materials and Supplies"
9008626,"$ 42,356.87",11/01/2019,ISSUED,,"PNC Bank National Association","PO Box 828702",PROCARD,963220191019,"$ 42,356.87",WIRE,221,IMPORTED,10/31/2019,221,1,"$ 140.03",11-22105-0000-504989-400-000000000-000000,"Other Materials & Supplies","Materials and Supplies"
9008626,"$ 42,356.87",11/01/2019,ISSUED,,"PNC Bank National Association","PO Box 828702",PROCARD,963220191019,"$ 42,356.87",WIRE,222,IMPORTED,10/31/2019,222,1,"$ 9.99",11-10101-3111-504958-500-000000000-000000,"Repro Supplies","Materials and Supplies"
9008626,"$ 42,356.87",11/01/2019,ISSUED,,"PNC Bank National Association","PO Box 828702",PROCARD,963220191019,"$ 42,356.87",WIRE,223,IMPORTED,10/31/2019,223,1,"$ 76.97",51-59101-4101-509802-500-000000000-000000,"ADA Advisory Expenses",Miscellaneous
9008626,"$ 42,356.87",11/01/2019,ISSUED,,"PNC Bank National Association","PO Box 828702",PROCARD,963220191019,"$ 42,356.87",WIRE,224,IMPORTED,10/31/2019,224,1,"$ 115.00",11-10101-5104-509914-501-000000000-000000,"Other Miscellaneous",Miscellaneous
9008626,"$ 42,356.87",11/01/2019,ISSUED,,"PNC Bank National Association","PO Box 828702",PROCARD,963220191019,"$ 42,356.87",WIRE,225,IMPORTED,10/31/2019,225,1,"$ 578.00",11-10101-2101-509103-500-000000000-000000,Subscriptions,Miscellaneous
9008626,"$ 42,356.87",11/01/2019,ISSUED,,"PNC Bank National Association","PO Box 828702",PROCARD,963220191019,"$ 42,356.87",WIRE,226,IMPORTED,10/31/2019,226,1,"$ 88.10",11-10101-7052-503534-401-000000000-000000,"Building Maint and Repairs",Services
9008626,"$ 42,356.87",11/01/2019,ISSUED,,"PNC Bank National Association","PO Box 828702",PROCARD,963220191019,"$ 42,356.87",WIRE,227,IMPORTED,10/31/2019,227,1,"$ 25.76",11-10101-7404-504956-500-000000000-000000,"Data Processing Supplies","Materials and Supplies"
9008626,"$ 42,356.87",11/01/2019,ISSUED,,"PNC Bank National Association","PO Box 828702",PROCARD,963220191019,"$ 42,356.87",WIRE,228,IMPORTED,10/31/2019,228,1,"$ 44.60",11-10101-7404-504956-500-000000000-000000,"Data Processing Supplies","Materials and Supplies"
9008626,"$ 42,356.87",11/01/2019,ISSUED,,"PNC Bank National Association","PO Box 828702",PROCARD,963220191019,"$ 42,356.87",WIRE,229,IMPORTED,10/31/2019,229,1,"$ 174.50",11-10101-5052-503511-401-000000000-000000,"Passenger Facility Maintenance",Services
9008626,"$ 42,356.87",11/01/2019,ISSUED,,"PNC Bank National Association","PO Box 828702",PROCARD,963220191019,"$ 42,356.87",WIRE,104,IMPORTED,10/31/2019,104,1,"$ 6.91",11-22102-0000-205502-000-000000000-000000,"Liability Insurance Reserve",Claims
9008626,"$ 42,356.87",11/01/2019,ISSUED,,"PNC Bank National Association","PO Box 828702",PROCARD,963220191019,"$ 42,356.87",WIRE,105,IMPORTED,10/31/2019,105,1,"$ 12.00",11-10101-2051-503334-500-000000000-000000,"Legal Services",Services
9008626,"$ 42,356.87",11/01/2019,ISSUED,,"PNC Bank National Association","PO Box 828702",PROCARD,963220191019,"$ 42,356.87",WIRE,106,IMPORTED,10/31/2019,106,1,"$ 13.14",11-22106-0000-205502-000-000000000-000000,"Liability Insurance Reserve",Claims
9008626,"$ 42,356.87",11/01/2019,ISSUED,,"PNC Bank National Association","PO Box 828702",PROCARD,963220191019,"$ 42,356.87",WIRE,107,IMPORTED,10/31/2019,107,1,"$ 454.50",11-22106-0000-205502-000-000000000-000000,"Liability Insurance Reserve",Claims
9008626,"$ 42,356.87",11/01/2019,ISSUED,,"PNC Bank National Association","PO Box 828702",PROCARD,963220191019,"$ 42,356.87",WIRE,108,IMPORTED,10/31/2019,108,1,"$ 239.00",11-22102-0000-205502-000-000000000-000000,"Liability Insurance Reserve",Claims
9008626,"$ 42,356.87",11/01/2019,ISSUED,,"PNC Bank National Association","PO Box 828702",PROCARD,963220191019,"$ 42,356.87",WIRE,109,IMPORTED,10/31/2019,109,1,"$ 470.38",11-10101-2201-503322-500-000000000-000000,"HR Recruitment Expense",Services
9008626,"$ 42,356.87",11/01/2019,ISSUED,,"PNC Bank National Association","PO Box 828702",PROCARD,963220191019,"$ 42,356.87",WIRE,110,IMPORTED,10/31/2019,110,1,"$ 385.00",11-10101-7404-503341-500-000000000-000000,"Data Services Purchased",Services
9008626,"$ 42,356.87",11/01/2019,ISSUED,,"PNC Bank National Association","PO Box 828702",PROCARD,963220191019,"$ 42,356.87",WIRE,111,IMPORTED,10/31/2019,111,1,"$ 61.35",11-10101-5052-503511-401-000000000-000000,"Passenger Facility Maintenance",Services
9008626,"$ 42,356.87",11/01/2019,ISSUED,,"PNC Bank National Association","PO Box 828702",PROCARD,963220191019,"$ 42,356.87",WIRE,112,IMPORTED,10/31/2019,112,1,"$ 18.61",11-22105-0000-504989-400-000000000-000000,"Other Materials & Supplies","Materials and Supplies"
9008626,"$ 42,356.87",11/01/2019,ISSUED,,"PNC Bank National Association","PO Box 828702",PROCARD,963220191019,"$ 42,356.87",WIRE,113,IMPORTED,10/31/2019,113,1,"$ 23.07",11-10101-4401-503901-500-000000000-000000,Postage,Services
9008626,"$ 42,356.87",11/01/2019,ISSUED,,"PNC Bank National Association","PO Box 828702",PROCARD,963220191019,"$ 42,356.87",WIRE,114,IMPORTED,10/31/2019,114,1,"$ 13.00",11-10101-2051-503334-500-000000000-000000,"Legal Services",Services
9008626,"$ 42,356.87",11/01/2019,ISSUED,,"PNC Bank National Association","PO Box 828702",PROCARD,963220191019,"$ 42,356.87",WIRE,115,IMPORTED,10/31/2019,115,1,"$ 70.00",11-10101-2151-503321-500-000000000-000000,"Training & Development",Services
9008626,"$ 42,356.87",11/01/2019,ISSUED,,"PNC Bank National Association","PO Box 828702",PROCARD,963220191019,"$ 42,356.87",WIRE,116,IMPORTED,10/31/2019,116,1,"$ 299.00",11-10101-2151-503321-500-000000000-000000,"Training & Development",Services
9008626,"$ 42,356.87",11/01/2019,ISSUED,,"PNC Bank National Association","PO Box 828702",PROCARD,963220191019,"$ 42,356.87",WIRE,117,IMPORTED,10/31/2019,117,1,"$ 149.00",11-10101-2151-503321-500-000000000-000000,"Training & Development",Services
9008626,"$ 42,356.87",11/01/2019,ISSUED,,"PNC Bank National Association","PO Box 828702",PROCARD,963220191019,"$ 42,356.87",WIRE,118,IMPORTED,10/31/2019,118,1,"$ 385.00",11-10101-7404-503341-500-000000000-000000,"Data Services Purchased",Services
9008626,"$ 42,356.87",11/01/2019,ISSUED,,"PNC Bank National Association","PO Box 828702",PROCARD,963220191019,"$ 42,356.87",WIRE,122,IMPORTED,10/31/2019,122,1,"$ 180.00",11-22101-0000-504989-400-000000000-000000,"Other Materials & Supplies","Materials and Supplies"
9008626,"$ 42,356.87",11/01/2019,ISSUED,,"PNC Bank National Association","PO Box 828702",PROCARD,963220191019,"$ 42,356.87",WIRE,119,IMPORTED,10/31/2019,119,1,"$ 17.00",51-59101-7401-509202-500-000000000-000000,"Local Travel",Miscellaneous
9008626,"$ 42,356.87",11/01/2019,ISSUED,,"PNC Bank National Association","PO Box 828702",PROCARD,963220191019,"$ 42,356.87",WIRE,120,IMPORTED,10/31/2019,120,1,"$ 576.20",11-10101-7405-503551-500-000000000-000000,"Data Processing Equipment Maintenance",Services
9008626,"$ 42,356.87",11/01/2019,ISSUED,,"PNC Bank National Association","PO Box 828702",PROCARD,963220191019,"$ 42,356.87",WIRE,121,IMPORTED,10/31/2019,121,1,"$ 1,132.31",11-10101-3111-504958-500-000000000-000000,"Repro Supplies","Materials and Supplies"
9008626,"$ 42,356.87",11/01/2019,ISSUED,,"PNC Bank National Association","PO Box 828702",PROCARD,963220191019,"$ 42,356.87",WIRE,123,IMPORTED,10/31/2019,123,1,"$ -236.64",11-10101-7052-504989-500-000000000-000000,"Other Materials & Supplies","Materials and Supplies"
9008626,"$ 42,356.87",11/01/2019,ISSUED,,"PNC Bank National Association","PO Box 828702",PROCARD,963220191019,"$ 42,356.87",WIRE,124,IMPORTED,10/31/2019,124,1,"$ 2,095.00",11-10101-2151-503321-500-000000000-000000,"Training & Development",Services
9008626,"$ 42,356.87",11/01/2019,ISSUED,,"PNC Bank National Association","PO Box 828702",PROCARD,963220191019,"$ 42,356.87",WIRE,125,IMPORTED,10/31/2019,125,1,"$ 352.00",11-10101-2151-509101-500-000000000-000000,Dues,Miscellaneous
9008626,"$ 42,356.87",11/01/2019,ISSUED,,"PNC Bank National Association","PO Box 828702",PROCARD,963220191019,"$ 42,356.87",WIRE,126,IMPORTED,10/31/2019,126,1,"$ 451.56",11-10101-7404-503341-500-000000000-000000,"Data Services Purchased",Services
9008626,"$ 42,356.87",11/01/2019,ISSUED,,"PNC Bank National Association","PO Box 828702",PROCARD,963220191019,"$ 42,356.87",WIRE,127,IMPORTED,10/31/2019,127,1,"$ 19.80",11-22105-0000-504989-400-000000000-000000,"Other Materials & Supplies","Materials and Supplies"
9008626,"$ 42,356.87",11/01/2019,ISSUED,,"PNC Bank National Association","PO Box 828702",PROCARD,963220191019,"$ 42,356.87",WIRE,128,IMPORTED,10/31/2019,128,1,"$ 72.59",11-22101-0000-504989-400-000000000-000000,"Other Materials & Supplies","Materials and Supplies"
9008626,"$ 42,356.87",11/01/2019,ISSUED,,"PNC Bank National Association","PO Box 828702",PROCARD,963220191019,"$ 42,356.87",WIRE,129,IMPORTED,10/31/2019,129,1,"$ -128.32",11-22101-0000-504989-400-000000000-000000,"Other Materials & Supplies","Materials and Supplies"
9008626,"$ 42,356.87",11/01/2019,ISSUED,,"PNC Bank National Association","PO Box 828702",PROCARD,963220191019,"$ 42,356.87",WIRE,130,IMPORTED,10/31/2019,130,1,"$ 6.14",11-22102-0000-205502-000-000000000-000000,"Liability Insurance Reserve",Claims
9008626,"$ 42,356.87",11/01/2019,ISSUED,,"PNC Bank National Association","PO Box 828702",PROCARD,963220191019,"$ 42,356.87",WIRE,131,IMPORTED,10/31/2019,131,1,"$ 212.50",11-22102-0000-205502-000-000000000-000000,"Liability Insurance Reserve",Claims
9008626,"$ 42,356.87",11/01/2019,ISSUED,,"PNC Bank National Association","PO Box 828702",PROCARD,963220191019,"$ 42,356.87",WIRE,132,IMPORTED,10/31/2019,132,1,"$ 26.14",11-10101-1001-509901-500-000000000-000000,"Business Expense",Miscellaneous
9008626,"$ 42,356.87",11/01/2019,ISSUED,,"PNC Bank National Association","PO Box 828702",PROCARD,963220191019,"$ 42,356.87",WIRE,133,IMPORTED,10/31/2019,133,1,"$ 69.04",11-10101-5104-509914-501-000000000-000000,"Other Miscellaneous",Miscellaneous
9008626,"$ 42,356.87",11/01/2019,ISSUED,,"PNC Bank National Association","PO Box 828702",PROCARD,963220191019,"$ 42,356.87",WIRE,134,IMPORTED,10/31/2019,134,1,"$ 1,054.16",11-22103-0000-504989-400-000000000-000000,"Other Materials & Supplies","Materials and Supplies"
9008626,"$ 42,356.87",11/01/2019,ISSUED,,"PNC Bank National Association","PO Box 828702",PROCARD,963220191019,"$ 42,356.87",WIRE,135,IMPORTED,10/31/2019,135,1,"$ 75.00",11-22103-0000-504989-500-000000000-000000,"Other Materials & Supplies","Materials and Supplies"
9008626,"$ 42,356.87",11/01/2019,ISSUED,,"PNC Bank National Association","PO Box 828702",PROCARD,963220191019,"$ 42,356.87",WIRE,139,IMPORTED,10/31/2019,139,1,"$ 61.35",11-10101-2151-509101-500-000000000-000000,Dues,Miscellaneous
9008626,"$ 42,356.87",11/01/2019,ISSUED,,"PNC Bank National Association","PO Box 828702",PROCARD,963220191019,"$ 42,356.87",WIRE,136,IMPORTED,10/31/2019,136,1,"$ 70.00",11-10101-2151-503321-500-000000000-000000,"Training & Development",Services
9008626,"$ 42,356.87",11/01/2019,ISSUED,,"PNC Bank National Association","PO Box 828702",PROCARD,963220191019,"$ 42,356.87",WIRE,137,IMPORTED,10/31/2019,137,1,"$ 110.00",11-10101-2151-503321-500-000000000-000000,"Training & Development",Services
9008626,"$ 42,356.87",11/01/2019,ISSUED,,"PNC Bank National Association","PO Box 828702",PROCARD,963220191019,"$ 42,356.87",WIRE,138,IMPORTED,10/31/2019,138,1,"$ 199.00",11-10101-2151-503321-500-000000000-000000,"Training & Development",Services
9008626,"$ 42,356.87",11/01/2019,ISSUED,,"PNC Bank National Association","PO Box 828702",PROCARD,963220191019,"$ 42,356.87",WIRE,140,IMPORTED,10/31/2019,140,1,"$ 23.94",11-22104-0000-504989-400-000000000-000000,"Other Materials & Supplies","Materials and Supplies"
9008626,"$ 42,356.87",11/01/2019,ISSUED,,"PNC Bank National Association","PO Box 828702",PROCARD,963220191019,"$ 42,356.87",WIRE,141,IMPORTED,10/31/2019,141,1,"$ 119.69",11-22104-0000-504989-400-000000000-000000,"Other Materials & Supplies","Materials and Supplies"
9008626,"$ 42,356.87",11/01/2019,ISSUED,,"PNC Bank National Association","PO Box 828702",PROCARD,963220191019,"$ 42,356.87",WIRE,142,IMPORTED,10/31/2019,142,1,"$ -49.00",11-22107-0000-504989-500-000000000-000000,"Other Materials & Supplies","Materials and Supplies"
9008626,"$ 42,356.87",11/01/2019,ISSUED,,"PNC Bank National Association","PO Box 828702",PROCARD,963220191019,"$ 42,356.87",WIRE,143,IMPORTED,10/31/2019,143,1,"$ 240.62",11-22107-0000-504989-500-000000000-000000,"Other Materials & Supplies","Materials and Supplies"
9008626,"$ 42,356.87",11/01/2019,ISSUED,,"PNC Bank National Association","PO Box 828702",PROCARD,963220191019,"$ 42,356.87",WIRE,144,IMPORTED,10/31/2019,144,1,"$ 26.95",11-10101-7404-503341-500-000000000-000000,"Data Services Purchased",Services
9008626,"$ 42,356.87",11/01/2019,ISSUED,,"PNC Bank National Association","PO Box 828702",PROCARD,963220191019,"$ 42,356.87",WIRE,145,IMPORTED,10/31/2019,145,1,"$ 32.98",11-10101-3111-504958-500-000000000-000000,"Repro Supplies","Materials and Supplies"
9008626,"$ 42,356.87",11/01/2019,ISSUED,,"PNC Bank National Association","PO Box 828702",PROCARD,963220191019,"$ 42,356.87",WIRE,171,IMPORTED,10/31/2019,171,1,"$ 15.00",11-10101-2001-509901-500-000000000-000000,"Business Expense",Miscellaneous
9008626,"$ 42,356.87",11/01/2019,ISSUED,,"PNC Bank National Association","PO Box 828702",PROCARD,963220191019,"$ 42,356.87",WIRE,168,IMPORTED,10/31/2019,168,1,"$ 19.75",11-10101-5051-509901-500-000000000-000000,"Business Expense",Miscellaneous
9008626,"$ 42,356.87",11/01/2019,ISSUED,,"PNC Bank National Association","PO Box 828702",PROCARD,963220191019,"$ 42,356.87",WIRE,169,IMPORTED,10/31/2019,169,1,"$ 17.27",11-22105-0000-504989-400-000000000-000000,"Other Materials & Supplies","Materials and Supplies"
9008626,"$ 42,356.87",11/01/2019,ISSUED,,"PNC Bank National Association","PO Box 828702",PROCARD,963220191019,"$ 42,356.87",WIRE,170,IMPORTED,10/31/2019,170,1,"$ 92.80",11-10101-3111-503941-500-000000000-000000,"Printing and Other Services",Services
9008626,"$ 42,356.87",11/01/2019,ISSUED,,"PNC Bank National Association","PO Box 828702",PROCARD,963220191019,"$ 42,356.87",WIRE,148,IMPORTED,10/31/2019,148,1,"$ 13.00",11-10101-2051-503334-500-000000000-000000,"Legal Services",Services
9008626,"$ 42,356.87",11/01/2019,ISSUED,,"PNC Bank National Association","PO Box 828702",PROCARD,963220191019,"$ 42,356.87",WIRE,149,IMPORTED,10/31/2019,149,1,"$ 13.53",11-10101-7052-504989-500-000000000-000000,"Other Materials & Supplies","Materials and Supplies"
9008626,"$ 42,356.87",11/01/2019,ISSUED,,"PNC Bank National Association","PO Box 828702",PROCARD,963220191019,"$ 42,356.87",WIRE,150,IMPORTED,10/31/2019,150,1,"$ 267.77",11-22108-0000-504989-300-000000000-000000,"Other Materials & Supplies","Materials and Supplies"
9008626,"$ 42,356.87",11/01/2019,ISSUED,,"PNC Bank National Association","PO Box 828702",PROCARD,963220191019,"$ 42,356.87",WIRE,151,IMPORTED,10/31/2019,151,1,"$ -70.00",11-10101-2151-503321-500-000000000-000000,"Training & Development",Services
9008626,"$ 42,356.87",11/01/2019,ISSUED,,"PNC Bank National Association","PO Box 828702",PROCARD,963220191019,"$ 42,356.87",WIRE,155,IMPORTED,10/31/2019,155,1,"$ 1.97",11-22107-0000-509201-500-000000000-000000,"Travel & Meeting",Miscellaneous
9008626,"$ 42,356.87",11/01/2019,ISSUED,,"PNC Bank National Association","PO Box 828702",PROCARD,963220191019,"$ 42,356.87",WIRE,152,IMPORTED,10/31/2019,152,1,"$ 620.00",11-10101-7404-504956-500-000000000-000000,"Data Processing Supplies","Materials and Supplies"
9008626,"$ 42,356.87",11/01/2019,ISSUED,,"PNC Bank National Association","PO Box 828702",PROCARD,963220191019,"$ 42,356.87",WIRE,153,IMPORTED,10/31/2019,153,1,"$ 865.00",11-10101-7404-504956-500-000000000-000000,"Data Processing Supplies","Materials and Supplies"
9008626,"$ 42,356.87",11/01/2019,ISSUED,,"PNC Bank National Association","PO Box 828702",PROCARD,963220191019,"$ 42,356.87",WIRE,154,IMPORTED,10/31/2019,154,1,"$ 1.97",11-22107-0000-509201-500-000000000-000000,"Travel & Meeting",Miscellaneous
9008626,"$ 42,356.87",11/01/2019,ISSUED,,"PNC Bank National Association","PO Box 828702",PROCARD,963220191019,"$ 42,356.87",WIRE,156,IMPORTED,10/31/2019,156,1,"$ 100.00",11-22107-0000-509201-500-000000000-000000,"Travel & Meeting",Miscellaneous
9008626,"$ 42,356.87",11/01/2019,ISSUED,,"PNC Bank National Association","PO Box 828702",PROCARD,963220191019,"$ 42,356.87",WIRE,157,IMPORTED,10/31/2019,157,1,"$ 100.00",11-22107-0000-509201-500-000000000-000000,"Travel & Meeting",Miscellaneous
9008626,"$ 42,356.87",11/01/2019,ISSUED,,"PNC Bank National Association","PO Box 828702",PROCARD,963220191019,"$ 42,356.87",WIRE,158,IMPORTED,10/31/2019,158,1,"$ 75.92",11-22105-0000-504989-400-000000000-000000,"Other Materials & Supplies","Materials and Supplies"
9008626,"$ 42,356.87",11/01/2019,ISSUED,,"PNC Bank National Association","PO Box 828702",PROCARD,963220191019,"$ 42,356.87",WIRE,159,IMPORTED,10/31/2019,159,1,"$ 6.92",11-10101-4401-503901-500-000000000-000000,Postage,Services
9008626,"$ 42,356.87",11/01/2019,ISSUED,,"PNC Bank National Association","PO Box 828702",PROCARD,963220191019,"$ 42,356.87",WIRE,160,IMPORTED,10/31/2019,160,1,"$ 30.00",11-22107-0000-205502-000-000000000-000000,"Liability Insurance Reserve",Claims
9008626,"$ 42,356.87",11/01/2019,ISSUED,,"PNC Bank National Association","PO Box 828702",PROCARD,963220191019,"$ 42,356.87",WIRE,161,IMPORTED,10/31/2019,161,1,"$ .87",11-22107-0000-205502-000-000000000-000000,"Liability Insurance Reserve",Claims
9008626,"$ 42,356.87",11/01/2019,ISSUED,,"PNC Bank National Association","PO Box 828702",PROCARD,963220191019,"$ 42,356.87",WIRE,162,IMPORTED,10/31/2019,162,1,"$ 79.00",11-10101-2151-503321-500-000000000-000000,"Training & Development",Services
9008626,"$ 42,356.87",11/01/2019,ISSUED,,"PNC Bank National Association","PO Box 828702",PROCARD,963220191019,"$ 42,356.87",WIRE,163,IMPORTED,10/31/2019,163,1,"$ 123.05",11-10101-7404-504956-500-000000000-000000,"Data Processing Supplies","Materials and Supplies"
9008626,"$ 42,356.87",11/01/2019,ISSUED,,"PNC Bank National Association","PO Box 828702",PROCARD,963220191019,"$ 42,356.87",WIRE,164,IMPORTED,10/31/2019,164,1,"$ 6.00",11-10101-2051-503334-500-000000000-000000,"Legal Services",Services
9008626,"$ 42,356.87",11/01/2019,ISSUED,,"PNC Bank National Association","PO Box 828702",PROCARD,963220191019,"$ 42,356.87",WIRE,165,IMPORTED,10/31/2019,165,1,"$ 35.38",11-22108-0000-504989-300-000000000-000000,"Other Materials & Supplies","Materials and Supplies"
9008626,"$ 42,356.87",11/01/2019,ISSUED,,"PNC Bank National Association","PO Box 828702",PROCARD,963220191019,"$ 42,356.87",WIRE,166,IMPORTED,10/31/2019,166,1,"$ 54.95",11-10101-7404-504956-500-000000000-000000,"Data Processing Supplies","Materials and Supplies"
9008626,"$ 42,356.87",11/01/2019,ISSUED,,"PNC Bank National Association","PO Box 828702",PROCARD,963220191019,"$ 42,356.87",WIRE,167,IMPORTED,10/31/2019,167,1,"$ 68.38",11-10101-7404-503342-500-000000000-000000,"Data Processing Communications",Services
9008626,"$ 42,356.87",11/01/2019,ISSUED,,"PNC Bank National Association","PO Box 828702",PROCARD,963220191019,"$ 42,356.87",WIRE,39,IMPORTED,10/31/2019,39,1,"$ 47.40",11-10101-5051-509901-500-000000000-000000,"Business Expense",Miscellaneous
9008626,"$ 42,356.87",11/01/2019,ISSUED,,"PNC Bank National Association","PO Box 828702",PROCARD,963220191019,"$ 42,356.87",WIRE,41,IMPORTED,10/31/2019,41,1,"$ 315.00",51-59101-5311-509913-501-000000000-000000,"General Expense",Miscellaneous
9008626,"$ 42,356.87",11/01/2019,ISSUED,,"PNC Bank National Association","PO Box 828702",PROCARD,963220191019,"$ 42,356.87",WIRE,42,IMPORTED,10/31/2019,42,1,"$ 315.00",51-59101-5311-509913-501-000000000-000000,"General Expense",Miscellaneous
9008626,"$ 42,356.87",11/01/2019,ISSUED,,"PNC Bank National Association","PO Box 828702",PROCARD,963220191019,"$ 42,356.87",WIRE,43,IMPORTED,10/31/2019,43,1,"$ 315.00",51-59101-5311-509913-501-000000000-000000,"General Expense",Miscellaneous
9008626,"$ 42,356.87",11/01/2019,ISSUED,,"PNC Bank National Association","PO Box 828702",PROCARD,963220191019,"$ 42,356.87",WIRE,44,IMPORTED,10/31/2019,44,1,"$ 315.00",51-59101-5311-509913-501-000000000-000000,"General Expense",Miscellaneous
9008626,"$ 42,356.87",11/01/2019,ISSUED,,"PNC Bank National Association","PO Box 828702",PROCARD,963220191019,"$ 42,356.87",WIRE,45,IMPORTED,10/31/2019,45,1,"$ 75.00",11-22103-0000-504989-500-000000000-000000,"Other Materials & Supplies","Materials and Supplies"
9008626,"$ 42,356.87",11/01/2019,ISSUED,,"PNC Bank National Association","PO Box 828702",PROCARD,963220191019,"$ 42,356.87",WIRE,46,IMPORTED,10/31/2019,46,1,"$ 13.00",11-10101-2051-503334-500-000000000-000000,"Legal Services",Services
9008626,"$ 42,356.87",11/01/2019,ISSUED,,"PNC Bank National Association","PO Box 828702",PROCARD,963220191019,"$ 42,356.87",WIRE,47,IMPORTED,10/31/2019,47,1,"$ 119.00",11-22108-0000-504989-400-000000000-000000,"Other Materials & Supplies","Materials and Supplies"
9008626,"$ 42,356.87",11/01/2019,ISSUED,,"PNC Bank National Association","PO Box 828702",PROCARD,963220191019,"$ 42,356.87",WIRE,48,IMPORTED,10/31/2019,48,1,"$ -119.00",11-22108-0000-504989-400-000000000-000000,"Other Materials & Supplies","Materials and Supplies"
9008626,"$ 42,356.87",11/01/2019,ISSUED,,"PNC Bank National Association","PO Box 828702",PROCARD,963220191019,"$ 42,356.87",WIRE,49,IMPORTED,10/31/2019,49,1,"$ 371.50",11-10101-7404-503341-500-000000000-000000,"Data Services Purchased",Services
9008626,"$ 42,356.87",11/01/2019,ISSUED,,"PNC Bank National Association","PO Box 828702",PROCARD,963220191019,"$ 42,356.87",WIRE,50,IMPORTED,10/31/2019,50,1,"$ 47.40",11-10101-5051-509901-500-000000000-000000,"Business Expense",Miscellaneous
9008626,"$ 42,356.87",11/01/2019,ISSUED,,"PNC Bank National Association","PO Box 828702",PROCARD,963220191019,"$ 42,356.87",WIRE,51,IMPORTED,10/31/2019,51,1,"$ 17.00",51-59101-7401-509202-500-000000000-000000,"Local Travel",Miscellaneous
9008626,"$ 42,356.87",11/01/2019,ISSUED,,"PNC Bank National Association","PO Box 828702",PROCARD,963220191019,"$ 42,356.87",WIRE,52,IMPORTED,10/31/2019,52,1,"$ 20.00",51-59101-5311-509913-501-000000000-000000,"General Expense",Miscellaneous
9008626,"$ 42,356.87",11/01/2019,ISSUED,,"PNC Bank National Association","PO Box 828702",PROCARD,963220191019,"$ 42,356.87",WIRE,53,IMPORTED,10/31/2019,53,1,"$ 12.00",51-59101-5311-509913-501-000000000-000000,"General Expense",Miscellaneous
9008626,"$ 42,356.87",11/01/2019,ISSUED,,"PNC Bank National Association","PO Box 828702",PROCARD,963220191019,"$ 42,356.87",WIRE,54,IMPORTED,10/31/2019,54,1,"$ 12.35",11-22101-0000-504989-400-000000000-000000,"Other Materials & Supplies","Materials and Supplies"
9008626,"$ 42,356.87",11/01/2019,ISSUED,,"PNC Bank National Association","PO Box 828702",PROCARD,963220191019,"$ 42,356.87",WIRE,55,IMPORTED,10/31/2019,55,1,"$ 124.07",11-22101-0000-504989-400-000000000-000000,"Other Materials & Supplies","Materials and Supplies"
9008626,"$ 42,356.87",11/01/2019,ISSUED,,"PNC Bank National Association","PO Box 828702",PROCARD,963220191019,"$ 42,356.87",WIRE,56,IMPORTED,10/31/2019,56,1,"$ 6.00",11-10101-2051-503334-500-000000000-000000,"Legal Services",Services
9008626,"$ 42,356.87",11/01/2019,ISSUED,,"PNC Bank National Association","PO Box 828702",PROCARD,963220191019,"$ 42,356.87",WIRE,57,IMPORTED,10/31/2019,57,1,"$ 354.90",11-10101-3101-509203-500-000000000-000000,"Out of Region Travel",Miscellaneous
9008626,"$ 42,356.87",11/01/2019,ISSUED,,"PNC Bank National Association","PO Box 828702",PROCARD,963220191019,"$ 42,356.87",WIRE,58,IMPORTED,10/31/2019,58,1,"$ 399.98",11-10101-7405-503552-500-000000000-000000,"Data Processing  Software Maintenance",Services
9008626,"$ 42,356.87",11/01/2019,ISSUED,,"PNC Bank National Association","PO Box 828702",PROCARD,963220191019,"$ 42,356.87",WIRE,59,IMPORTED,10/31/2019,59,1,"$ 25.88",11-10101-7404-504956-500-000000000-000000,"Data Processing Supplies","Materials and Supplies"
9008626,"$ 42,356.87",11/01/2019,ISSUED,,"PNC Bank National Association","PO Box 828702",PROCARD,963220191019,"$ 42,356.87",WIRE,60,IMPORTED,10/31/2019,60,1,"$ 102.50",11-10101-5052-509202-500-000000000-000000,"Local Travel",Miscellaneous
9008626,"$ 42,356.87",11/01/2019,ISSUED,,"PNC Bank National Association","PO Box 828702",PROCARD,963220191019,"$ 42,356.87",WIRE,61,IMPORTED,10/31/2019,61,1,"$ 15.56",11-10101-4401-503901-500-000000000-000000,Postage,Services
9008626,"$ 42,356.87",11/01/2019,ISSUED,,"PNC Bank National Association","PO Box 828702",PROCARD,963220191019,"$ 42,356.87",WIRE,64,IMPORTED,10/31/2019,64,1,"$ 78.63",11-10101-7052-503901-500-000000000-000000,Postage,Services
9008626,"$ 42,356.87",11/01/2019,ISSUED,,"PNC Bank National Association","PO Box 828702",PROCARD,963220191019,"$ 42,356.87",WIRE,62,IMPORTED,10/31/2019,62,1,"$ 69.40",11-22101-0000-504989-400-000000000-000000,"Other Materials & Supplies","Materials and Supplies"
9008626,"$ 42,356.87",11/01/2019,ISSUED,,"PNC Bank National Association","PO Box 828702",PROCARD,963220191019,"$ 42,356.87",WIRE,63,IMPORTED,10/31/2019,63,1,"$ 72.60",11-10101-7052-504989-500-000000000-000000,"Other Materials & Supplies","Materials and Supplies"
9008626,"$ 42,356.87",11/01/2019,ISSUED,,"PNC Bank National Association","PO Box 828702",PROCARD,963220191019,"$ 42,356.87",WIRE,65,IMPORTED,10/31/2019,65,1,"$ 32.67",11-10101-7052-503901-500-000000000-000000,Postage,Services
9008626,"$ 42,356.87",11/01/2019,ISSUED,,"PNC Bank National Association","PO Box 828702",PROCARD,963220191019,"$ 42,356.87",WIRE,66,IMPORTED,10/31/2019,66,1,"$ 86.64",11-10101-7052-503901-500-000000000-000000,Postage,Services
9008626,"$ 42,356.87",11/01/2019,ISSUED,,"PNC Bank National Association","PO Box 828702",PROCARD,963220191019,"$ 42,356.87",WIRE,67,IMPORTED,10/31/2019,67,1,"$ 28.69",11-10101-7052-504989-500-000000000-000000,"Other Materials & Supplies","Materials and Supplies"
9008626,"$ 42,356.87",11/01/2019,ISSUED,,"PNC Bank National Association","PO Box 828702",PROCARD,963220191019,"$ 42,356.87",WIRE,68,IMPORTED,10/31/2019,68,1,"$ 335.00",11-10101-2151-509101-500-000000000-000000,Dues,Miscellaneous
9008626,"$ 42,356.87",11/01/2019,ISSUED,,"PNC Bank National Association","PO Box 828702",PROCARD,963220191019,"$ 42,356.87",WIRE,69,IMPORTED,10/31/2019,69,1,"$ 70.89",11-10101-7404-504956-500-000000000-000000,"Data Processing Supplies","Materials and Supplies"
9008626,"$ 42,356.87",11/01/2019,ISSUED,,"PNC Bank National Association","PO Box 828702",PROCARD,963220191019,"$ 42,356.87",WIRE,70,IMPORTED,10/31/2019,70,1,"$ 912.63",11-10101-7404-504956-500-000000000-000000,"Data Processing Supplies","Materials and Supplies"
9008626,"$ 42,356.87",11/01/2019,ISSUED,,"PNC Bank National Association","PO Box 828702",PROCARD,963220191019,"$ 42,356.87",WIRE,71,IMPORTED,10/31/2019,71,1,"$ 35.55",11-10101-5051-509901-500-000000000-000000,"Business Expense",Miscellaneous
9008626,"$ 42,356.87",11/01/2019,ISSUED,,"PNC Bank National Association","PO Box 828702",PROCARD,963220191019,"$ 42,356.87",WIRE,72,IMPORTED,10/31/2019,72,1,"$ -55.78",11-22101-0000-504989-400-000000000-000000,"Other Materials & Supplies","Materials and Supplies"
9008626,"$ 42,356.87",11/01/2019,ISSUED,,"PNC Bank National Association","PO Box 828702",PROCARD,963220191019,"$ 42,356.87",WIRE,73,IMPORTED,10/31/2019,73,1,"$ 36.61",11-22101-0000-504989-400-000000000-000000,"Other Materials & Supplies","Materials and Supplies"
9008626,"$ 42,356.87",11/01/2019,ISSUED,,"PNC Bank National Association","PO Box 828702",PROCARD,963220191019,"$ 42,356.87",WIRE,74,IMPORTED,10/31/2019,74,1,"$ 5.00",11-10101-2051-509103-500-000000000-000000,Subscriptions,Miscellaneous
9008626,"$ 42,356.87",11/01/2019,ISSUED,,"PNC Bank National Association","PO Box 828702",PROCARD,963220191019,"$ 42,356.87",WIRE,75,IMPORTED,10/31/2019,75,1,"$ 225.00",11-10101-2151-509101-500-000000000-000000,Dues,Miscellaneous
9008626,"$ 42,356.87",11/01/2019,ISSUED,,"PNC Bank National Association","PO Box 828702",PROCARD,963220191019,"$ 42,356.87",WIRE,76,IMPORTED,10/31/2019,76,1,"$ 61.35",11-10101-2151-509101-500-000000000-000000,Dues,Miscellaneous
9008626,"$ 42,356.87",11/01/2019,ISSUED,,"PNC Bank National Association","PO Box 828702",PROCARD,963220191019,"$ 42,356.87",WIRE,77,IMPORTED,10/31/2019,77,1,"$ 330.00",11-10101-7404-503341-500-000000000-000000,"Data Services Purchased",Services
9008626,"$ 42,356.87",11/01/2019,ISSUED,,"PNC Bank National Association","PO Box 828702",PROCARD,963220191019,"$ 42,356.87",WIRE,78,IMPORTED,10/31/2019,78,1,"$ 67.76",11-10101-7405-503551-500-000000000-000000,"Data Processing Equipment Maintenance",Services
9008626,"$ 42,356.87",11/01/2019,ISSUED,,"PNC Bank National Association","PO Box 828702",PROCARD,963220191019,"$ 42,356.87",WIRE,79,IMPORTED,10/31/2019,79,1,"$ 139.00",11-22106-0000-205502-000-000000000-000000,"Liability Insurance Reserve",Claims
9008626,"$ 42,356.87",11/01/2019,ISSUED,,"PNC Bank National Association","PO Box 828702",PROCARD,963220191019,"$ 42,356.87",WIRE,80,IMPORTED,10/31/2019,80,1,"$ 139.00",11-22109-0000-205502-000-000000000-000000,"Liability Insurance Reserve",Claims
9008626,"$ 42,356.87",11/01/2019,ISSUED,,"PNC Bank National Association","PO Box 828702",PROCARD,963220191019,"$ 42,356.87",WIRE,81,IMPORTED,10/31/2019,81,1,"$ 143.95",11-22103-0000-205502-000-000000000-000000,"Liability Insurance Reserve",Claims
9008626,"$ 42,356.87",11/01/2019,ISSUED,,"PNC Bank National Association","PO Box 828702",PROCARD,963220191019,"$ 42,356.87",WIRE,210,IMPORTED,10/31/2019,210,1,"$ 200.00",11-22107-0000-509201-500-000000000-000000,"Travel & Meeting",Miscellaneous
9008626,"$ 42,356.87",11/01/2019,ISSUED,,"PNC Bank National Association","PO Box 828702",PROCARD,963220191019,"$ 42,356.87",WIRE,211,IMPORTED,10/31/2019,211,1,"$ 3.94",11-22107-0000-509201-500-000000000-000000,"Travel & Meeting",Miscellaneous
9008626,"$ 42,356.87",11/01/2019,ISSUED,,"PNC Bank National Association","PO Box 828702","Manual Invoice Entry","PREPAYMENT 19-10","$ 42,356.87",WIRE,2,"MANUAL LINE ENTRY",10/31/2019,2,1,"$ 42,356.87",11-00000-0000-151102-000-000000000-000000,"Prepaid Expenses",Prepayment
9008626,"$ 42,356.87",11/01/2019,ISSUED,,"PNC Bank National Association","PO Box 828702",PROCARD,963220191019,"$ 42,356.87",WIRE,85,IMPORTED,10/31/2019,85,1,"$ 15.37",11-22101-0000-504989-300-000000000-000000,"Other Materials & Supplies","Materials and Supplies"
9008626,"$ 42,356.87",11/01/2019,ISSUED,,"PNC Bank National Association","PO Box 828702",PROCARD,963220191019,"$ 42,356.87",WIRE,82,IMPORTED,10/31/2019,82,1,"$ 133.04",11-10101-7052-504989-500-000000000-000000,"Other Materials & Supplies","Materials and Supplies"
9008626,"$ 42,356.87",11/01/2019,ISSUED,,"PNC Bank National Association","PO Box 828702",PROCARD,963220191019,"$ 42,356.87",WIRE,83,IMPORTED,10/31/2019,83,1,"$ 31.86",11-10101-7404-504956-500-000000000-000000,"Data Processing Supplies","Materials and Supplies"
9008626,"$ 42,356.87",11/01/2019,ISSUED,,"PNC Bank National Association","PO Box 828702",PROCARD,963220191019,"$ 42,356.87",WIRE,84,IMPORTED,10/31/2019,84,1,"$ 169.34",11-10101-7404-504956-500-000000000-000000,"Data Processing Supplies","Materials and Supplies"
9008626,"$ 42,356.87",11/01/2019,ISSUED,,"PNC Bank National Association","PO Box 828702",PROCARD,963220191019,"$ 42,356.87",WIRE,86,IMPORTED,10/31/2019,86,1,"$ 389.52",11-22110-0000-504989-400-000000000-000000,"Other Materials & Supplies","Materials and Supplies"
9008626,"$ 42,356.87",11/01/2019,ISSUED,,"PNC Bank National Association","PO Box 828702",PROCARD,963220191019,"$ 42,356.87",WIRE,87,IMPORTED,10/31/2019,87,1,"$ 41.54",11-22106-0000-504989-300-000000000-000000,"Other Materials & Supplies","Materials and Supplies"
9008626,"$ 42,356.87",11/01/2019,ISSUED,,"PNC Bank National Association","PO Box 828702",PROCARD,963220191019,"$ 42,356.87",WIRE,88,IMPORTED,10/31/2019,88,1,"$ 422.60",11-10101-5001-509203-500-000000000-000000,"Out of Region Travel",Miscellaneous
9008626,"$ 42,356.87",11/01/2019,ISSUED,,"PNC Bank National Association","PO Box 828702",PROCARD,963220191019,"$ 42,356.87",WIRE,89,IMPORTED,10/31/2019,89,1,"$ 236.64",11-10101-7052-504989-500-000000000-000000,"Other Materials & Supplies","Materials and Supplies"
9008626,"$ 42,356.87",11/01/2019,ISSUED,,"PNC Bank National Association","PO Box 828702",PROCARD,963220191019,"$ 42,356.87",WIRE,90,IMPORTED,10/31/2019,90,1,"$ 150.00",11-10101-7404-504956-500-000000000-000000,"Data Processing Supplies","Materials and Supplies"
9008626,"$ 42,356.87",11/01/2019,ISSUED,,"PNC Bank National Association","PO Box 828702",PROCARD,963220191019,"$ 42,356.87",WIRE,91,IMPORTED,10/31/2019,91,1,"$ 99.00",11-10101-7404-504956-500-000000000-000000,"Data Processing Supplies","Materials and Supplies"
9008626,"$ 42,356.87",11/01/2019,ISSUED,,"PNC Bank National Association","PO Box 828702",PROCARD,963220191019,"$ 42,356.87",WIRE,92,IMPORTED,10/31/2019,92,1,"$ 3.95",11-10101-5051-509901-500-000000000-000000,"Business Expense",Miscellaneous
9008626,"$ 42,356.87",11/01/2019,ISSUED,,"PNC Bank National Association","PO Box 828702",PROCARD,963220191019,"$ 42,356.87",WIRE,93,IMPORTED,10/31/2019,93,1,"$ 32.69",11-22107-0000-504989-500-000000000-000000,"Other Materials & Supplies","Materials and Supplies"
9008626,"$ 42,356.87",11/01/2019,ISSUED,,"PNC Bank National Association","PO Box 828702",PROCARD,963220191019,"$ 42,356.87",WIRE,94,IMPORTED,10/31/2019,94,1,"$ 40.30",11-22107-0000-504989-500-000000000-000000,"Other Materials & Supplies","Materials and Supplies"
9008626,"$ 42,356.87",11/01/2019,ISSUED,,"PNC Bank National Association","PO Box 828702",PROCARD,963220191019,"$ 42,356.87",WIRE,95,IMPORTED,10/31/2019,95,1,"$ 15.82",11-22107-0000-504989-500-000000000-000000,"Other Materials & Supplies","Materials and Supplies"
9008626,"$ 42,356.87",11/01/2019,ISSUED,,"PNC Bank National Association","PO Box 828702",PROCARD,963220191019,"$ 42,356.87",WIRE,96,IMPORTED,10/31/2019,96,1,"$ -350.00",11-22102-0000-503662-500-000000000-000000,"Contract Maintenance",Services
9008626,"$ 42,356.87",11/01/2019,ISSUED,,"PNC Bank National Association","PO Box 828702",PROCARD,963220191019,"$ 42,356.87",WIRE,97,IMPORTED,10/31/2019,97,1,"$ -500.00",11-22102-0000-503662-500-000000000-000000,"Contract Maintenance",Services
9008626,"$ 42,356.87",11/01/2019,ISSUED,,"PNC Bank National Association","PO Box 828702",PROCARD,963220191019,"$ 42,356.87",WIRE,98,IMPORTED,10/31/2019,98,1,"$ -800.00",11-22102-0000-503662-500-000000000-000000,"Contract Maintenance",Services
9008626,"$ 42,356.87",11/01/2019,ISSUED,,"PNC Bank National Association","PO Box 828702",PROCARD,963220191019,"$ 42,356.87",WIRE,102,IMPORTED,10/31/2019,102,1,"$ 217.64",11-10101-3111-504958-500-000000000-000000,"Repro Supplies","Materials and Supplies"
9008626,"$ 42,356.87",11/01/2019,ISSUED,,"PNC Bank National Association","PO Box 828702",PROCARD,963220191019,"$ 42,356.87",WIRE,99,IMPORTED,10/31/2019,99,1,"$ -1,500.00",11-22102-0000-503662-500-000000000-000000,"Contract Maintenance",Services
9008626,"$ 42,356.87",11/01/2019,ISSUED,,"PNC Bank National Association","PO Box 828702",PROCARD,963220191019,"$ 42,356.87",WIRE,100,IMPORTED,10/31/2019,100,1,"$ -800.00",11-22102-0000-503662-500-000000000-000000,"Contract Maintenance",Services
9008626,"$ 42,356.87",11/01/2019,ISSUED,,"PNC Bank National Association","PO Box 828702",PROCARD,963220191019,"$ 42,356.87",WIRE,101,IMPORTED,10/31/2019,101,1,"$ 17.00",51-59101-7401-509202-500-000000000-000000,"Local Travel",Miscellaneous
9008626,"$ 42,356.87",11/01/2019,ISSUED,,"PNC Bank National Association","PO Box 828702",PROCARD,963220191019,"$ 42,356.87",WIRE,103,IMPORTED,10/31/2019,103,1,"$ 5.15",11-10101-3111-504958-500-000000000-000000,"Repro Supplies","Materials and Supplies"
9008626,"$ 42,356.87",11/01/2019,ISSUED,,"PNC Bank National Association","PO Box 828702",PROCARD,963220191019,"$ 42,356.87",WIRE,4,IMPORTED,10/31/2019,4,1,"$ 115.00",11-10101-2151-503321-500-000000000-000000,"Training & Development",Services
9008626,"$ 42,356.87",11/01/2019,ISSUED,,"PNC Bank National Association","PO Box 828702",PROCARD,963220191019,"$ 42,356.87",WIRE,1,IMPORTED,10/31/2019,1,1,"$ 11.74",11-10101-4401-503901-500-000000000-000000,Postage,Services
9008626,"$ 42,356.87",11/01/2019,ISSUED,,"PNC Bank National Association","PO Box 828702",PROCARD,963220191019,"$ 42,356.87",WIRE,2,IMPORTED,10/31/2019,2,1,"$ 399.22",11-10101-5104-509914-501-000000000-000000,"Other Miscellaneous",Miscellaneous
9008626,"$ 42,356.87",11/01/2019,ISSUED,,"PNC Bank National Association","PO Box 828702",PROCARD,963220191019,"$ 42,356.87",WIRE,3,IMPORTED,10/31/2019,3,1,"$ 149.95",11-10101-3101-509901-500-000000000-000000,"Business Expense",Miscellaneous
9008626,"$ 42,356.87",11/01/2019,ISSUED,,"PNC Bank National Association","PO Box 828702",PROCARD,963220191019,"$ 42,356.87",WIRE,8,IMPORTED,10/31/2019,8,1,"$ 59.00",11-10101-7001-509103-500-000000000-000000,Subscriptions,Miscellaneous
9008626,"$ 42,356.87",11/01/2019,ISSUED,,"PNC Bank National Association","PO Box 828702",PROCARD,963220191019,"$ 42,356.87",WIRE,5,IMPORTED,10/31/2019,5,1,"$ 1,165.05",11-10101-7404-504956-500-000000000-000000,"Data Processing Supplies","Materials and Supplies"
9008626,"$ 42,356.87",11/01/2019,ISSUED,,"PNC Bank National Association","PO Box 828702",PROCARD,963220191019,"$ 42,356.87",WIRE,6,IMPORTED,10/31/2019,6,1,"$ 415.00",11-10101-7404-503342-500-000000000-000000,"Data Processing Communications",Services
9008626,"$ 42,356.87",11/01/2019,ISSUED,,"PNC Bank National Association","PO Box 828702",PROCARD,963220191019,"$ 42,356.87",WIRE,7,IMPORTED,10/31/2019,7,1,"$ 79.00",11-10101-7001-509103-500-000000000-000000,Subscriptions,Miscellaneous
9008626,"$ 42,356.87",11/01/2019,ISSUED,,"PNC Bank National Association","PO Box 828702",PROCARD,963220191019,"$ 42,356.87",WIRE,9,IMPORTED,10/31/2019,9,1,"$ 686.24",11-22107-0000-504989-500-000000000-000000,"Other Materials & Supplies","Materials and Supplies"
9008626,"$ 42,356.87",11/01/2019,ISSUED,,"PNC Bank National Association","PO Box 828702",PROCARD,963220191019,"$ 42,356.87",WIRE,10,IMPORTED,10/31/2019,10,1,"$ -234.74",11-22105-0000-504989-400-000000000-000000,"Other Materials & Supplies","Materials and Supplies"
9008626,"$ 42,356.87",11/01/2019,ISSUED,,"PNC Bank National Association","PO Box 828702",PROCARD,963220191019,"$ 42,356.87",WIRE,11,IMPORTED,10/31/2019,11,1,"$ 25.00",51-59101-7401-509202-500-000000000-000000,"Local Travel",Miscellaneous
9008626,"$ 42,356.87",11/01/2019,ISSUED,,"PNC Bank National Association","PO Box 828702",PROCARD,963220191019,"$ 42,356.87",WIRE,12,IMPORTED,10/31/2019,12,1,"$ 396.82",11-10101-4101-509202-500-000000000-000000,"Local Travel",Miscellaneous
9008626,"$ 42,356.87",11/01/2019,ISSUED,,"PNC Bank National Association","PO Box 828702",PROCARD,963220191019,"$ 42,356.87",WIRE,13,IMPORTED,10/31/2019,13,1,"$ 396.82",11-10101-4101-509202-500-000000000-000000,"Local Travel",Miscellaneous
9008626,"$ 42,356.87",11/01/2019,ISSUED,,"PNC Bank National Association","PO Box 828702",PROCARD,963220191019,"$ 42,356.87",WIRE,14,IMPORTED,10/31/2019,14,1,"$ 396.82",11-10101-4101-509202-500-000000000-000000,"Local Travel",Miscellaneous
9008626,"$ 42,356.87",11/01/2019,ISSUED,,"PNC Bank National Association","PO Box 828702",PROCARD,963220191019,"$ 42,356.87",WIRE,15,IMPORTED,10/31/2019,15,1,"$ 396.82",11-10101-2001-509202-500-000000000-000000,"Local Travel",Miscellaneous
9008626,"$ 42,356.87",11/01/2019,ISSUED,,"PNC Bank National Association","PO Box 828702",PROCARD,963220191019,"$ 42,356.87",WIRE,16,IMPORTED,10/31/2019,16,1,"$ 12.00",11-10101-2051-503334-500-000000000-000000,"Legal Services",Services
9008626,"$ 42,356.87",11/01/2019,ISSUED,,"PNC Bank National Association","PO Box 828702",PROCARD,963220191019,"$ 42,356.87",WIRE,17,IMPORTED,10/31/2019,17,1,"$ 116.31",11-10101-7052-503534-401-000000000-000000,"Building Maint and Repairs",Services
9008626,"$ 42,356.87",11/01/2019,ISSUED,,"PNC Bank National Association","PO Box 828702",PROCARD,963220191019,"$ 42,356.87",WIRE,18,IMPORTED,10/31/2019,18,1,"$ 924.52",11-10101-7052-503533-400-000000000-000000,"HVAC Maintenance and Repairs",Services
9008626,"$ 42,356.87",11/01/2019,ISSUED,,"PNC Bank National Association","PO Box 828702",PROCARD,963220191019,"$ 42,356.87",WIRE,19,IMPORTED,10/31/2019,19,1,"$ 172.14",11-22101-0000-504989-500-000000000-000000,"Other Materials & Supplies","Materials and Supplies"
9008626,"$ 42,356.87",11/01/2019,ISSUED,,"PNC Bank National Association","PO Box 828702",PROCARD,963220191019,"$ 42,356.87",WIRE,20,IMPORTED,10/31/2019,20,1,"$ 469.00",11-10101-2151-509101-500-000000000-000000,Dues,Miscellaneous
9008626,"$ 42,356.87",11/01/2019,ISSUED,,"PNC Bank National Association","PO Box 828702",PROCARD,963220191019,"$ 42,356.87",WIRE,24,IMPORTED,10/31/2019,24,1,"$ 274.93",11-22102-0000-504989-300-000000000-000000,"Other Materials & Supplies","Materials and Supplies"
9008626,"$ 42,356.87",11/01/2019,ISSUED,,"PNC Bank National Association","PO Box 828702",PROCARD,963220191019,"$ 42,356.87",WIRE,21,IMPORTED,10/31/2019,21,1,"$ 61.35",11-10101-2151-509101-500-000000000-000000,Dues,Miscellaneous
9008626,"$ 42,356.87",11/01/2019,ISSUED,,"PNC Bank National Association","PO Box 828702",PROCARD,963220191019,"$ 42,356.87",WIRE,22,IMPORTED,10/31/2019,22,1,"$ 64.99",11-10101-7404-503342-500-000000000-000000,"Data Processing Communications",Services
9008626,"$ 42,356.87",11/01/2019,ISSUED,,"PNC Bank National Association","PO Box 828702",PROCARD,963220191019,"$ 42,356.87",WIRE,23,IMPORTED,10/31/2019,23,1,"$ 28.66",11-10101-7404-504956-500-000000000-000000,"Data Processing Supplies","Materials and Supplies"
9008626,"$ 42,356.87",11/01/2019,ISSUED,,"PNC Bank National Association","PO Box 828702",PROCARD,963220191019,"$ 42,356.87",WIRE,25,IMPORTED,10/31/2019,25,1,"$ -70.44",11-10101-1001-509202-500-000000000-000000,"Local Travel",Miscellaneous
9008626,"$ 42,356.87",11/01/2019,ISSUED,,"PNC Bank National Association","PO Box 828702",PROCARD,963220191019,"$ 42,356.87",WIRE,26,IMPORTED,10/31/2019,26,1,"$ -198.41",11-10101-1001-509202-500-000000000-000000,"Local Travel",Miscellaneous
9008626,"$ 42,356.87",11/01/2019,ISSUED,,"PNC Bank National Association","PO Box 828702",PROCARD,963220191019,"$ 42,356.87",WIRE,27,IMPORTED,10/31/2019,27,1,"$ -70.44",11-10101-4101-509202-500-000000000-000000,"Local Travel",Miscellaneous
9008626,"$ 42,356.87",11/01/2019,ISSUED,,"PNC Bank National Association","PO Box 828702",PROCARD,963220191019,"$ 42,356.87",WIRE,28,IMPORTED,10/31/2019,28,1,"$ -70.44",11-10101-4101-509202-500-000000000-000000,"Local Travel",Miscellaneous
9008626,"$ 42,356.87",11/01/2019,ISSUED,,"PNC Bank National Association","PO Box 828702",PROCARD,963220191019,"$ 42,356.87",WIRE,29,IMPORTED,10/31/2019,29,1,"$ -70.44",11-10101-4101-509202-500-000000000-000000,"Local Travel",Miscellaneous
9008626,"$ 42,356.87",11/01/2019,ISSUED,,"PNC Bank National Association","PO Box 828702",PROCARD,963220191019,"$ 42,356.87",WIRE,30,IMPORTED,10/31/2019,30,1,"$ -70.44",11-10101-2001-509202-500-000000000-000000,"Local Travel",Miscellaneous
9008626,"$ 42,356.87",11/01/2019,ISSUED,,"PNC Bank National Association","PO Box 828702",PROCARD,963220191019,"$ 42,356.87",WIRE,31,IMPORTED,10/31/2019,31,1,"$ -35.22",11-10101-1001-509202-500-000000000-000000,"Local Travel",Miscellaneous
9008626,"$ 42,356.87",11/01/2019,ISSUED,,"PNC Bank National Association","PO Box 828702",PROCARD,963220191019,"$ 42,356.87",WIRE,32,IMPORTED,10/31/2019,32,1,"$ 13.90",11-22101-0000-504989-400-000000000-000000,"Other Materials & Supplies","Materials and Supplies"
9008626,"$ 42,356.87",11/01/2019,ISSUED,,"PNC Bank National Association","PO Box 828702",PROCARD,963220191019,"$ 42,356.87",WIRE,33,IMPORTED,10/31/2019,33,1,"$ 9.43",11-22101-0000-504989-400-000000000-000000,"Other Materials & Supplies","Materials and Supplies"
9008626,"$ 42,356.87",11/01/2019,ISSUED,,"PNC Bank National Association","PO Box 828702",PROCARD,963220191019,"$ 42,356.87",WIRE,34,IMPORTED,10/31/2019,34,1,"$ 166.65",11-22109-0000-504911-300-000000000-000000,"Other Bus Parts","Materials and Supplies"
9008626,"$ 42,356.87",11/01/2019,ISSUED,,"PNC Bank National Association","PO Box 828702",PROCARD,963220191019,"$ 42,356.87",WIRE,35,IMPORTED,10/31/2019,35,1,"$ 90.00",11-10101-2151-503321-500-000000000-000000,"Training & Development",Services
9008626,"$ 42,356.87",11/01/2019,ISSUED,,"PNC Bank National Association","PO Box 828702",PROCARD,963220191019,"$ 42,356.87",WIRE,36,IMPORTED,10/31/2019,36,1,"$ 90.00",11-10101-2151-503321-500-000000000-000000,"Training & Development",Services
9008626,"$ 42,356.87",11/01/2019,ISSUED,,"PNC Bank National Association","PO Box 828702",PROCARD,963220191019,"$ 42,356.87",WIRE,40,IMPORTED,10/31/2019,40,1,"$ 315.00",51-59101-5311-509913-501-000000000-000000,"General Expense",Miscellaneous
9008626,"$ 42,356.87",11/01/2019,ISSUED,,"PNC Bank National Association","PO Box 828702",PROCARD,963220191019,"$ 42,356.87",WIRE,37,IMPORTED,10/31/2019,37,1,"$ 500.00",11-22102-0000-503662-500-000000000-000000,"Contract Maintenance",Services
9008626,"$ 42,356.87",11/01/2019,ISSUED,,"PNC Bank National Association","PO Box 828702",PROCARD,963220191019,"$ 42,356.87",WIRE,38,IMPORTED,10/31/2019,38,1,"$ 47.40",11-10101-5051-509901-500-000000000-000000,"Business Expense",Miscellaneous
9008626,"$ 42,356.87",11/01/2019,ISSUED,,"PNC Bank National Association","PO Box 828702",PROCARD,963220191019,"$ 42,356.87",WIRE,146,IMPORTED,10/31/2019,146,1,"$ 20.00",51-59101-5311-509913-501-000000000-000000,"General Expense",Miscellaneous
9008626,"$ 42,356.87",11/01/2019,ISSUED,,"PNC Bank National Association","PO Box 828702",PROCARD,963220191019,"$ 42,356.87",WIRE,147,IMPORTED,10/31/2019,147,1,"$ 136.88",11-10101-5104-509914-501-000000000-000000,"Other Miscellaneous",Miscellaneous
9008625,"$ 3,625,912.57",11/05/2019,ISSUED,,"SCR Medical Transportation Inc","8801-25 S Greenwood","Manual Invoice Entry",SEP'2019,"$ 3,625,912.57",WIRE,3,"MANUAL LINE ENTRY",10/07/2019,3,1,"$ 4,228,306.51",51-58601-0000-508101-500-000000000-000000,"Purchased Transportation","Purchased Transportation"
9008625,"$ 3,625,912.57",11/05/2019,ISSUED,,"SCR Medical Transportation Inc","8801-25 S Greenwood","Manual Invoice Entry",SEP'2019,"$ 3,625,912.57",WIRE,2,"MANUAL LINE ENTRY",10/07/2019,2,1,"$ -3,625,912.57",51-58601-0000-508101-500-000000000-000000,"Purchased Transportation","Purchased Transportation"
9008625,"$ 3,625,912.57",11/05/2019,ISSUED,,"SCR Medical Transportation Inc","8801-25 S Greenwood","Manual Invoice Entry",SEP'2019,"$ 3,625,912.57",WIRE,1,"HEADER MATCH",10/07/2019,1,1,"$ 3,625,912.57",51-58601-0000-508101-500-000000000-000000,"Purchased Transportation","Purchased Transportation"
9008625,"$ 3,625,912.57",11/05/2019,ISSUED,,"SCR Medical Transportation Inc","8801-25 S Greenwood","Manual Invoice Entry",SEP'2019,"$ 3,625,912.57",WIRE,9,"MANUAL LINE ENTRY",10/07/2019,9,1,"$ -481,054.22",51-58601-0000-508101-500-000000000-000000,"Purchased Transportation","Purchased Transportation"
9008625,"$ 3,625,912.57",11/05/2019,ISSUED,,"SCR Medical Transportation Inc","8801-25 S Greenwood","Manual Invoice Entry",SEP'2019,"$ 3,625,912.57",WIRE,8,"MANUAL LINE ENTRY",10/07/2019,8,1,"$ -98,948.50",51-58601-0000-401101-100-000000000-000000,"Passenger Fares","Purchased Transportation"
9008625,"$ 3,625,912.57",11/05/2019,ISSUED,,"SCR Medical Transportation Inc","8801-25 S Greenwood","Manual Invoice Entry",SEP'2019,"$ 3,625,912.57",WIRE,11,"MANUAL LINE ENTRY",10/07/2019,11,1,"$ -44.17",51-57901-0000-508202-500-000000000-000000,"RTA Certification Expense","Purchased Transportation"
9008625,"$ 3,625,912.57",11/05/2019,ISSUED,,"SCR Medical Transportation Inc","8801-25 S Greenwood","Manual Invoice Entry",SEP'2019,"$ 3,625,912.57",WIRE,4,"MANUAL LINE ENTRY",10/07/2019,4,1,"$ 25,696.71",51-58501-0000-508202-500-000000000-000000,"RTA Certification Expense","Purchased Transportation"
9008625,"$ 3,625,912.57",11/05/2019,ISSUED,,"SCR Medical Transportation Inc","8801-25 S Greenwood","Manual Invoice Entry",SEP'2019,"$ 3,625,912.57",WIRE,6,"MANUAL LINE ENTRY",10/07/2019,6,1,"$ -144,457.00",51-58601-0000-401101-100-000000000-000000,"Passenger Fares","Purchased Transportation"
9008625,"$ 3,625,912.57",11/05/2019,ISSUED,,"SCR Medical Transportation Inc","8801-25 S Greenwood","Manual Invoice Entry",SEP'2019,"$ 3,625,912.57",WIRE,10,"MANUAL LINE ENTRY",10/07/2019,10,1,"$ -2,923.51",51-58501-0000-508202-500-000000000-000000,"RTA Certification Expense","Purchased Transportation"
9008625,"$ 3,625,912.57",11/05/2019,ISSUED,,"SCR Medical Transportation Inc","8801-25 S Greenwood","Manual Invoice Entry",SEP'2019,"$ 3,625,912.57",WIRE,5,"MANUAL LINE ENTRY",10/07/2019,5,1,"$ 388.25",51-57901-0000-508202-500-000000000-000000,"RTA Certification Expense","Purchased Transportation"
9008625,"$ 3,625,912.57",11/05/2019,ISSUED,,"SCR Medical Transportation Inc","8801-25 S Greenwood","Manual Invoice Entry",SEP'2019,"$ 3,625,912.57",WIRE,7,"MANUAL LINE ENTRY",10/07/2019,7,1,"$ 98,948.50",51-59101-0000-205104-000-000000000-000000,"Unredeemed Paratransit Fares","Purchased Transportation"
9008624,"$ 155,018.96",11/05/2019,ISSUED,,"SCR Medical Transportation Inc","8801-25 S Greenwood","Manual Invoice Entry",T92019/ADA,"$ 155,018.96",WIRE,3,"MANUAL LINE ENTRY",10/09/2019,3,1,"$ 182,285.17",51-58606-0000-508101-500-000000000-000000,"Purchased Transportation","Purchased Transportation"
9008624,"$ 155,018.96",11/05/2019,ISSUED,,"SCR Medical Transportation Inc","8801-25 S Greenwood","Manual Invoice Entry",T92019/ADA,"$ 155,018.96",WIRE,2,"MANUAL LINE ENTRY",10/09/2019,2,1,"$ -155,018.96",51-58606-0000-508101-500-000000000-000000,"Purchased Transportation","Purchased Transportation"
9008624,"$ 155,018.96",11/05/2019,ISSUED,,"SCR Medical Transportation Inc","8801-25 S Greenwood","Manual Invoice Entry",T92019/ADA,"$ 155,018.96",WIRE,1,"HEADER MATCH",10/09/2019,1,1,"$ 155,018.96",51-58606-0000-508101-500-000000000-000000,"Purchased Transportation","Purchased Transportation"
9008624,"$ 155,018.96",11/05/2019,ISSUED,,"SCR Medical Transportation Inc","8801-25 S Greenwood","Manual Invoice Entry",T92019/ADA,"$ 155,018.96",WIRE,5,"MANUAL LINE ENTRY",10/09/2019,5,1,"$ 4,208.75",51-59101-0000-205104-000-000000000-000000,"Unredeemed Paratransit Fares","Purchased Transportation"
9008624,"$ 155,018.96",11/05/2019,ISSUED,,"SCR Medical Transportation Inc","8801-25 S Greenwood","Manual Invoice Entry",T92019/ADA,"$ 155,018.96",WIRE,4,"MANUAL LINE ENTRY",10/09/2019,4,1,"$ -7,673.25",51-58606-0000-401101-100-000000000-000000,"Passenger Fares","Purchased Transportation"
9008624,"$ 155,018.96",11/05/2019,ISSUED,,"SCR Medical Transportation Inc","8801-25 S Greenwood","Manual Invoice Entry",T92019/ADA,"$ 155,018.96",WIRE,6,"MANUAL LINE ENTRY",10/09/2019,6,1,"$ -4,208.75",51-58606-0000-401101-100-000000000-000000,"Passenger Fares","Purchased Transportation"
9008624,"$ 155,018.96",11/05/2019,ISSUED,,"SCR Medical Transportation Inc","8801-25 S Greenwood","Manual Invoice Entry",T92019/ADA,"$ 155,018.96",WIRE,7,"MANUAL LINE ENTRY",10/09/2019,7,1,"$ -19,592.96",51-58606-0000-508101-500-000000000-000000,"Purchased Transportation","Purchased Transportation"
9008623,"$ 82,945.29",11/05/2019,ISSUED,,"SCR Medical Transportation Inc","8801-25 S Greenwood","Manual Invoice Entry",TS92019/SC,"$ 82,945.29",WIRE,2,"MANUAL LINE ENTRY",10/09/2019,2,1,"$ -82,945.29",51-58606-0000-508101-500-000000000-000000,"Purchased Transportation","Purchased Transportation"
9008623,"$ 82,945.29",11/05/2019,ISSUED,,"SCR Medical Transportation Inc","8801-25 S Greenwood","Manual Invoice Entry",TS92019/SC,"$ 82,945.29",WIRE,1,"HEADER MATCH",10/09/2019,1,1,"$ 82,945.29",51-58606-0000-508101-500-000000000-000000,"Purchased Transportation","Purchased Transportation"
9008623,"$ 82,945.29",11/05/2019,ISSUED,,"SCR Medical Transportation Inc","8801-25 S Greenwood","Manual Invoice Entry",TS92019/SC,"$ 82,945.29",WIRE,9,"MANUAL LINE ENTRY",10/09/2019,9,1,"$ -13,556.62",51-57201-0000-508101-500-000000000-000000,"Purchased Transportation","Purchased Transportation"
9008623,"$ 82,945.29",11/05/2019,ISSUED,,"SCR Medical Transportation Inc","8801-25 S Greenwood","Manual Invoice Entry",TS92019/SC,"$ 82,945.29",WIRE,3,"MANUAL LINE ENTRY",10/09/2019,3,1,"$ 100,108.66",51-57201-0000-508101-500-000000000-000000,"Purchased Transportation","Purchased Transportation"
9008623,"$ 82,945.29",11/05/2019,ISSUED,,"SCR Medical Transportation Inc","8801-25 S Greenwood","Manual Invoice Entry",TS92019/SC,"$ 82,945.29",WIRE,8,"MANUAL LINE ENTRY",10/09/2019,8,1,"$ -36.00",51-57201-0000-508102-500-000000000-000000,"Call Center Expansion Costs","Purchased Transportation"
9008623,"$ 82,945.29",11/05/2019,ISSUED,,"SCR Medical Transportation Inc","8801-25 S Greenwood","Manual Invoice Entry",TS92019/SC,"$ 82,945.29",WIRE,6,"MANUAL LINE ENTRY",10/09/2019,6,1,"$ -2,385.50",51-57201-0000-401101-100-000000000-000000,"Passenger Fares","Purchased Transportation"
9008623,"$ 82,945.29",11/05/2019,ISSUED,,"SCR Medical Transportation Inc","8801-25 S Greenwood","Manual Invoice Entry",TS92019/SC,"$ 82,945.29",WIRE,5,"MANUAL LINE ENTRY",10/09/2019,5,1,"$ 2,385.50",51-59101-0000-205104-000-000000000-000000,"Unredeemed Paratransit Fares","Purchased Transportation"
9008623,"$ 82,945.29",11/05/2019,ISSUED,,"SCR Medical Transportation Inc","8801-25 S Greenwood","Manual Invoice Entry",TS92019/SC,"$ 82,945.29",WIRE,7,"MANUAL LINE ENTRY",10/09/2019,7,1,"$ 550.25",51-57201-0000-508102-500-000000000-000000,"Call Center Expansion Costs","Purchased Transportation"
9008623,"$ 82,945.29",11/05/2019,ISSUED,,"SCR Medical Transportation Inc","8801-25 S Greenwood","Manual Invoice Entry",TS92019/SC,"$ 82,945.29",WIRE,4,"MANUAL LINE ENTRY",10/09/2019,4,1,"$ -4,121.00",51-57201-0000-401101-100-000000000-000000,"Passenger Fares","Purchased Transportation"
9008622,"$ 3,446,885.15",11/05/2019,ISSUED,,"Cook DuPage Transportation Co","1200 W Fulton St","Manual Invoice Entry",SEP'2019,"$ 3,446,885.15",WIRE,3,"MANUAL LINE ENTRY",10/11/2019,3,1,"$ 4,034,640.79",51-58602-0000-508101-500-000000000-000000,"Purchased Transportation","Purchased Transportation"
9008622,"$ 3,446,885.15",11/05/2019,ISSUED,,"Cook DuPage Transportation Co","1200 W Fulton St","Manual Invoice Entry",SEP'2019,"$ 3,446,885.15",WIRE,2,"MANUAL LINE ENTRY",10/11/2019,2,1,"$ -3,446,885.15",51-58602-0000-508101-500-000000000-000000,"Purchased Transportation","Purchased Transportation"
9008622,"$ 3,446,885.15",11/05/2019,ISSUED,,"Cook DuPage Transportation Co","1200 W Fulton St","Manual Invoice Entry",SEP'2019,"$ 3,446,885.15",WIRE,1,"HEADER MATCH",10/11/2019,1,1,"$ 3,446,885.15",51-58602-0000-508101-500-000000000-000000,"Purchased Transportation","Purchased Transportation"
9008622,"$ 3,446,885.15",11/05/2019,ISSUED,,"Cook DuPage Transportation Co","1200 W Fulton St","Manual Invoice Entry",SEP'2019,"$ 3,446,885.15",WIRE,8,"MANUAL LINE ENTRY",10/11/2019,8,1,"$ -458,911.59",51-58602-0000-508101-500-000000000-000000,"Purchased Transportation","Purchased Transportation"
9008622,"$ 3,446,885.15",11/05/2019,ISSUED,,"Cook DuPage Transportation Co","1200 W Fulton St","Manual Invoice Entry",SEP'2019,"$ 3,446,885.15",WIRE,5,"MANUAL LINE ENTRY",10/11/2019,5,1,"$ -140,231.25",51-58602-0000-401101-100-000000000-000000,"Passenger Fares","Purchased Transportation"
9008622,"$ 3,446,885.15",11/05/2019,ISSUED,,"Cook DuPage Transportation Co","1200 W Fulton St","Manual Invoice Entry",SEP'2019,"$ 3,446,885.15",WIRE,6,"MANUAL LINE ENTRY",10/11/2019,6,1,"$ 94,025.50",51-59101-0000-205104-000-000000000-000000,"Unredeemed Paratransit Fares","Purchased Transportation"
9008622,"$ 3,446,885.15",11/05/2019,ISSUED,,"Cook DuPage Transportation Co","1200 W Fulton St","Manual Invoice Entry",SEP'2019,"$ 3,446,885.15",WIRE,4,"MANUAL LINE ENTRY",10/11/2019,4,1,"$ 28,314.46",51-58501-0000-508202-500-000000000-000000,"RTA Certification Expense","Purchased Transportation"
9008622,"$ 3,446,885.15",11/05/2019,ISSUED,,"Cook DuPage Transportation Co","1200 W Fulton St","Manual Invoice Entry",SEP'2019,"$ 3,446,885.15",WIRE,10,"MANUAL LINE ENTRY",10/11/2019,10,1,"$ -13,706.70",51-59101-5311-509913-501-000000000-000000,"General Expense",Miscellaneous
9008622,"$ 3,446,885.15",11/05/2019,ISSUED,,"Cook DuPage Transportation Co","1200 W Fulton St","Manual Invoice Entry",SEP'2019,"$ 3,446,885.15",WIRE,9,"MANUAL LINE ENTRY",10/11/2019,9,1,"$ -3,220.56",51-58501-0000-508202-500-000000000-000000,"RTA Certification Expense","Purchased Transportation"
9008622,"$ 3,446,885.15",11/05/2019,ISSUED,,"Cook DuPage Transportation Co","1200 W Fulton St","Manual Invoice Entry",SEP'2019,"$ 3,446,885.15",WIRE,7,"MANUAL LINE ENTRY",10/11/2019,7,1,"$ -94,025.50",51-58602-0000-401101-100-000000000-000000,"Passenger Fares","Purchased Transportation"
9008621,"$ 7,122.30",11/01/2019,ISSUED,,"Village Bank and Trust","234 W Northwest Hwy","Manual Invoice Entry",BE103119,"$ 7,122.30",WIRE,1,"MANUAL LINE ENTRY",10/31/2019,1,1,"$ 7,122.30",11-10101-0000-202109-000-000000000-000000,"Flexible Spending Withheld","Payroll Deductions"
9008620,"$ 16,198.93",11/01/2019,ISSUED,,"Principal Financial Group","Butterfield Centre","Manual Invoice Entry",FV110119,"$ 16,198.93",WIRE,1,"MANUAL LINE ENTRY",10/31/2019,1,1,"$ 16,198.93",11-22101-0000-202107-000-000000000-000000,"Pension Withheld","401k/Pension EE/ER Contribution"
9008619,"$ 24,462.94",11/01/2019,ISSUED,,"Principal Financial Group","Butterfield Centre","Manual Invoice Entry",RV110119,"$ 24,462.94",WIRE,1,"MANUAL LINE ENTRY",10/31/2019,1,1,"$ 24,462.94",11-22106-0000-202107-000-000000000-000000,"Pension Withheld","401k/Pension EE/ER Contribution"
9008618,"$ 285.00",11/01/2019,ISSUED,,"Credit Union 1","450 E 22nd St","Manual Invoice Entry",EC110119,"$ 285.00",WIRE,1,"MANUAL LINE ENTRY",10/31/2019,1,1,"$ 285.00",11-22106-0000-202102-000-000000000-000000,"Credit Union Withheld","Payroll Deductions"
9008617,"$ 1,581.50",11/01/2019,ISSUED,,"Aurora Policeman's Credit Union","1200 E Indian Trail","Manual Invoice Entry",AP110119,"$ 1,581.50",WIRE,1,"MANUAL LINE ENTRY",10/31/2019,1,1,"$ 1,581.50",11-22101-0000-202102-000-000000000-000000,"Credit Union Withheld","Payroll Deductions"
9008616,"$ 114.00",10/31/2019,ISSUED,,"Edenred Commuter Benefit Solutions LLC","320 Nevada St  Ste 401","Manual Invoice Entry",REFUNDLM0919,"$ 114.00",WIRE,1,"MANUAL LINE ENTRY",10/30/2019,1,1,"$ 114.00",11-71101-0000-401211-100-000000000-000000,"Vanpool Fares VIP","Vanpool - Reimbursement"
9008615,"$ 4,014.42",10/31/2019,ISSUED,,"Village of Schaumburg","Fifth Third Bank","Manual Invoice Entry",VS102419,"$ 4,014.42",WIRE,1,"MANUAL LINE ENTRY",10/29/2019,1,1,"$ 4,014.42",11-10101-0000-205113-000-000000000-000000,"Deferred Monthly Tickets","Misc Reimbursements"
9008614,"$ 369,475.06",10/31/2019,ISSUED,,"SCR Medical Transportation Inc","8801-25 S Greenwood","Manual Invoice Entry",SEP'2019CALL,"$ 369,475.06",WIRE,7,"MANUAL LINE ENTRY",10/04/2019,7,1,"$ -266,188.81",51-58604-0000-508102-500-000000000-000000,"Call Center Expansion Costs","Purchased Transportation"
9008614,"$ 369,475.06",10/31/2019,ISSUED,,"SCR Medical Transportation Inc","8801-25 S Greenwood","Manual Invoice Entry",SEP'2019CALL,"$ 369,475.06",WIRE,18,"MANUAL LINE ENTRY",10/04/2019,18,1,"$ 285,081.52",51-58604-0000-508102-500-000000000-000000,"Call Center Expansion Costs","Purchased Transportation"
9008614,"$ 369,475.06",10/31/2019,ISSUED,,"SCR Medical Transportation Inc","8801-25 S Greenwood","Manual Invoice Entry",SEP'2019CALL,"$ 369,475.06",WIRE,17,"MANUAL LINE ENTRY",10/04/2019,17,1,"$ 56,706.76",51-57201-0000-508102-500-000000000-000000,"Call Center Expansion Costs","Purchased Transportation"
9008614,"$ 369,475.06",10/31/2019,ISSUED,,"SCR Medical Transportation Inc","8801-25 S Greenwood","Manual Invoice Entry",SEP'2019CALL,"$ 369,475.06",WIRE,8,"MANUAL LINE ENTRY",10/04/2019,8,1,"$ -56,706.76",51-57201-0000-508102-500-000000000-000000,"Call Center Expansion Costs","Purchased Transportation"
9008614,"$ 369,475.06",10/31/2019,ISSUED,,"SCR Medical Transportation Inc","8801-25 S Greenwood","Manual Invoice Entry",SEP'2019CALL,"$ 369,475.06",WIRE,2,"HEADER MATCH",10/04/2019,2,1,"$ 56,706.76",51-57201-0000-508102-500-000000000-000000,"Call Center Expansion Costs","Purchased Transportation"
9008614,"$ 369,475.06",10/31/2019,ISSUED,,"SCR Medical Transportation Inc","8801-25 S Greenwood","Manual Invoice Entry",SEP'2019CALL,"$ 369,475.06",WIRE,14,"MANUAL LINE ENTRY",10/04/2019,14,1,"$ 33,534.54",11-54101-0000-508102-500-000000000-000000,"Call Center Expansion Costs","Purchased Transportation"
9008614,"$ 369,475.06",10/31/2019,ISSUED,,"SCR Medical Transportation Inc","8801-25 S Greenwood","Manual Invoice Entry",SEP'2019CALL,"$ 369,475.06",WIRE,11,"MANUAL LINE ENTRY",10/04/2019,11,1,"$ -27,934.54",11-54101-0000-508102-500-000000000-000000,"Call Center Expansion Costs","Purchased Transportation"
